{"text_format":"3","workbook":"xlsx","n_sheets":5,"sheets":["Auswertung","Statistik nach Autor(in)","Top 10 Bilder","Fotografen","online"],"not_rendered":{"images":6,"macros":1,"defined_names":1,"comments":1},"read":"whole","date_system":"1900"}

{"sheet":"Auswertung","index":0,"n_rows":101,"n_cols":44,"rows_kept":101,"merged":[[0,0,0,20],[0,21,0,24],[0,35,3,35],[0,38,3,38],[0,41,3,41]]}
[{"$nulls":36},"Platz 1",{"$f":"VERKETTEN_P1(Z5:Z70,CHAR(10))","v":"Puck, die Fliege.JPG von Susanne Deinhardt"},null,"Platz 2",{"$f":"VERKETTEN_P1(AA5:AA70,CHAR(10))","v":"Pinseltanz.jpg von Gerhard Rieß\nTautropfen.JPG von Susanne Deinhardt"},null,"Platz 3",{"$f":"VERKETTEN_P1(AB5:AB70,CHAR(10))","v":""}]
[{"$nulls":36},"Bestes Bild",null,null,"Bestes Bild",null,null,"Bestes Bild"]
[{"$nulls":36},"Platz 1",{"$f":"VERKETTEN_P1('Statistik nach Autor(in)'!E6:'Statistik nach Autor(in)'!E35,CHAR(10))","v":"Susanne Deinhardt"},null,"Platz 2",{"$f":"VERKETTEN_P1('Statistik nach Autor(in)'!F6:'Statistik nach Autor(in)'!F35,CHAR(10))","v":"Gerhard Rieß"},null,"Platz 3",{"$f":"VERKETTEN_P1('Statistik nach Autor(in)'!G6:'Statistik nach Autor(in)'!G35,CHAR(10))","v":"Andreas Toltz"}]
["Bildname","Juror 1","Juror 2","Juror 3","Juror 4","Juror 5","Juror 6","Juror 7","Juror 8","Juror 9","Juror 10","Juror 11","Juror 12","Juror 13","Juror 14","Juror 15","Juror 16","Juror 17","Juror 18","Juror 19","Juror 20","Punkte","Schnitt","Platz","Autor(in)","Platz 1","Platz 2","Platz 3","Platz 4","Platz 5","Platz 6","Platz 7","Platz 8","Platz 9","Platz 10",null,"Bester Fotograf",null,null,"Bester Fotograf",null,null,"Bester Fotograf"]
["Puck, die Fliege.JPG",10,9,9,{"$nulls":17},{"$f":"IF(Tabelle_Auswertung[[#This Row],[Bildname]]<>\"\",SUM(Tabelle_Auswertung[[#This Row],[Juror 1]:[Juror 20]]),\" - \")","v":28},{"$f":"IF(Tabelle_Auswertung[[#This Row],[Bildname]]<>\"\",IF(Tabelle_Auswertung[[#This Row],[Punkte]]>0,AVERAGE(Tabelle_Auswertung[[#This Row],[Juror 1]:[Juror 20]]),\" - \"),\" - \")","v":{"v":9.333333333333334,"d":"9.33 "}},{"$f":"IF(Tabelle_Auswertung[[#This Row],[Bildname]]<>\"\",IF(Tabelle_Auswertung[[#This Row],[Punkte]]>0,RANK(Tabelle_Auswertung[[#This Row],[Punkte]],[Punkte],0),\" - \"),\" - \")","v":1},"Susanne Deinhardt",{"$f":"IF(Tabelle_Auswertung[[#This Row],[Platz]]=1,CONCATENATE(Tabelle_Auswertung[[#This Row],[Bildname]],\" von \",Tabelle_Auswertung[[#This Row],[Autor(in)]]),\"\")","v":"Puck, die Fliege.JPG von Susanne Deinhardt"},{"$f":"IF(Tabelle_Auswertung[[#This Row],[Platz]]=2,CONCATENATE(Tabelle_Auswertung[[#This Row],[Bildname]],\" von \",Tabelle_Auswertung[[#This Row],[Autor(in)]]),\"\")","v":""},{"$f":"IF(Tabelle_Auswertung[[#This Row],[Platz]]=3,CONCATENATE(Tabelle_Auswertung[[#This Row],[Bildname]],\" von \",Tabelle_Auswertung[[#This Row],[Autor(in)]]),\"\")","v":""},{"$f":"IF(Tabelle_Auswertung[[#This Row],[Platz]]=4,CONCATENATE(Tabelle_Auswertung[[#This Row],[Bildname]],\" von \",Tabelle_Auswertung[[#This Row],[Autor(in)]]),\"\")","v":""},{"$f":"IF(Tabelle_Auswertung[[#This Row],[Platz]]=5,CONCATENATE(Tabelle_Auswertung[[#This Row],[Bildname]],\" von \",Tabelle_Auswertung[[#This Row],[Autor(in)]]),\"\")","v":""},{"$f":"IF(Tabelle_Auswertung[[#This Row],[Platz]]=6,CONCATENATE(Tabelle_Auswertung[[#This Row],[Bildname]],\" von \",Tabelle_Auswertung[[#This Row],[Autor(in)]]),\"\")","v":""},{"$f":"IF(Tabelle_Auswertung[[#This Row],[Platz]]=7,CONCATENATE(Tabelle_Auswertung[[#This Row],[Bildname]],\" von \",Tabelle_Auswertung[[#This Row],[Autor(in)]]),\"\")","v":""},{"$f":"IF(Tabelle_Auswertung[[#This Row],[Platz]]=8,CONCATENATE(Tabelle_Auswertung[[#This Row],[Bildname]],\" von \",Tabelle_Auswertung[[#This Row],[Autor(in)]]),\"\")","v":""},{"$f":"IF(Tabelle_Auswertung[[#This Row],[Platz]]=9,CONCATENATE(Tabelle_Auswertung[[#This Row],[Bildname]],\" von \",Tabelle_Auswertung[[#This Row],[Autor(in)]]),\"\")","v":""},{"$f":"IF(Tabelle_Auswertung[[#This Row],[Platz]]=10,CONCATENATE(Tabelle_Auswertung[[#This Row],[Bildname]],\" von \",Tabelle_Auswertung[[#This Row],[Autor(in)]]),\"\")","v":""}]
["Pinseltanz.jpg",9,7,7,{"$nulls":17},{"$f":"IF(Tabelle_Auswertung[[#This Row],[Bildname]]<>\"\",SUM(Tabelle_Auswertung[[#This Row],[Juror 1]:[Juror 20]]),\" - \")","v":23},{"$f":"IF(Tabelle_Auswertung[[#This Row],[Bildname]]<>\"\",IF(Tabelle_Auswertung[[#This Row],[Punkte]]>0,AVERAGE(Tabelle_Auswertung[[#This Row],[Juror 1]:[Juror 20]]),\" - \"),\" - \")","v":{"v":7.666666666666667,"d":"7.67 "}},{"$f":"IF(Tabelle_Auswertung[[#This Row],[Bildname]]<>\"\",IF(Tabelle_Auswertung[[#This Row],[Punkte]]>0,RANK(Tabelle_Auswertung[[#This Row],[Punkte]],[Punkte],0),\" - \"),\" - \")","v":2},"Gerhard Rieß",{"$f":"IF(Tabelle_Auswertung[[#This Row],[Platz]]=1,CONCATENATE(Tabelle_Auswertung[[#This Row],[Bildname]],\" von \",Tabelle_Auswertung[[#This Row],[Autor(in)]]),\"\")","v":""},{"$f":"IF(Tabelle_Auswertung[[#This Row],[Platz]]=2,CONCATENATE(Tabelle_Auswertung[[#This Row],[Bildname]],\" von \",Tabelle_Auswertung[[#This Row],[Autor(in)]]),\"\")","v":"Pinseltanz.jpg von Gerhard Rieß"},{"$f":"IF(Tabelle_Auswertung[[#This Row],[Platz]]=3,CONCATENATE(Tabelle_Auswertung[[#This Row],[Bildname]],\" von \",Tabelle_Auswertung[[#This Row],[Autor(in)]]),\"\")","v":""},{"$f":"IF(Tabelle_Auswertung[[#This Row],[Platz]]=4,CONCATENATE(Tabelle_Auswertung[[#This Row],[Bildname]],\" von \",Tabelle_Auswertung[[#This Row],[Autor(in)]]),\"\")","v":""},{"$f":"IF(Tabelle_Auswertung[[#This Row],[Platz]]=5,CONCATENATE(Tabelle_Auswertung[[#This Row],[Bildname]],\" von \",Tabelle_Auswertung[[#This Row],[Autor(in)]]),\"\")","v":""},{"$f":"IF(Tabelle_Auswertung[[#This Row],[Platz]]=6,CONCATENATE(Tabelle_Auswertung[[#This Row],[Bildname]],\" von \",Tabelle_Auswertung[[#This Row],[Autor(in)]]),\"\")","v":""},{"$f":"IF(Tabelle_Auswertung[[#This Row],[Platz]]=7,CONCATENATE(Tabelle_Auswertung[[#This Row],[Bildname]],\" von \",Tabelle_Auswertung[[#This Row],[Autor(in)]]),\"\")","v":""},{"$f":"IF(Tabelle_Auswertung[[#This Row],[Platz]]=8,CONCATENATE(Tabelle_Auswertung[[#This Row],[Bildname]],\" von \",Tabelle_Auswertung[[#This Row],[Autor(in)]]),\"\")","v":""},{"$f":"IF(Tabelle_Auswertung[[#This Row],[Platz]]=9,CONCATENATE(Tabelle_Auswertung[[#This Row],[Bildname]],\" von \",Tabelle_Auswertung[[#This Row],[Autor(in)]]),\"\")","v":""},{"$f":"IF(Tabelle_Auswertung[[#This Row],[Platz]]=10,CONCATENATE(Tabelle_Auswertung[[#This Row],[Bildname]],\" von \",Tabelle_Auswertung[[#This Row],[Autor(in)]]),\"\")","v":""},null,"Fotoclub Ansbach"]
["Tautropfen.JPG",9,8,6,{"$nulls":17},{"$f":"IF(Tabelle_Auswertung[[#This Row],[Bildname]]<>\"\",SUM(Tabelle_Auswertung[[#This Row],[Juror 1]:[Juror 20]]),\" - \")","v":23},{"$f":"IF(Tabelle_Auswertung[[#This Row],[Bildname]]<>\"\",IF(Tabelle_Auswertung[[#This Row],[Punkte]]>0,AVERAGE(Tabelle_Auswertung[[#This Row],[Juror 1]:[Juror 20]]),\" - \"),\" - \")","v":{"v":7.666666666666667,"d":"7.67 "}},{"$f":"IF(Tabelle_Auswertung[[#This Row],[Bildname]]<>\"\",IF(Tabelle_Auswertung[[#This Row],[Punkte]]>0,RANK(Tabelle_Auswertung[[#This Row],[Punkte]],[Punkte],0),\" - \"),\" - \")","v":2},"Susanne Deinhardt",{"$f":"IF(Tabelle_Auswertung[[#This Row],[Platz]]=1,CONCATENATE(Tabelle_Auswertung[[#This Row],[Bildname]],\" von \",Tabelle_Auswertung[[#This Row],[Autor(in)]]),\"\")","v":""},{"$f":"IF(Tabelle_Auswertung[[#This Row],[Platz]]=2,CONCATENATE(Tabelle_Auswertung[[#This Row],[Bildname]],\" von \",Tabelle_Auswertung[[#This Row],[Autor(in)]]),\"\")","v":"Tautropfen.JPG von Susanne Deinhardt"},{"$f":"IF(Tabelle_Auswertung[[#This Row],[Platz]]=3,CONCATENATE(Tabelle_Auswertung[[#This Row],[Bildname]],\" von \",Tabelle_Auswertung[[#This Row],[Autor(in)]]),\"\")","v":""},{"$f":"IF(Tabelle_Auswertung[[#This Row],[Platz]]=4,CONCATENATE(Tabelle_Auswertung[[#This Row],[Bildname]],\" von \",Tabelle_Auswertung[[#This Row],[Autor(in)]]),\"\")","v":""},{"$f":"IF(Tabelle_Auswertung[[#This Row],[Platz]]=5,CONCATENATE(Tabelle_Auswertung[[#This Row],[Bildname]],\" von \",Tabelle_Auswertung[[#This Row],[Autor(in)]]),\"\")","v":""},{"$f":"IF(Tabelle_Auswertung[[#This Row],[Platz]]=6,CONCATENATE(Tabelle_Auswertung[[#This Row],[Bildname]],\" von \",Tabelle_Auswertung[[#This Row],[Autor(in)]]),\"\")","v":""},{"$f":"IF(Tabelle_Auswertung[[#This Row],[Platz]]=7,CONCATENATE(Tabelle_Auswertung[[#This Row],[Bildname]],\" von \",Tabelle_Auswertung[[#This Row],[Autor(in)]]),\"\")","v":""},{"$f":"IF(Tabelle_Auswertung[[#This Row],[Platz]]=8,CONCATENATE(Tabelle_Auswertung[[#This Row],[Bildname]],\" von \",Tabelle_Auswertung[[#This Row],[Autor(in)]]),\"\")","v":""},{"$f":"IF(Tabelle_Auswertung[[#This Row],[Platz]]=9,CONCATENATE(Tabelle_Auswertung[[#This Row],[Bildname]],\" von \",Tabelle_Auswertung[[#This Row],[Autor(in)]]),\"\")","v":""},{"$f":"IF(Tabelle_Auswertung[[#This Row],[Platz]]=10,CONCATENATE(Tabelle_Auswertung[[#This Row],[Bildname]],\" von \",Tabelle_Auswertung[[#This Row],[Autor(in)]]),\"\")","v":""}]
["Ready to take off.jpg",9,6,7,{"$nulls":17},{"$f":"IF(Tabelle_Auswertung[[#This Row],[Bildname]]<>\"\",SUM(Tabelle_Auswertung[[#This Row],[Juror 1]:[Juror 20]]),\" - \")","v":22},{"$f":"IF(Tabelle_Auswertung[[#This Row],[Bildname]]<>\"\",IF(Tabelle_Auswertung[[#This Row],[Punkte]]>0,AVERAGE(Tabelle_Auswertung[[#This Row],[Juror 1]:[Juror 20]]),\" - \"),\" - \")","v":7.333333333333333},{"$f":"IF(Tabelle_Auswertung[[#This Row],[Bildname]]<>\"\",IF(Tabelle_Auswertung[[#This Row],[Punkte]]>0,RANK(Tabelle_Auswertung[[#This Row],[Punkte]],[Punkte],0),\" - \"),\" - \")","v":4},"Jan Grünler",{"$f":"IF(Tabelle_Auswertung[[#This Row],[Platz]]=1,CONCATENATE(Tabelle_Auswertung[[#This Row],[Bildname]],\" von \",Tabelle_Auswertung[[#This Row],[Autor(in)]]),\"\")","v":""},{"$f":"IF(Tabelle_Auswertung[[#This Row],[Platz]]=2,CONCATENATE(Tabelle_Auswertung[[#This Row],[Bildname]],\" von \",Tabelle_Auswertung[[#This Row],[Autor(in)]]),\"\")","v":""},{"$f":"IF(Tabelle_Auswertung[[#This Row],[Platz]]=3,CONCATENATE(Tabelle_Auswertung[[#This Row],[Bildname]],\" von \",Tabelle_Auswertung[[#This Row],[Autor(in)]]),\"\")","v":""},{"$f":"IF(Tabelle_Auswertung[[#This Row],[Platz]]=4,CONCATENATE(Tabelle_Auswertung[[#This Row],[Bildname]],\" von \",Tabelle_Auswertung[[#This Row],[Autor(in)]]),\"\")","v":"Ready to take off.jpg von Jan Grünler"},{"$f":"IF(Tabelle_Auswertung[[#This Row],[Platz]]=5,CONCATENATE(Tabelle_Auswertung[[#This Row],[Bildname]],\" von \",Tabelle_Auswertung[[#This Row],[Autor(in)]]),\"\")","v":""},{"$f":"IF(Tabelle_Auswertung[[#This Row],[Platz]]=6,CONCATENATE(Tabelle_Auswertung[[#This Row],[Bildname]],\" von \",Tabelle_Auswertung[[#This Row],[Autor(in)]]),\"\")","v":""},{"$f":"IF(Tabelle_Auswertung[[#This Row],[Platz]]=7,CONCATENATE(Tabelle_Auswertung[[#This Row],[Bildname]],\" von \",Tabelle_Auswertung[[#This Row],[Autor(in)]]),\"\")","v":""},{"$f":"IF(Tabelle_Auswertung[[#This Row],[Platz]]=8,CONCATENATE(Tabelle_Auswertung[[#This Row],[Bildname]],\" von \",Tabelle_Auswertung[[#This Row],[Autor(in)]]),\"\")","v":""},{"$f":"IF(Tabelle_Auswertung[[#This Row],[Platz]]=9,CONCATENATE(Tabelle_Auswertung[[#This Row],[Bildname]],\" von \",Tabelle_Auswertung[[#This Row],[Autor(in)]]),\"\")","v":""},{"$f":"IF(Tabelle_Auswertung[[#This Row],[Platz]]=10,CONCATENATE(Tabelle_Auswertung[[#This Row],[Bildname]],\" von \",Tabelle_Auswertung[[#This Row],[Autor(in)]]),\"\")","v":""}]
["Stairs.jpg",8,8,6,{"$nulls":17},{"$f":"IF(Tabelle_Auswertung[[#This Row],[Bildname]]<>\"\",SUM(Tabelle_Auswertung[[#This Row],[Juror 1]:[Juror 20]]),\" - \")","v":22},{"$f":"IF(Tabelle_Auswertung[[#This Row],[Bildname]]<>\"\",IF(Tabelle_Auswertung[[#This Row],[Punkte]]>0,AVERAGE(Tabelle_Auswertung[[#This Row],[Juror 1]:[Juror 20]]),\" - \"),\" - \")","v":{"v":7.333333333333333,"d":"7.33 "}},{"$f":"IF(Tabelle_Auswertung[[#This Row],[Bildname]]<>\"\",IF(Tabelle_Auswertung[[#This Row],[Punkte]]>0,RANK(Tabelle_Auswertung[[#This Row],[Punkte]],[Punkte],0),\" - \"),\" - \")","v":4},"Andreas Toltz",{"$f":"IF(Tabelle_Auswertung[[#This Row],[Platz]]=1,CONCATENATE(Tabelle_Auswertung[[#This Row],[Bildname]],\" von \",Tabelle_Auswertung[[#This Row],[Autor(in)]]),\"\")","v":""},{"$f":"IF(Tabelle_Auswertung[[#This Row],[Platz]]=2,CONCATENATE(Tabelle_Auswertung[[#This Row],[Bildname]],\" von \",Tabelle_Auswertung[[#This Row],[Autor(in)]]),\"\")","v":""},{"$f":"IF(Tabelle_Auswertung[[#This Row],[Platz]]=3,CONCATENATE(Tabelle_Auswertung[[#This Row],[Bildname]],\" von \",Tabelle_Auswertung[[#This Row],[Autor(in)]]),\"\")","v":""},{"$f":"IF(Tabelle_Auswertung[[#This Row],[Platz]]=4,CONCATENATE(Tabelle_Auswertung[[#This Row],[Bildname]],\" von \",Tabelle_Auswertung[[#This Row],[Autor(in)]]),\"\")","v":"Stairs.jpg von Andreas Toltz"},{"$f":"IF(Tabelle_Auswertung[[#This Row],[Platz]]=5,CONCATENATE(Tabelle_Auswertung[[#This Row],[Bildname]],\" von \",Tabelle_Auswertung[[#This Row],[Autor(in)]]),\"\")","v":""},{"$f":"IF(Tabelle_Auswertung[[#This Row],[Platz]]=6,CONCATENATE(Tabelle_Auswertung[[#This Row],[Bildname]],\" von \",Tabelle_Auswertung[[#This Row],[Autor(in)]]),\"\")","v":""},{"$f":"IF(Tabelle_Auswertung[[#This Row],[Platz]]=7,CONCATENATE(Tabelle_Auswertung[[#This Row],[Bildname]],\" von \",Tabelle_Auswertung[[#This Row],[Autor(in)]]),\"\")","v":""},{"$f":"IF(Tabelle_Auswertung[[#This Row],[Platz]]=8,CONCATENATE(Tabelle_Auswertung[[#This Row],[Bildname]],\" von \",Tabelle_Auswertung[[#This Row],[Autor(in)]]),\"\")","v":""},{"$f":"IF(Tabelle_Auswertung[[#This Row],[Platz]]=9,CONCATENATE(Tabelle_Auswertung[[#This Row],[Bildname]],\" von \",Tabelle_Auswertung[[#This Row],[Autor(in)]]),\"\")","v":""},{"$f":"IF(Tabelle_Auswertung[[#This Row],[Platz]]=10,CONCATENATE(Tabelle_Auswertung[[#This Row],[Bildname]],\" von \",Tabelle_Auswertung[[#This Row],[Autor(in)]]),\"\")","v":""}]
["Maja.jpg",8,7,6,{"$nulls":17},{"$f":"IF(Tabelle_Auswertung[[#This Row],[Bildname]]<>\"\",SUM(Tabelle_Auswertung[[#This Row],[Juror 1]:[Juror 20]]),\" - \")","v":21},{"$f":"IF(Tabelle_Auswertung[[#This Row],[Bildname]]<>\"\",IF(Tabelle_Auswertung[[#This Row],[Punkte]]>0,AVERAGE(Tabelle_Auswertung[[#This Row],[Juror 1]:[Juror 20]]),\" - \"),\" - \")","v":{"v":7,"d":"7.00 "}},{"$f":"IF(Tabelle_Auswertung[[#This Row],[Bildname]]<>\"\",IF(Tabelle_Auswertung[[#This Row],[Punkte]]>0,RANK(Tabelle_Auswertung[[#This Row],[Punkte]],[Punkte],0),\" - \"),\" - \")","v":6},"Gerhard Rieß",{"$f":"IF(Tabelle_Auswertung[[#This Row],[Platz]]=1,CONCATENATE(Tabelle_Auswertung[[#This Row],[Bildname]],\" von \",Tabelle_Auswertung[[#This Row],[Autor(in)]]),\"\")","v":""},{"$f":"IF(Tabelle_Auswertung[[#This Row],[Platz]]=2,CONCATENATE(Tabelle_Auswertung[[#This Row],[Bildname]],\" von \",Tabelle_Auswertung[[#This Row],[Autor(in)]]),\"\")","v":""},{"$f":"IF(Tabelle_Auswertung[[#This Row],[Platz]]=3,CONCATENATE(Tabelle_Auswertung[[#This Row],[Bildname]],\" von \",Tabelle_Auswertung[[#This Row],[Autor(in)]]),\"\")","v":""},{"$f":"IF(Tabelle_Auswertung[[#This Row],[Platz]]=4,CONCATENATE(Tabelle_Auswertung[[#This Row],[Bildname]],\" von \",Tabelle_Auswertung[[#This Row],[Autor(in)]]),\"\")","v":""},{"$f":"IF(Tabelle_Auswertung[[#This Row],[Platz]]=5,CONCATENATE(Tabelle_Auswertung[[#This Row],[Bildname]],\" von \",Tabelle_Auswertung[[#This Row],[Autor(in)]]),\"\")","v":""},{"$f":"IF(Tabelle_Auswertung[[#This Row],[Platz]]=6,CONCATENATE(Tabelle_Auswertung[[#This Row],[Bildname]],\" von \",Tabelle_Auswertung[[#This Row],[Autor(in)]]),\"\")","v":"Maja.jpg von Gerhard Rieß"},{"$f":"IF(Tabelle_Auswertung[[#This Row],[Platz]]=7,CONCATENATE(Tabelle_Auswertung[[#This Row],[Bildname]],\" von \",Tabelle_Auswertung[[#This Row],[Autor(in)]]),\"\")","v":""},{"$f":"IF(Tabelle_Auswertung[[#This Row],[Platz]]=8,CONCATENATE(Tabelle_Auswertung[[#This Row],[Bildname]],\" von \",Tabelle_Auswertung[[#This Row],[Autor(in)]]),\"\")","v":""},{"$f":"IF(Tabelle_Auswertung[[#This Row],[Platz]]=9,CONCATENATE(Tabelle_Auswertung[[#This Row],[Bildname]],\" von \",Tabelle_Auswertung[[#This Row],[Autor(in)]]),\"\")","v":""},{"$f":"IF(Tabelle_Auswertung[[#This Row],[Platz]]=10,CONCATENATE(Tabelle_Auswertung[[#This Row],[Bildname]],\" von \",Tabelle_Auswertung[[#This Row],[Autor(in)]]),\"\")","v":""}]
["Moos.jpg",8,8,5,{"$nulls":17},{"$f":"IF(Tabelle_Auswertung[[#This Row],[Bildname]]<>\"\",SUM(Tabelle_Auswertung[[#This Row],[Juror 1]:[Juror 20]]),\" - \")","v":21},{"$f":"IF(Tabelle_Auswertung[[#This Row],[Bildname]]<>\"\",IF(Tabelle_Auswertung[[#This Row],[Punkte]]>0,AVERAGE(Tabelle_Auswertung[[#This Row],[Juror 1]:[Juror 20]]),\" - \"),\" - \")","v":{"v":7,"d":"7.00 "}},{"$f":"IF(Tabelle_Auswertung[[#This Row],[Bildname]]<>\"\",IF(Tabelle_Auswertung[[#This Row],[Punkte]]>0,RANK(Tabelle_Auswertung[[#This Row],[Punkte]],[Punkte],0),\" - \"),\" - \")","v":6},"Chris Finsterer",{"$f":"IF(Tabelle_Auswertung[[#This Row],[Platz]]=1,CONCATENATE(Tabelle_Auswertung[[#This Row],[Bildname]],\" von \",Tabelle_Auswertung[[#This Row],[Autor(in)]]),\"\")","v":""},{"$f":"IF(Tabelle_Auswertung[[#This Row],[Platz]]=2,CONCATENATE(Tabelle_Auswertung[[#This Row],[Bildname]],\" von \",Tabelle_Auswertung[[#This Row],[Autor(in)]]),\"\")","v":""},{"$f":"IF(Tabelle_Auswertung[[#This Row],[Platz]]=3,CONCATENATE(Tabelle_Auswertung[[#This Row],[Bildname]],\" von \",Tabelle_Auswertung[[#This Row],[Autor(in)]]),\"\")","v":""},{"$f":"IF(Tabelle_Auswertung[[#This Row],[Platz]]=4,CONCATENATE(Tabelle_Auswertung[[#This Row],[Bildname]],\" von \",Tabelle_Auswertung[[#This Row],[Autor(in)]]),\"\")","v":""},{"$f":"IF(Tabelle_Auswertung[[#This Row],[Platz]]=5,CONCATENATE(Tabelle_Auswertung[[#This Row],[Bildname]],\" von \",Tabelle_Auswertung[[#This Row],[Autor(in)]]),\"\")","v":""},{"$f":"IF(Tabelle_Auswertung[[#This Row],[Platz]]=6,CONCATENATE(Tabelle_Auswertung[[#This Row],[Bildname]],\" von \",Tabelle_Auswertung[[#This Row],[Autor(in)]]),\"\")","v":"Moos.jpg von Chris Finsterer"},{"$f":"IF(Tabelle_Auswertung[[#This Row],[Platz]]=7,CONCATENATE(Tabelle_Auswertung[[#This Row],[Bildname]],\" von \",Tabelle_Auswertung[[#This Row],[Autor(in)]]),\"\")","v":""},{"$f":"IF(Tabelle_Auswertung[[#This Row],[Platz]]=8,CONCATENATE(Tabelle_Auswertung[[#This Row],[Bildname]],\" von \",Tabelle_Auswertung[[#This Row],[Autor(in)]]),\"\")","v":""},{"$f":"IF(Tabelle_Auswertung[[#This Row],[Platz]]=9,CONCATENATE(Tabelle_Auswertung[[#This Row],[Bildname]],\" von \",Tabelle_Auswertung[[#This Row],[Autor(in)]]),\"\")","v":""},{"$f":"IF(Tabelle_Auswertung[[#This Row],[Platz]]=10,CONCATENATE(Tabelle_Auswertung[[#This Row],[Bildname]],\" von \",Tabelle_Auswertung[[#This Row],[Autor(in)]]),\"\")","v":""}]
["cedok.jpg",8,6,6,{"$nulls":17},{"$f":"IF(Tabelle_Auswertung[[#This Row],[Bildname]]<>\"\",SUM(Tabelle_Auswertung[[#This Row],[Juror 1]:[Juror 20]]),\" - \")","v":20},{"$f":"IF(Tabelle_Auswertung[[#This Row],[Bildname]]<>\"\",IF(Tabelle_Auswertung[[#This Row],[Punkte]]>0,AVERAGE(Tabelle_Auswertung[[#This Row],[Juror 1]:[Juror 20]]),\" - \"),\" - \")","v":{"v":6.666666666666667,"d":"6.67 "}},{"$f":"IF(Tabelle_Auswertung[[#This Row],[Bildname]]<>\"\",IF(Tabelle_Auswertung[[#This Row],[Punkte]]>0,RANK(Tabelle_Auswertung[[#This Row],[Punkte]],[Punkte],0),\" - \"),\" - \")","v":8},"Chris Finsterer",{"$f":"IF(Tabelle_Auswertung[[#This Row],[Platz]]=1,CONCATENATE(Tabelle_Auswertung[[#This Row],[Bildname]],\" von \",Tabelle_Auswertung[[#This Row],[Autor(in)]]),\"\")","v":""},{"$f":"IF(Tabelle_Auswertung[[#This Row],[Platz]]=2,CONCATENATE(Tabelle_Auswertung[[#This Row],[Bildname]],\" von \",Tabelle_Auswertung[[#This Row],[Autor(in)]]),\"\")","v":""},{"$f":"IF(Tabelle_Auswertung[[#This Row],[Platz]]=3,CONCATENATE(Tabelle_Auswertung[[#This Row],[Bildname]],\" von \",Tabelle_Auswertung[[#This Row],[Autor(in)]]),\"\")","v":""},{"$f":"IF(Tabelle_Auswertung[[#This Row],[Platz]]=4,CONCATENATE(Tabelle_Auswertung[[#This Row],[Bildname]],\" von \",Tabelle_Auswertung[[#This Row],[Autor(in)]]),\"\")","v":""},{"$f":"IF(Tabelle_Auswertung[[#This Row],[Platz]]=5,CONCATENATE(Tabelle_Auswertung[[#This Row],[Bildname]],\" von \",Tabelle_Auswertung[[#This Row],[Autor(in)]]),\"\")","v":""},{"$f":"IF(Tabelle_Auswertung[[#This Row],[Platz]]=6,CONCATENATE(Tabelle_Auswertung[[#This Row],[Bildname]],\" von \",Tabelle_Auswertung[[#This Row],[Autor(in)]]),\"\")","v":""},{"$f":"IF(Tabelle_Auswertung[[#This Row],[Platz]]=7,CONCATENATE(Tabelle_Auswertung[[#This Row],[Bildname]],\" von \",Tabelle_Auswertung[[#This Row],[Autor(in)]]),\"\")","v":""},{"$f":"IF(Tabelle_Auswertung[[#This Row],[Platz]]=8,CONCATENATE(Tabelle_Auswertung[[#This Row],[Bildname]],\" von \",Tabelle_Auswertung[[#This Row],[Autor(in)]]),\"\")","v":"cedok.jpg von Chris Finsterer"},{"$f":"IF(Tabelle_Auswertung[[#This Row],[Platz]]=9,CONCATENATE(Tabelle_Auswertung[[#This Row],[Bildname]],\" von \",Tabelle_Auswertung[[#This Row],[Autor(in)]]),\"\")","v":""},{"$f":"IF(Tabelle_Auswertung[[#This Row],[Platz]]=10,CONCATENATE(Tabelle_Auswertung[[#This Row],[Bildname]],\" von \",Tabelle_Auswertung[[#This Row],[Autor(in)]]),\"\")","v":""}]
["dicke Raupe.JPG",7,7,6,{"$nulls":17},{"$f":"IF(Tabelle_Auswertung[[#This Row],[Bildname]]<>\"\",SUM(Tabelle_Auswertung[[#This Row],[Juror 1]:[Juror 20]]),\" - \")","v":20},{"$f":"IF(Tabelle_Auswertung[[#This Row],[Bildname]]<>\"\",IF(Tabelle_Auswertung[[#This Row],[Punkte]]>0,AVERAGE(Tabelle_Auswertung[[#This Row],[Juror 1]:[Juror 20]]),\" - \"),\" - \")","v":{"v":6.666666666666667,"d":"6.67 "}},{"$f":"IF(Tabelle_Auswertung[[#This Row],[Bildname]]<>\"\",IF(Tabelle_Auswertung[[#This Row],[Punkte]]>0,RANK(Tabelle_Auswertung[[#This Row],[Punkte]],[Punkte],0),\" - \"),\" - \")","v":8},"Susanne Deinhardt",{"$f":"IF(Tabelle_Auswertung[[#This Row],[Platz]]=1,CONCATENATE(Tabelle_Auswertung[[#This Row],[Bildname]],\" von \",Tabelle_Auswertung[[#This Row],[Autor(in)]]),\"\")","v":""},{"$f":"IF(Tabelle_Auswertung[[#This Row],[Platz]]=2,CONCATENATE(Tabelle_Auswertung[[#This Row],[Bildname]],\" von \",Tabelle_Auswertung[[#This Row],[Autor(in)]]),\"\")","v":""},{"$f":"IF(Tabelle_Auswertung[[#This Row],[Platz]]=3,CONCATENATE(Tabelle_Auswertung[[#This Row],[Bildname]],\" von \",Tabelle_Auswertung[[#This Row],[Autor(in)]]),\"\")","v":""},{"$f":"IF(Tabelle_Auswertung[[#This Row],[Platz]]=4,CONCATENATE(Tabelle_Auswertung[[#This Row],[Bildname]],\" von \",Tabelle_Auswertung[[#This Row],[Autor(in)]]),\"\")","v":""},{"$f":"IF(Tabelle_Auswertung[[#This Row],[Platz]]=5,CONCATENATE(Tabelle_Auswertung[[#This Row],[Bildname]],\" von \",Tabelle_Auswertung[[#This Row],[Autor(in)]]),\"\")","v":""},{"$f":"IF(Tabelle_Auswertung[[#This Row],[Platz]]=6,CONCATENATE(Tabelle_Auswertung[[#This Row],[Bildname]],\" von \",Tabelle_Auswertung[[#This Row],[Autor(in)]]),\"\")","v":""},{"$f":"IF(Tabelle_Auswertung[[#This Row],[Platz]]=7,CONCATENATE(Tabelle_Auswertung[[#This Row],[Bildname]],\" von \",Tabelle_Auswertung[[#This Row],[Autor(in)]]),\"\")","v":""},{"$f":"IF(Tabelle_Auswertung[[#This Row],[Platz]]=8,CONCATENATE(Tabelle_Auswertung[[#This Row],[Bildname]],\" von \",Tabelle_Auswertung[[#This Row],[Autor(in)]]),\"\")","v":"dicke Raupe.JPG von Susanne Deinhardt"},{"$f":"IF(Tabelle_Auswertung[[#This Row],[Platz]]=9,CONCATENATE(Tabelle_Auswertung[[#This Row],[Bildname]],\" von \",Tabelle_Auswertung[[#This Row],[Autor(in)]]),\"\")","v":""},{"$f":"IF(Tabelle_Auswertung[[#This Row],[Platz]]=10,CONCATENATE(Tabelle_Auswertung[[#This Row],[Bildname]],\" von \",Tabelle_Auswertung[[#This Row],[Autor(in)]]),\"\")","v":""}]
["heavy metal.jpg",7,6,7,{"$nulls":17},{"$f":"IF(Tabelle_Auswertung[[#This Row],[Bildname]]<>\"\",SUM(Tabelle_Auswertung[[#This Row],[Juror 1]:[Juror 20]]),\" - \")","v":20},{"$f":"IF(Tabelle_Auswertung[[#This Row],[Bildname]]<>\"\",IF(Tabelle_Auswertung[[#This Row],[Punkte]]>0,AVERAGE(Tabelle_Auswertung[[#This Row],[Juror 1]:[Juror 20]]),\" - \"),\" - \")","v":{"v":6.666666666666667,"d":"6.67 "}},{"$f":"IF(Tabelle_Auswertung[[#This Row],[Bildname]]<>\"\",IF(Tabelle_Auswertung[[#This Row],[Punkte]]>0,RANK(Tabelle_Auswertung[[#This Row],[Punkte]],[Punkte],0),\" - \"),\" - \")","v":8},"Gerhard Rieß",{"$f":"IF(Tabelle_Auswertung[[#This Row],[Platz]]=1,CONCATENATE(Tabelle_Auswertung[[#This Row],[Bildname]],\" von \",Tabelle_Auswertung[[#This Row],[Autor(in)]]),\"\")","v":""},{"$f":"IF(Tabelle_Auswertung[[#This Row],[Platz]]=2,CONCATENATE(Tabelle_Auswertung[[#This Row],[Bildname]],\" von \",Tabelle_Auswertung[[#This Row],[Autor(in)]]),\"\")","v":""},{"$f":"IF(Tabelle_Auswertung[[#This Row],[Platz]]=3,CONCATENATE(Tabelle_Auswertung[[#This Row],[Bildname]],\" von \",Tabelle_Auswertung[[#This Row],[Autor(in)]]),\"\")","v":""},{"$f":"IF(Tabelle_Auswertung[[#This Row],[Platz]]=4,CONCATENATE(Tabelle_Auswertung[[#This Row],[Bildname]],\" von \",Tabelle_Auswertung[[#This Row],[Autor(in)]]),\"\")","v":""},{"$f":"IF(Tabelle_Auswertung[[#This Row],[Platz]]=5,CONCATENATE(Tabelle_Auswertung[[#This Row],[Bildname]],\" von \",Tabelle_Auswertung[[#This Row],[Autor(in)]]),\"\")","v":""},{"$f":"IF(Tabelle_Auswertung[[#This Row],[Platz]]=6,CONCATENATE(Tabelle_Auswertung[[#This Row],[Bildname]],\" von \",Tabelle_Auswertung[[#This Row],[Autor(in)]]),\"\")","v":""},{"$f":"IF(Tabelle_Auswertung[[#This Row],[Platz]]=7,CONCATENATE(Tabelle_Auswertung[[#This Row],[Bildname]],\" von \",Tabelle_Auswertung[[#This Row],[Autor(in)]]),\"\")","v":""},{"$f":"IF(Tabelle_Auswertung[[#This Row],[Platz]]=8,CONCATENATE(Tabelle_Auswertung[[#This Row],[Bildname]],\" von \",Tabelle_Auswertung[[#This Row],[Autor(in)]]),\"\")","v":"heavy metal.jpg von Gerhard Rieß"},{"$f":"IF(Tabelle_Auswertung[[#This Row],[Platz]]=9,CONCATENATE(Tabelle_Auswertung[[#This Row],[Bildname]],\" von \",Tabelle_Auswertung[[#This Row],[Autor(in)]]),\"\")","v":""},{"$f":"IF(Tabelle_Auswertung[[#This Row],[Platz]]=10,CONCATENATE(Tabelle_Auswertung[[#This Row],[Bildname]],\" von \",Tabelle_Auswertung[[#This Row],[Autor(in)]]),\"\")","v":""}]
["Love1.JPG",7,5,8,{"$nulls":17},{"$f":"IF(Tabelle_Auswertung[[#This Row],[Bildname]]<>\"\",SUM(Tabelle_Auswertung[[#This Row],[Juror 1]:[Juror 20]]),\" - \")","v":20},{"$f":"IF(Tabelle_Auswertung[[#This Row],[Bildname]]<>\"\",IF(Tabelle_Auswertung[[#This Row],[Punkte]]>0,AVERAGE(Tabelle_Auswertung[[#This Row],[Juror 1]:[Juror 20]]),\" - \"),\" - \")","v":{"v":6.666666666666667,"d":"6.67 "}},{"$f":"IF(Tabelle_Auswertung[[#This Row],[Bildname]]<>\"\",IF(Tabelle_Auswertung[[#This Row],[Punkte]]>0,RANK(Tabelle_Auswertung[[#This Row],[Punkte]],[Punkte],0),\" - \"),\" - \")","v":8},"Andreas Toltz",{"$f":"IF(Tabelle_Auswertung[[#This Row],[Platz]]=1,CONCATENATE(Tabelle_Auswertung[[#This Row],[Bildname]],\" von \",Tabelle_Auswertung[[#This Row],[Autor(in)]]),\"\")","v":""},{"$f":"IF(Tabelle_Auswertung[[#This Row],[Platz]]=2,CONCATENATE(Tabelle_Auswertung[[#This Row],[Bildname]],\" von \",Tabelle_Auswertung[[#This Row],[Autor(in)]]),\"\")","v":""},{"$f":"IF(Tabelle_Auswertung[[#This Row],[Platz]]=3,CONCATENATE(Tabelle_Auswertung[[#This Row],[Bildname]],\" von \",Tabelle_Auswertung[[#This Row],[Autor(in)]]),\"\")","v":""},{"$f":"IF(Tabelle_Auswertung[[#This Row],[Platz]]=4,CONCATENATE(Tabelle_Auswertung[[#This Row],[Bildname]],\" von \",Tabelle_Auswertung[[#This Row],[Autor(in)]]),\"\")","v":""},{"$f":"IF(Tabelle_Auswertung[[#This Row],[Platz]]=5,CONCATENATE(Tabelle_Auswertung[[#This Row],[Bildname]],\" von \",Tabelle_Auswertung[[#This Row],[Autor(in)]]),\"\")","v":""},{"$f":"IF(Tabelle_Auswertung[[#This Row],[Platz]]=6,CONCATENATE(Tabelle_Auswertung[[#This Row],[Bildname]],\" von \",Tabelle_Auswertung[[#This Row],[Autor(in)]]),\"\")","v":""},{"$f":"IF(Tabelle_Auswertung[[#This Row],[Platz]]=7,CONCATENATE(Tabelle_Auswertung[[#This Row],[Bildname]],\" von \",Tabelle_Auswertung[[#This Row],[Autor(in)]]),\"\")","v":""},{"$f":"IF(Tabelle_Auswertung[[#This Row],[Platz]]=8,CONCATENATE(Tabelle_Auswertung[[#This Row],[Bildname]],\" von \",Tabelle_Auswertung[[#This Row],[Autor(in)]]),\"\")","v":"Love1.JPG von Andreas Toltz"},{"$f":"IF(Tabelle_Auswertung[[#This Row],[Platz]]=9,CONCATENATE(Tabelle_Auswertung[[#This Row],[Bildname]],\" von \",Tabelle_Auswertung[[#This Row],[Autor(in)]]),\"\")","v":""},{"$f":"IF(Tabelle_Auswertung[[#This Row],[Platz]]=10,CONCATENATE(Tabelle_Auswertung[[#This Row],[Bildname]],\" von \",Tabelle_Auswertung[[#This Row],[Autor(in)]]),\"\")","v":""}]
["Fleetschloß.jpg",8,6,5,{"$nulls":17},{"$f":"IF(Tabelle_Auswertung[[#This Row],[Bildname]]<>\"\",SUM(Tabelle_Auswertung[[#This Row],[Juror 1]:[Juror 20]]),\" - \")","v":19},{"$f":"IF(Tabelle_Auswertung[[#This Row],[Bildname]]<>\"\",IF(Tabelle_Auswertung[[#This Row],[Punkte]]>0,AVERAGE(Tabelle_Auswertung[[#This Row],[Juror 1]:[Juror 20]]),\" - \"),\" - \")","v":{"v":6.333333333333333,"d":"6.33 "}},{"$f":"IF(Tabelle_Auswertung[[#This Row],[Bildname]]<>\"\",IF(Tabelle_Auswertung[[#This Row],[Punkte]]>0,RANK(Tabelle_Auswertung[[#This Row],[Punkte]],[Punkte],0),\" - \"),\" - \")","v":12},"Andreas Toltz",{"$f":"IF(Tabelle_Auswertung[[#This Row],[Platz]]=1,CONCATENATE(Tabelle_Auswertung[[#This Row],[Bildname]],\" von \",Tabelle_Auswertung[[#This Row],[Autor(in)]]),\"\")","v":""},{"$f":"IF(Tabelle_Auswertung[[#This Row],[Platz]]=2,CONCATENATE(Tabelle_Auswertung[[#This Row],[Bildname]],\" von \",Tabelle_Auswertung[[#This Row],[Autor(in)]]),\"\")","v":""},{"$f":"IF(Tabelle_Auswertung[[#This Row],[Platz]]=3,CONCATENATE(Tabelle_Auswertung[[#This Row],[Bildname]],\" von \",Tabelle_Auswertung[[#This Row],[Autor(in)]]),\"\")","v":""},{"$f":"IF(Tabelle_Auswertung[[#This Row],[Platz]]=4,CONCATENATE(Tabelle_Auswertung[[#This Row],[Bildname]],\" von \",Tabelle_Auswertung[[#This Row],[Autor(in)]]),\"\")","v":""},{"$f":"IF(Tabelle_Auswertung[[#This Row],[Platz]]=5,CONCATENATE(Tabelle_Auswertung[[#This Row],[Bildname]],\" von \",Tabelle_Auswertung[[#This Row],[Autor(in)]]),\"\")","v":""},{"$f":"IF(Tabelle_Auswertung[[#This Row],[Platz]]=6,CONCATENATE(Tabelle_Auswertung[[#This Row],[Bildname]],\" von \",Tabelle_Auswertung[[#This Row],[Autor(in)]]),\"\")","v":""},{"$f":"IF(Tabelle_Auswertung[[#This Row],[Platz]]=7,CONCATENATE(Tabelle_Auswertung[[#This Row],[Bildname]],\" von \",Tabelle_Auswertung[[#This Row],[Autor(in)]]),\"\")","v":""},{"$f":"IF(Tabelle_Auswertung[[#This Row],[Platz]]=8,CONCATENATE(Tabelle_Auswertung[[#This Row],[Bildname]],\" von \",Tabelle_Auswertung[[#This Row],[Autor(in)]]),\"\")","v":""},{"$f":"IF(Tabelle_Auswertung[[#This Row],[Platz]]=9,CONCATENATE(Tabelle_Auswertung[[#This Row],[Bildname]],\" von \",Tabelle_Auswertung[[#This Row],[Autor(in)]]),\"\")","v":""},{"$f":"IF(Tabelle_Auswertung[[#This Row],[Platz]]=10,CONCATENATE(Tabelle_Auswertung[[#This Row],[Bildname]],\" von \",Tabelle_Auswertung[[#This Row],[Autor(in)]]),\"\")","v":""}]
["Nebelwiese.JPG",7,6,6,{"$nulls":17},{"$f":"IF(Tabelle_Auswertung[[#This Row],[Bildname]]<>\"\",SUM(Tabelle_Auswertung[[#This Row],[Juror 1]:[Juror 20]]),\" - \")","v":19},{"$f":"IF(Tabelle_Auswertung[[#This Row],[Bildname]]<>\"\",IF(Tabelle_Auswertung[[#This Row],[Punkte]]>0,AVERAGE(Tabelle_Auswertung[[#This Row],[Juror 1]:[Juror 20]]),\" - \"),\" - \")","v":6.333333333333333},{"$f":"IF(Tabelle_Auswertung[[#This Row],[Bildname]]<>\"\",IF(Tabelle_Auswertung[[#This Row],[Punkte]]>0,RANK(Tabelle_Auswertung[[#This Row],[Punkte]],[Punkte],0),\" - \"),\" - \")","v":12},"Susanne Deinhardt",{"$f":"IF(Tabelle_Auswertung[[#This Row],[Platz]]=1,CONCATENATE(Tabelle_Auswertung[[#This Row],[Bildname]],\" von \",Tabelle_Auswertung[[#This Row],[Autor(in)]]),\"\")","v":""},{"$f":"IF(Tabelle_Auswertung[[#This Row],[Platz]]=2,CONCATENATE(Tabelle_Auswertung[[#This Row],[Bildname]],\" von \",Tabelle_Auswertung[[#This Row],[Autor(in)]]),\"\")","v":""},{"$f":"IF(Tabelle_Auswertung[[#This Row],[Platz]]=3,CONCATENATE(Tabelle_Auswertung[[#This Row],[Bildname]],\" von \",Tabelle_Auswertung[[#This Row],[Autor(in)]]),\"\")","v":""},{"$f":"IF(Tabelle_Auswertung[[#This Row],[Platz]]=4,CONCATENATE(Tabelle_Auswertung[[#This Row],[Bildname]],\" von \",Tabelle_Auswertung[[#This Row],[Autor(in)]]),\"\")","v":""},{"$f":"IF(Tabelle_Auswertung[[#This Row],[Platz]]=5,CONCATENATE(Tabelle_Auswertung[[#This Row],[Bildname]],\" von \",Tabelle_Auswertung[[#This Row],[Autor(in)]]),\"\")","v":""},{"$f":"IF(Tabelle_Auswertung[[#This Row],[Platz]]=6,CONCATENATE(Tabelle_Auswertung[[#This Row],[Bildname]],\" von \",Tabelle_Auswertung[[#This Row],[Autor(in)]]),\"\")","v":""},{"$f":"IF(Tabelle_Auswertung[[#This Row],[Platz]]=7,CONCATENATE(Tabelle_Auswertung[[#This Row],[Bildname]],\" von \",Tabelle_Auswertung[[#This Row],[Autor(in)]]),\"\")","v":""},{"$f":"IF(Tabelle_Auswertung[[#This Row],[Platz]]=8,CONCATENATE(Tabelle_Auswertung[[#This Row],[Bildname]],\" von \",Tabelle_Auswertung[[#This Row],[Autor(in)]]),\"\")","v":""},{"$f":"IF(Tabelle_Auswertung[[#This Row],[Platz]]=9,CONCATENATE(Tabelle_Auswertung[[#This Row],[Bildname]],\" von \",Tabelle_Auswertung[[#This Row],[Autor(in)]]),\"\")","v":""},{"$f":"IF(Tabelle_Auswertung[[#This Row],[Platz]]=10,CONCATENATE(Tabelle_Auswertung[[#This Row],[Bildname]],\" von \",Tabelle_Auswertung[[#This Row],[Autor(in)]]),\"\")","v":""}]
["Flamingos.jpg",5,6,7,{"$nulls":17},{"$f":"IF(Tabelle_Auswertung[[#This Row],[Bildname]]<>\"\",SUM(Tabelle_Auswertung[[#This Row],[Juror 1]:[Juror 20]]),\" - \")","v":18},{"$f":"IF(Tabelle_Auswertung[[#This Row],[Bildname]]<>\"\",IF(Tabelle_Auswertung[[#This Row],[Punkte]]>0,AVERAGE(Tabelle_Auswertung[[#This Row],[Juror 1]:[Juror 20]]),\" - \"),\" - \")","v":6},{"$f":"IF(Tabelle_Auswertung[[#This Row],[Bildname]]<>\"\",IF(Tabelle_Auswertung[[#This Row],[Punkte]]>0,RANK(Tabelle_Auswertung[[#This Row],[Punkte]],[Punkte],0),\" - \"),\" - \")","v":14},"Chris Finsterer",{"$f":"IF(Tabelle_Auswertung[[#This Row],[Platz]]=1,CONCATENATE(Tabelle_Auswertung[[#This Row],[Bildname]],\" von \",Tabelle_Auswertung[[#This Row],[Autor(in)]]),\"\")","v":""},{"$f":"IF(Tabelle_Auswertung[[#This Row],[Platz]]=2,CONCATENATE(Tabelle_Auswertung[[#This Row],[Bildname]],\" von \",Tabelle_Auswertung[[#This Row],[Autor(in)]]),\"\")","v":""},{"$f":"IF(Tabelle_Auswertung[[#This Row],[Platz]]=3,CONCATENATE(Tabelle_Auswertung[[#This Row],[Bildname]],\" von \",Tabelle_Auswertung[[#This Row],[Autor(in)]]),\"\")","v":""},{"$f":"IF(Tabelle_Auswertung[[#This Row],[Platz]]=4,CONCATENATE(Tabelle_Auswertung[[#This Row],[Bildname]],\" von \",Tabelle_Auswertung[[#This Row],[Autor(in)]]),\"\")","v":""},{"$f":"IF(Tabelle_Auswertung[[#This Row],[Platz]]=5,CONCATENATE(Tabelle_Auswertung[[#This Row],[Bildname]],\" von \",Tabelle_Auswertung[[#This Row],[Autor(in)]]),\"\")","v":""},{"$f":"IF(Tabelle_Auswertung[[#This Row],[Platz]]=6,CONCATENATE(Tabelle_Auswertung[[#This Row],[Bildname]],\" von \",Tabelle_Auswertung[[#This Row],[Autor(in)]]),\"\")","v":""},{"$f":"IF(Tabelle_Auswertung[[#This Row],[Platz]]=7,CONCATENATE(Tabelle_Auswertung[[#This Row],[Bildname]],\" von \",Tabelle_Auswertung[[#This Row],[Autor(in)]]),\"\")","v":""},{"$f":"IF(Tabelle_Auswertung[[#This Row],[Platz]]=8,CONCATENATE(Tabelle_Auswertung[[#This Row],[Bildname]],\" von \",Tabelle_Auswertung[[#This Row],[Autor(in)]]),\"\")","v":""},{"$f":"IF(Tabelle_Auswertung[[#This Row],[Platz]]=9,CONCATENATE(Tabelle_Auswertung[[#This Row],[Bildname]],\" von \",Tabelle_Auswertung[[#This Row],[Autor(in)]]),\"\")","v":""},{"$f":"IF(Tabelle_Auswertung[[#This Row],[Platz]]=10,CONCATENATE(Tabelle_Auswertung[[#This Row],[Bildname]],\" von \",Tabelle_Auswertung[[#This Row],[Autor(in)]]),\"\")","v":""}]
["Maschine.jpg",7,6,5,{"$nulls":17},{"$f":"IF(Tabelle_Auswertung[[#This Row],[Bildname]]<>\"\",SUM(Tabelle_Auswertung[[#This Row],[Juror 1]:[Juror 20]]),\" - \")","v":18},{"$f":"IF(Tabelle_Auswertung[[#This Row],[Bildname]]<>\"\",IF(Tabelle_Auswertung[[#This Row],[Punkte]]>0,AVERAGE(Tabelle_Auswertung[[#This Row],[Juror 1]:[Juror 20]]),\" - \"),\" - \")","v":{"v":6,"d":"6.00 "}},{"$f":"IF(Tabelle_Auswertung[[#This Row],[Bildname]]<>\"\",IF(Tabelle_Auswertung[[#This Row],[Punkte]]>0,RANK(Tabelle_Auswertung[[#This Row],[Punkte]],[Punkte],0),\" - \"),\" - \")","v":14},"Chris Finsterer",{"$f":"IF(Tabelle_Auswertung[[#This Row],[Platz]]=1,CONCATENATE(Tabelle_Auswertung[[#This Row],[Bildname]],\" von \",Tabelle_Auswertung[[#This Row],[Autor(in)]]),\"\")","v":""},{"$f":"IF(Tabelle_Auswertung[[#This Row],[Platz]]=2,CONCATENATE(Tabelle_Auswertung[[#This Row],[Bildname]],\" von \",Tabelle_Auswertung[[#This Row],[Autor(in)]]),\"\")","v":""},{"$f":"IF(Tabelle_Auswertung[[#This Row],[Platz]]=3,CONCATENATE(Tabelle_Auswertung[[#This Row],[Bildname]],\" von \",Tabelle_Auswertung[[#This Row],[Autor(in)]]),\"\")","v":""},{"$f":"IF(Tabelle_Auswertung[[#This Row],[Platz]]=4,CONCATENATE(Tabelle_Auswertung[[#This Row],[Bildname]],\" von \",Tabelle_Auswertung[[#This Row],[Autor(in)]]),\"\")","v":""},{"$f":"IF(Tabelle_Auswertung[[#This Row],[Platz]]=5,CONCATENATE(Tabelle_Auswertung[[#This Row],[Bildname]],\" von \",Tabelle_Auswertung[[#This Row],[Autor(in)]]),\"\")","v":""},{"$f":"IF(Tabelle_Auswertung[[#This Row],[Platz]]=6,CONCATENATE(Tabelle_Auswertung[[#This Row],[Bildname]],\" von \",Tabelle_Auswertung[[#This Row],[Autor(in)]]),\"\")","v":""},{"$f":"IF(Tabelle_Auswertung[[#This Row],[Platz]]=7,CONCATENATE(Tabelle_Auswertung[[#This Row],[Bildname]],\" von \",Tabelle_Auswertung[[#This Row],[Autor(in)]]),\"\")","v":""},{"$f":"IF(Tabelle_Auswertung[[#This Row],[Platz]]=8,CONCATENATE(Tabelle_Auswertung[[#This Row],[Bildname]],\" von \",Tabelle_Auswertung[[#This Row],[Autor(in)]]),\"\")","v":""},{"$f":"IF(Tabelle_Auswertung[[#This Row],[Platz]]=9,CONCATENATE(Tabelle_Auswertung[[#This Row],[Bildname]],\" von \",Tabelle_Auswertung[[#This Row],[Autor(in)]]),\"\")","v":""},{"$f":"IF(Tabelle_Auswertung[[#This Row],[Platz]]=10,CONCATENATE(Tabelle_Auswertung[[#This Row],[Bildname]],\" von \",Tabelle_Auswertung[[#This Row],[Autor(in)]]),\"\")","v":""}]
["Mehlexplosion.jpg",6,5,7,{"$nulls":17},{"$f":"IF(Tabelle_Auswertung[[#This Row],[Bildname]]<>\"\",SUM(Tabelle_Auswertung[[#This Row],[Juror 1]:[Juror 20]]),\" - \")","v":18},{"$f":"IF(Tabelle_Auswertung[[#This Row],[Bildname]]<>\"\",IF(Tabelle_Auswertung[[#This Row],[Punkte]]>0,AVERAGE(Tabelle_Auswertung[[#This Row],[Juror 1]:[Juror 20]]),\" - \"),\" - \")","v":{"v":6,"d":"6.00 "}},{"$f":"IF(Tabelle_Auswertung[[#This Row],[Bildname]]<>\"\",IF(Tabelle_Auswertung[[#This Row],[Punkte]]>0,RANK(Tabelle_Auswertung[[#This Row],[Punkte]],[Punkte],0),\" - \"),\" - \")","v":14},"Gerhard Rieß",{"$f":"IF(Tabelle_Auswertung[[#This Row],[Platz]]=1,CONCATENATE(Tabelle_Auswertung[[#This Row],[Bildname]],\" von \",Tabelle_Auswertung[[#This Row],[Autor(in)]]),\"\")","v":""},{"$f":"IF(Tabelle_Auswertung[[#This Row],[Platz]]=2,CONCATENATE(Tabelle_Auswertung[[#This Row],[Bildname]],\" von \",Tabelle_Auswertung[[#This Row],[Autor(in)]]),\"\")","v":""},{"$f":"IF(Tabelle_Auswertung[[#This Row],[Platz]]=3,CONCATENATE(Tabelle_Auswertung[[#This Row],[Bildname]],\" von \",Tabelle_Auswertung[[#This Row],[Autor(in)]]),\"\")","v":""},{"$f":"IF(Tabelle_Auswertung[[#This Row],[Platz]]=4,CONCATENATE(Tabelle_Auswertung[[#This Row],[Bildname]],\" von \",Tabelle_Auswertung[[#This Row],[Autor(in)]]),\"\")","v":""},{"$f":"IF(Tabelle_Auswertung[[#This Row],[Platz]]=5,CONCATENATE(Tabelle_Auswertung[[#This Row],[Bildname]],\" von \",Tabelle_Auswertung[[#This Row],[Autor(in)]]),\"\")","v":""},{"$f":"IF(Tabelle_Auswertung[[#This Row],[Platz]]=6,CONCATENATE(Tabelle_Auswertung[[#This Row],[Bildname]],\" von \",Tabelle_Auswertung[[#This Row],[Autor(in)]]),\"\")","v":""},{"$f":"IF(Tabelle_Auswertung[[#This Row],[Platz]]=7,CONCATENATE(Tabelle_Auswertung[[#This Row],[Bildname]],\" von \",Tabelle_Auswertung[[#This Row],[Autor(in)]]),\"\")","v":""},{"$f":"IF(Tabelle_Auswertung[[#This Row],[Platz]]=8,CONCATENATE(Tabelle_Auswertung[[#This Row],[Bildname]],\" von \",Tabelle_Auswertung[[#This Row],[Autor(in)]]),\"\")","v":""},{"$f":"IF(Tabelle_Auswertung[[#This Row],[Platz]]=9,CONCATENATE(Tabelle_Auswertung[[#This Row],[Bildname]],\" von \",Tabelle_Auswertung[[#This Row],[Autor(in)]]),\"\")","v":""},{"$f":"IF(Tabelle_Auswertung[[#This Row],[Platz]]=10,CONCATENATE(Tabelle_Auswertung[[#This Row],[Bildname]],\" von \",Tabelle_Auswertung[[#This Row],[Autor(in)]]),\"\")","v":""}]
["Mercedes_Benz_170_S_Cabriolet_A.jpg",6,6,6,{"$nulls":17},{"$f":"IF(Tabelle_Auswertung[[#This Row],[Bildname]]<>\"\",SUM(Tabelle_Auswertung[[#This Row],[Juror 1]:[Juror 20]]),\" - \")","v":18},{"$f":"IF(Tabelle_Auswertung[[#This Row],[Bildname]]<>\"\",IF(Tabelle_Auswertung[[#This Row],[Punkte]]>0,AVERAGE(Tabelle_Auswertung[[#This Row],[Juror 1]:[Juror 20]]),\" - \"),\" - \")","v":{"v":6,"d":"6.00 "}},{"$f":"IF(Tabelle_Auswertung[[#This Row],[Bildname]]<>\"\",IF(Tabelle_Auswertung[[#This Row],[Punkte]]>0,RANK(Tabelle_Auswertung[[#This Row],[Punkte]],[Punkte],0),\" - \"),\" - \")","v":14},"Chris Finsterer",{"$f":"IF(Tabelle_Auswertung[[#This Row],[Platz]]=1,CONCATENATE(Tabelle_Auswertung[[#This Row],[Bildname]],\" von \",Tabelle_Auswertung[[#This Row],[Autor(in)]]),\"\")","v":""},{"$f":"IF(Tabelle_Auswertung[[#This Row],[Platz]]=2,CONCATENATE(Tabelle_Auswertung[[#This Row],[Bildname]],\" von \",Tabelle_Auswertung[[#This Row],[Autor(in)]]),\"\")","v":""},{"$f":"IF(Tabelle_Auswertung[[#This Row],[Platz]]=3,CONCATENATE(Tabelle_Auswertung[[#This Row],[Bildname]],\" von \",Tabelle_Auswertung[[#This Row],[Autor(in)]]),\"\")","v":""},{"$f":"IF(Tabelle_Auswertung[[#This Row],[Platz]]=4,CONCATENATE(Tabelle_Auswertung[[#This Row],[Bildname]],\" von \",Tabelle_Auswertung[[#This Row],[Autor(in)]]),\"\")","v":""},{"$f":"IF(Tabelle_Auswertung[[#This Row],[Platz]]=5,CONCATENATE(Tabelle_Auswertung[[#This Row],[Bildname]],\" von \",Tabelle_Auswertung[[#This Row],[Autor(in)]]),\"\")","v":""},{"$f":"IF(Tabelle_Auswertung[[#This Row],[Platz]]=6,CONCATENATE(Tabelle_Auswertung[[#This Row],[Bildname]],\" von \",Tabelle_Auswertung[[#This Row],[Autor(in)]]),\"\")","v":""},{"$f":"IF(Tabelle_Auswertung[[#This Row],[Platz]]=7,CONCATENATE(Tabelle_Auswertung[[#This Row],[Bildname]],\" von \",Tabelle_Auswertung[[#This Row],[Autor(in)]]),\"\")","v":""},{"$f":"IF(Tabelle_Auswertung[[#This Row],[Platz]]=8,CONCATENATE(Tabelle_Auswertung[[#This Row],[Bildname]],\" von \",Tabelle_Auswertung[[#This Row],[Autor(in)]]),\"\")","v":""},{"$f":"IF(Tabelle_Auswertung[[#This Row],[Platz]]=9,CONCATENATE(Tabelle_Auswertung[[#This Row],[Bildname]],\" von \",Tabelle_Auswertung[[#This Row],[Autor(in)]]),\"\")","v":""},{"$f":"IF(Tabelle_Auswertung[[#This Row],[Platz]]=10,CONCATENATE(Tabelle_Auswertung[[#This Row],[Bildname]],\" von \",Tabelle_Auswertung[[#This Row],[Autor(in)]]),\"\")","v":""}]
["Seven Sisters.jpg",6,7,5,{"$nulls":17},{"$f":"IF(Tabelle_Auswertung[[#This Row],[Bildname]]<>\"\",SUM(Tabelle_Auswertung[[#This Row],[Juror 1]:[Juror 20]]),\" - \")","v":18},{"$f":"IF(Tabelle_Auswertung[[#This Row],[Bildname]]<>\"\",IF(Tabelle_Auswertung[[#This Row],[Punkte]]>0,AVERAGE(Tabelle_Auswertung[[#This Row],[Juror 1]:[Juror 20]]),\" - \"),\" - \")","v":6},{"$f":"IF(Tabelle_Auswertung[[#This Row],[Bildname]]<>\"\",IF(Tabelle_Auswertung[[#This Row],[Punkte]]>0,RANK(Tabelle_Auswertung[[#This Row],[Punkte]],[Punkte],0),\" - \"),\" - \")","v":14},"Gert Häberlein",{"$f":"IF(Tabelle_Auswertung[[#This Row],[Platz]]=1,CONCATENATE(Tabelle_Auswertung[[#This Row],[Bildname]],\" von \",Tabelle_Auswertung[[#This Row],[Autor(in)]]),\"\")","v":""},{"$f":"IF(Tabelle_Auswertung[[#This Row],[Platz]]=2,CONCATENATE(Tabelle_Auswertung[[#This Row],[Bildname]],\" von \",Tabelle_Auswertung[[#This Row],[Autor(in)]]),\"\")","v":""},{"$f":"IF(Tabelle_Auswertung[[#This Row],[Platz]]=3,CONCATENATE(Tabelle_Auswertung[[#This Row],[Bildname]],\" von \",Tabelle_Auswertung[[#This Row],[Autor(in)]]),\"\")","v":""},{"$f":"IF(Tabelle_Auswertung[[#This Row],[Platz]]=4,CONCATENATE(Tabelle_Auswertung[[#This Row],[Bildname]],\" von \",Tabelle_Auswertung[[#This Row],[Autor(in)]]),\"\")","v":""},{"$f":"IF(Tabelle_Auswertung[[#This Row],[Platz]]=5,CONCATENATE(Tabelle_Auswertung[[#This Row],[Bildname]],\" von \",Tabelle_Auswertung[[#This Row],[Autor(in)]]),\"\")","v":""},{"$f":"IF(Tabelle_Auswertung[[#This Row],[Platz]]=6,CONCATENATE(Tabelle_Auswertung[[#This Row],[Bildname]],\" von \",Tabelle_Auswertung[[#This Row],[Autor(in)]]),\"\")","v":""},{"$f":"IF(Tabelle_Auswertung[[#This Row],[Platz]]=7,CONCATENATE(Tabelle_Auswertung[[#This Row],[Bildname]],\" von \",Tabelle_Auswertung[[#This Row],[Autor(in)]]),\"\")","v":""},{"$f":"IF(Tabelle_Auswertung[[#This Row],[Platz]]=8,CONCATENATE(Tabelle_Auswertung[[#This Row],[Bildname]],\" von \",Tabelle_Auswertung[[#This Row],[Autor(in)]]),\"\")","v":""},{"$f":"IF(Tabelle_Auswertung[[#This Row],[Platz]]=9,CONCATENATE(Tabelle_Auswertung[[#This Row],[Bildname]],\" von \",Tabelle_Auswertung[[#This Row],[Autor(in)]]),\"\")","v":""},{"$f":"IF(Tabelle_Auswertung[[#This Row],[Platz]]=10,CONCATENATE(Tabelle_Auswertung[[#This Row],[Bildname]],\" von \",Tabelle_Auswertung[[#This Row],[Autor(in)]]),\"\")","v":""}]
["The Look.jpg",8,6,4,{"$nulls":17},{"$f":"IF(Tabelle_Auswertung[[#This Row],[Bildname]]<>\"\",SUM(Tabelle_Auswertung[[#This Row],[Juror 1]:[Juror 20]]),\" - \")","v":18},{"$f":"IF(Tabelle_Auswertung[[#This Row],[Bildname]]<>\"\",IF(Tabelle_Auswertung[[#This Row],[Punkte]]>0,AVERAGE(Tabelle_Auswertung[[#This Row],[Juror 1]:[Juror 20]]),\" - \"),\" - \")","v":{"v":6,"d":"6.00 "}},{"$f":"IF(Tabelle_Auswertung[[#This Row],[Bildname]]<>\"\",IF(Tabelle_Auswertung[[#This Row],[Punkte]]>0,RANK(Tabelle_Auswertung[[#This Row],[Punkte]],[Punkte],0),\" - \"),\" - \")","v":14},"Jan Grünler",{"$f":"IF(Tabelle_Auswertung[[#This Row],[Platz]]=1,CONCATENATE(Tabelle_Auswertung[[#This Row],[Bildname]],\" von \",Tabelle_Auswertung[[#This Row],[Autor(in)]]),\"\")","v":""},{"$f":"IF(Tabelle_Auswertung[[#This Row],[Platz]]=2,CONCATENATE(Tabelle_Auswertung[[#This Row],[Bildname]],\" von \",Tabelle_Auswertung[[#This Row],[Autor(in)]]),\"\")","v":""},{"$f":"IF(Tabelle_Auswertung[[#This Row],[Platz]]=3,CONCATENATE(Tabelle_Auswertung[[#This Row],[Bildname]],\" von \",Tabelle_Auswertung[[#This Row],[Autor(in)]]),\"\")","v":""},{"$f":"IF(Tabelle_Auswertung[[#This Row],[Platz]]=4,CONCATENATE(Tabelle_Auswertung[[#This Row],[Bildname]],\" von \",Tabelle_Auswertung[[#This Row],[Autor(in)]]),\"\")","v":""},{"$f":"IF(Tabelle_Auswertung[[#This Row],[Platz]]=5,CONCATENATE(Tabelle_Auswertung[[#This Row],[Bildname]],\" von \",Tabelle_Auswertung[[#This Row],[Autor(in)]]),\"\")","v":""},{"$f":"IF(Tabelle_Auswertung[[#This Row],[Platz]]=6,CONCATENATE(Tabelle_Auswertung[[#This Row],[Bildname]],\" von \",Tabelle_Auswertung[[#This Row],[Autor(in)]]),\"\")","v":""},{"$f":"IF(Tabelle_Auswertung[[#This Row],[Platz]]=7,CONCATENATE(Tabelle_Auswertung[[#This Row],[Bildname]],\" von \",Tabelle_Auswertung[[#This Row],[Autor(in)]]),\"\")","v":""},{"$f":"IF(Tabelle_Auswertung[[#This Row],[Platz]]=8,CONCATENATE(Tabelle_Auswertung[[#This Row],[Bildname]],\" von \",Tabelle_Auswertung[[#This Row],[Autor(in)]]),\"\")","v":""},{"$f":"IF(Tabelle_Auswertung[[#This Row],[Platz]]=9,CONCATENATE(Tabelle_Auswertung[[#This Row],[Bildname]],\" von \",Tabelle_Auswertung[[#This Row],[Autor(in)]]),\"\")","v":""},{"$f":"IF(Tabelle_Auswertung[[#This Row],[Platz]]=10,CONCATENATE(Tabelle_Auswertung[[#This Row],[Bildname]],\" von \",Tabelle_Auswertung[[#This Row],[Autor(in)]]),\"\")","v":""}]
["The Look1.jpg",7,6,5,{"$nulls":17},{"$f":"IF(Tabelle_Auswertung[[#This Row],[Bildname]]<>\"\",SUM(Tabelle_Auswertung[[#This Row],[Juror 1]:[Juror 20]]),\" - \")","v":18},{"$f":"IF(Tabelle_Auswertung[[#This Row],[Bildname]]<>\"\",IF(Tabelle_Auswertung[[#This Row],[Punkte]]>0,AVERAGE(Tabelle_Auswertung[[#This Row],[Juror 1]:[Juror 20]]),\" - \"),\" - \")","v":{"v":6,"d":"6.00 "}},{"$f":"IF(Tabelle_Auswertung[[#This Row],[Bildname]]<>\"\",IF(Tabelle_Auswertung[[#This Row],[Punkte]]>0,RANK(Tabelle_Auswertung[[#This Row],[Punkte]],[Punkte],0),\" - \"),\" - \")","v":14},"Andreas Toltz",{"$f":"IF(Tabelle_Auswertung[[#This Row],[Platz]]=1,CONCATENATE(Tabelle_Auswertung[[#This Row],[Bildname]],\" von \",Tabelle_Auswertung[[#This Row],[Autor(in)]]),\"\")","v":""},{"$f":"IF(Tabelle_Auswertung[[#This Row],[Platz]]=2,CONCATENATE(Tabelle_Auswertung[[#This Row],[Bildname]],\" von \",Tabelle_Auswertung[[#This Row],[Autor(in)]]),\"\")","v":""},{"$f":"IF(Tabelle_Auswertung[[#This Row],[Platz]]=3,CONCATENATE(Tabelle_Auswertung[[#This Row],[Bildname]],\" von \",Tabelle_Auswertung[[#This Row],[Autor(in)]]),\"\")","v":""},{"$f":"IF(Tabelle_Auswertung[[#This Row],[Platz]]=4,CONCATENATE(Tabelle_Auswertung[[#This Row],[Bildname]],\" von \",Tabelle_Auswertung[[#This Row],[Autor(in)]]),\"\")","v":""},{"$f":"IF(Tabelle_Auswertung[[#This Row],[Platz]]=5,CONCATENATE(Tabelle_Auswertung[[#This Row],[Bildname]],\" von \",Tabelle_Auswertung[[#This Row],[Autor(in)]]),\"\")","v":""},{"$f":"IF(Tabelle_Auswertung[[#This Row],[Platz]]=6,CONCATENATE(Tabelle_Auswertung[[#This Row],[Bildname]],\" von \",Tabelle_Auswertung[[#This Row],[Autor(in)]]),\"\")","v":""},{"$f":"IF(Tabelle_Auswertung[[#This Row],[Platz]]=7,CONCATENATE(Tabelle_Auswertung[[#This Row],[Bildname]],\" von \",Tabelle_Auswertung[[#This Row],[Autor(in)]]),\"\")","v":""},{"$f":"IF(Tabelle_Auswertung[[#This Row],[Platz]]=8,CONCATENATE(Tabelle_Auswertung[[#This Row],[Bildname]],\" von \",Tabelle_Auswertung[[#This Row],[Autor(in)]]),\"\")","v":""},{"$f":"IF(Tabelle_Auswertung[[#This Row],[Platz]]=9,CONCATENATE(Tabelle_Auswertung[[#This Row],[Bildname]],\" von \",Tabelle_Auswertung[[#This Row],[Autor(in)]]),\"\")","v":""},{"$f":"IF(Tabelle_Auswertung[[#This Row],[Platz]]=10,CONCATENATE(Tabelle_Auswertung[[#This Row],[Bildname]],\" von \",Tabelle_Auswertung[[#This Row],[Autor(in)]]),\"\")","v":""}]
["Annika.jpg",4,5,8,{"$nulls":17},{"$f":"IF(Tabelle_Auswertung[[#This Row],[Bildname]]<>\"\",SUM(Tabelle_Auswertung[[#This Row],[Juror 1]:[Juror 20]]),\" - \")","v":17},{"$f":"IF(Tabelle_Auswertung[[#This Row],[Bildname]]<>\"\",IF(Tabelle_Auswertung[[#This Row],[Punkte]]>0,AVERAGE(Tabelle_Auswertung[[#This Row],[Juror 1]:[Juror 20]]),\" - \"),\" - \")","v":{"v":5.666666666666667,"d":"5.67 "}},{"$f":"IF(Tabelle_Auswertung[[#This Row],[Bildname]]<>\"\",IF(Tabelle_Auswertung[[#This Row],[Punkte]]>0,RANK(Tabelle_Auswertung[[#This Row],[Punkte]],[Punkte],0),\" - \"),\" - \")","v":21},"Susanne Deinhardt",{"$f":"IF(Tabelle_Auswertung[[#This Row],[Platz]]=1,CONCATENATE(Tabelle_Auswertung[[#This Row],[Bildname]],\" von \",Tabelle_Auswertung[[#This Row],[Autor(in)]]),\"\")","v":""},{"$f":"IF(Tabelle_Auswertung[[#This Row],[Platz]]=2,CONCATENATE(Tabelle_Auswertung[[#This Row],[Bildname]],\" von \",Tabelle_Auswertung[[#This Row],[Autor(in)]]),\"\")","v":""},{"$f":"IF(Tabelle_Auswertung[[#This Row],[Platz]]=3,CONCATENATE(Tabelle_Auswertung[[#This Row],[Bildname]],\" von \",Tabelle_Auswertung[[#This Row],[Autor(in)]]),\"\")","v":""},{"$f":"IF(Tabelle_Auswertung[[#This Row],[Platz]]=4,CONCATENATE(Tabelle_Auswertung[[#This Row],[Bildname]],\" von \",Tabelle_Auswertung[[#This Row],[Autor(in)]]),\"\")","v":""},{"$f":"IF(Tabelle_Auswertung[[#This Row],[Platz]]=5,CONCATENATE(Tabelle_Auswertung[[#This Row],[Bildname]],\" von \",Tabelle_Auswertung[[#This Row],[Autor(in)]]),\"\")","v":""},{"$f":"IF(Tabelle_Auswertung[[#This Row],[Platz]]=6,CONCATENATE(Tabelle_Auswertung[[#This Row],[Bildname]],\" von \",Tabelle_Auswertung[[#This Row],[Autor(in)]]),\"\")","v":""},{"$f":"IF(Tabelle_Auswertung[[#This Row],[Platz]]=7,CONCATENATE(Tabelle_Auswertung[[#This Row],[Bildname]],\" von \",Tabelle_Auswertung[[#This Row],[Autor(in)]]),\"\")","v":""},{"$f":"IF(Tabelle_Auswertung[[#This Row],[Platz]]=8,CONCATENATE(Tabelle_Auswertung[[#This Row],[Bildname]],\" von \",Tabelle_Auswertung[[#This Row],[Autor(in)]]),\"\")","v":""},{"$f":"IF(Tabelle_Auswertung[[#This Row],[Platz]]=9,CONCATENATE(Tabelle_Auswertung[[#This Row],[Bildname]],\" von \",Tabelle_Auswertung[[#This Row],[Autor(in)]]),\"\")","v":""},{"$f":"IF(Tabelle_Auswertung[[#This Row],[Platz]]=10,CONCATENATE(Tabelle_Auswertung[[#This Row],[Bildname]],\" von \",Tabelle_Auswertung[[#This Row],[Autor(in)]]),\"\")","v":""}]
["Beauty01.jpg",6,6,5,{"$nulls":17},{"$f":"IF(Tabelle_Auswertung[[#This Row],[Bildname]]<>\"\",SUM(Tabelle_Auswertung[[#This Row],[Juror 1]:[Juror 20]]),\" - \")","v":17},{"$f":"IF(Tabelle_Auswertung[[#This Row],[Bildname]]<>\"\",IF(Tabelle_Auswertung[[#This Row],[Punkte]]>0,AVERAGE(Tabelle_Auswertung[[#This Row],[Juror 1]:[Juror 20]]),\" - \"),\" - \")","v":{"v":5.666666666666667,"d":"5.67 "}},{"$f":"IF(Tabelle_Auswertung[[#This Row],[Bildname]]<>\"\",IF(Tabelle_Auswertung[[#This Row],[Punkte]]>0,RANK(Tabelle_Auswertung[[#This Row],[Punkte]],[Punkte],0),\" - \"),\" - \")","v":21},"Andreas Toltz",{"$f":"IF(Tabelle_Auswertung[[#This Row],[Platz]]=1,CONCATENATE(Tabelle_Auswertung[[#This Row],[Bildname]],\" von \",Tabelle_Auswertung[[#This Row],[Autor(in)]]),\"\")","v":""},{"$f":"IF(Tabelle_Auswertung[[#This Row],[Platz]]=2,CONCATENATE(Tabelle_Auswertung[[#This Row],[Bildname]],\" von \",Tabelle_Auswertung[[#This Row],[Autor(in)]]),\"\")","v":""},{"$f":"IF(Tabelle_Auswertung[[#This Row],[Platz]]=3,CONCATENATE(Tabelle_Auswertung[[#This Row],[Bildname]],\" von \",Tabelle_Auswertung[[#This Row],[Autor(in)]]),\"\")","v":""},{"$f":"IF(Tabelle_Auswertung[[#This Row],[Platz]]=4,CONCATENATE(Tabelle_Auswertung[[#This Row],[Bildname]],\" von \",Tabelle_Auswertung[[#This Row],[Autor(in)]]),\"\")","v":""},{"$f":"IF(Tabelle_Auswertung[[#This Row],[Platz]]=5,CONCATENATE(Tabelle_Auswertung[[#This Row],[Bildname]],\" von \",Tabelle_Auswertung[[#This Row],[Autor(in)]]),\"\")","v":""},{"$f":"IF(Tabelle_Auswertung[[#This Row],[Platz]]=6,CONCATENATE(Tabelle_Auswertung[[#This Row],[Bildname]],\" von \",Tabelle_Auswertung[[#This Row],[Autor(in)]]),\"\")","v":""},{"$f":"IF(Tabelle_Auswertung[[#This Row],[Platz]]=7,CONCATENATE(Tabelle_Auswertung[[#This Row],[Bildname]],\" von \",Tabelle_Auswertung[[#This Row],[Autor(in)]]),\"\")","v":""},{"$f":"IF(Tabelle_Auswertung[[#This Row],[Platz]]=8,CONCATENATE(Tabelle_Auswertung[[#This Row],[Bildname]],\" von \",Tabelle_Auswertung[[#This Row],[Autor(in)]]),\"\")","v":""},{"$f":"IF(Tabelle_Auswertung[[#This Row],[Platz]]=9,CONCATENATE(Tabelle_Auswertung[[#This Row],[Bildname]],\" von \",Tabelle_Auswertung[[#This Row],[Autor(in)]]),\"\")","v":""},{"$f":"IF(Tabelle_Auswertung[[#This Row],[Platz]]=10,CONCATENATE(Tabelle_Auswertung[[#This Row],[Bildname]],\" von \",Tabelle_Auswertung[[#This Row],[Autor(in)]]),\"\")","v":""}]
["Fruehe Stunde.jpg",7,4,6,{"$nulls":17},{"$f":"IF(Tabelle_Auswertung[[#This Row],[Bildname]]<>\"\",SUM(Tabelle_Auswertung[[#This Row],[Juror 1]:[Juror 20]]),\" - \")","v":17},{"$f":"IF(Tabelle_Auswertung[[#This Row],[Bildname]]<>\"\",IF(Tabelle_Auswertung[[#This Row],[Punkte]]>0,AVERAGE(Tabelle_Auswertung[[#This Row],[Juror 1]:[Juror 20]]),\" - \"),\" - \")","v":{"v":5.666666666666667,"d":"5.67 "}},{"$f":"IF(Tabelle_Auswertung[[#This Row],[Bildname]]<>\"\",IF(Tabelle_Auswertung[[#This Row],[Punkte]]>0,RANK(Tabelle_Auswertung[[#This Row],[Punkte]],[Punkte],0),\" - \"),\" - \")","v":21},"Gert Häberlein",{"$f":"IF(Tabelle_Auswertung[[#This Row],[Platz]]=1,CONCATENATE(Tabelle_Auswertung[[#This Row],[Bildname]],\" von \",Tabelle_Auswertung[[#This Row],[Autor(in)]]),\"\")","v":""},{"$f":"IF(Tabelle_Auswertung[[#This Row],[Platz]]=2,CONCATENATE(Tabelle_Auswertung[[#This Row],[Bildname]],\" von \",Tabelle_Auswertung[[#This Row],[Autor(in)]]),\"\")","v":""},{"$f":"IF(Tabelle_Auswertung[[#This Row],[Platz]]=3,CONCATENATE(Tabelle_Auswertung[[#This Row],[Bildname]],\" von \",Tabelle_Auswertung[[#This Row],[Autor(in)]]),\"\")","v":""},{"$f":"IF(Tabelle_Auswertung[[#This Row],[Platz]]=4,CONCATENATE(Tabelle_Auswertung[[#This Row],[Bildname]],\" von \",Tabelle_Auswertung[[#This Row],[Autor(in)]]),\"\")","v":""},{"$f":"IF(Tabelle_Auswertung[[#This Row],[Platz]]=5,CONCATENATE(Tabelle_Auswertung[[#This Row],[Bildname]],\" von \",Tabelle_Auswertung[[#This Row],[Autor(in)]]),\"\")","v":""},{"$f":"IF(Tabelle_Auswertung[[#This Row],[Platz]]=6,CONCATENATE(Tabelle_Auswertung[[#This Row],[Bildname]],\" von \",Tabelle_Auswertung[[#This Row],[Autor(in)]]),\"\")","v":""},{"$f":"IF(Tabelle_Auswertung[[#This Row],[Platz]]=7,CONCATENATE(Tabelle_Auswertung[[#This Row],[Bildname]],\" von \",Tabelle_Auswertung[[#This Row],[Autor(in)]]),\"\")","v":""},{"$f":"IF(Tabelle_Auswertung[[#This Row],[Platz]]=8,CONCATENATE(Tabelle_Auswertung[[#This Row],[Bildname]],\" von \",Tabelle_Auswertung[[#This Row],[Autor(in)]]),\"\")","v":""},{"$f":"IF(Tabelle_Auswertung[[#This Row],[Platz]]=9,CONCATENATE(Tabelle_Auswertung[[#This Row],[Bildname]],\" von \",Tabelle_Auswertung[[#This Row],[Autor(in)]]),\"\")","v":""},{"$f":"IF(Tabelle_Auswertung[[#This Row],[Platz]]=10,CONCATENATE(Tabelle_Auswertung[[#This Row],[Bildname]],\" von \",Tabelle_Auswertung[[#This Row],[Autor(in)]]),\"\")","v":""}]
["Regenbogen.jpg",5,7,5,{"$nulls":17},{"$f":"IF(Tabelle_Auswertung[[#This Row],[Bildname]]<>\"\",SUM(Tabelle_Auswertung[[#This Row],[Juror 1]:[Juror 20]]),\" - \")","v":17},{"$f":"IF(Tabelle_Auswertung[[#This Row],[Bildname]]<>\"\",IF(Tabelle_Auswertung[[#This Row],[Punkte]]>0,AVERAGE(Tabelle_Auswertung[[#This Row],[Juror 1]:[Juror 20]]),\" - \"),\" - \")","v":{"v":5.666666666666667,"d":"5.67 "}},{"$f":"IF(Tabelle_Auswertung[[#This Row],[Bildname]]<>\"\",IF(Tabelle_Auswertung[[#This Row],[Punkte]]>0,RANK(Tabelle_Auswertung[[#This Row],[Punkte]],[Punkte],0),\" - \"),\" - \")","v":21},"Gert Häberlein",{"$f":"IF(Tabelle_Auswertung[[#This Row],[Platz]]=1,CONCATENATE(Tabelle_Auswertung[[#This Row],[Bildname]],\" von \",Tabelle_Auswertung[[#This Row],[Autor(in)]]),\"\")","v":""},{"$f":"IF(Tabelle_Auswertung[[#This Row],[Platz]]=2,CONCATENATE(Tabelle_Auswertung[[#This Row],[Bildname]],\" von \",Tabelle_Auswertung[[#This Row],[Autor(in)]]),\"\")","v":""},{"$f":"IF(Tabelle_Auswertung[[#This Row],[Platz]]=3,CONCATENATE(Tabelle_Auswertung[[#This Row],[Bildname]],\" von \",Tabelle_Auswertung[[#This Row],[Autor(in)]]),\"\")","v":""},{"$f":"IF(Tabelle_Auswertung[[#This Row],[Platz]]=4,CONCATENATE(Tabelle_Auswertung[[#This Row],[Bildname]],\" von \",Tabelle_Auswertung[[#This Row],[Autor(in)]]),\"\")","v":""},{"$f":"IF(Tabelle_Auswertung[[#This Row],[Platz]]=5,CONCATENATE(Tabelle_Auswertung[[#This Row],[Bildname]],\" von \",Tabelle_Auswertung[[#This Row],[Autor(in)]]),\"\")","v":""},{"$f":"IF(Tabelle_Auswertung[[#This Row],[Platz]]=6,CONCATENATE(Tabelle_Auswertung[[#This Row],[Bildname]],\" von \",Tabelle_Auswertung[[#This Row],[Autor(in)]]),\"\")","v":""},{"$f":"IF(Tabelle_Auswertung[[#This Row],[Platz]]=7,CONCATENATE(Tabelle_Auswertung[[#This Row],[Bildname]],\" von \",Tabelle_Auswertung[[#This Row],[Autor(in)]]),\"\")","v":""},{"$f":"IF(Tabelle_Auswertung[[#This Row],[Platz]]=8,CONCATENATE(Tabelle_Auswertung[[#This Row],[Bildname]],\" von \",Tabelle_Auswertung[[#This Row],[Autor(in)]]),\"\")","v":""},{"$f":"IF(Tabelle_Auswertung[[#This Row],[Platz]]=9,CONCATENATE(Tabelle_Auswertung[[#This Row],[Bildname]],\" von \",Tabelle_Auswertung[[#This Row],[Autor(in)]]),\"\")","v":""},{"$f":"IF(Tabelle_Auswertung[[#This Row],[Platz]]=10,CONCATENATE(Tabelle_Auswertung[[#This Row],[Bildname]],\" von \",Tabelle_Auswertung[[#This Row],[Autor(in)]]),\"\")","v":""}]
["Nostalgie.jpg",5,7,4,{"$nulls":17},{"$f":"IF(Tabelle_Auswertung[[#This Row],[Bildname]]<>\"\",SUM(Tabelle_Auswertung[[#This Row],[Juror 1]:[Juror 20]]),\" - \")","v":16},{"$f":"IF(Tabelle_Auswertung[[#This Row],[Bildname]]<>\"\",IF(Tabelle_Auswertung[[#This Row],[Punkte]]>0,AVERAGE(Tabelle_Auswertung[[#This Row],[Juror 1]:[Juror 20]]),\" - \"),\" - \")","v":5.333333333333333},{"$f":"IF(Tabelle_Auswertung[[#This Row],[Bildname]]<>\"\",IF(Tabelle_Auswertung[[#This Row],[Punkte]]>0,RANK(Tabelle_Auswertung[[#This Row],[Punkte]],[Punkte],0),\" - \"),\" - \")","v":25},"Gerhard Rieß",{"$f":"IF(Tabelle_Auswertung[[#This Row],[Platz]]=1,CONCATENATE(Tabelle_Auswertung[[#This Row],[Bildname]],\" von \",Tabelle_Auswertung[[#This Row],[Autor(in)]]),\"\")","v":""},{"$f":"IF(Tabelle_Auswertung[[#This Row],[Platz]]=2,CONCATENATE(Tabelle_Auswertung[[#This Row],[Bildname]],\" von \",Tabelle_Auswertung[[#This Row],[Autor(in)]]),\"\")","v":""},{"$f":"IF(Tabelle_Auswertung[[#This Row],[Platz]]=3,CONCATENATE(Tabelle_Auswertung[[#This Row],[Bildname]],\" von \",Tabelle_Auswertung[[#This Row],[Autor(in)]]),\"\")","v":""},{"$f":"IF(Tabelle_Auswertung[[#This Row],[Platz]]=4,CONCATENATE(Tabelle_Auswertung[[#This Row],[Bildname]],\" von \",Tabelle_Auswertung[[#This Row],[Autor(in)]]),\"\")","v":""},{"$f":"IF(Tabelle_Auswertung[[#This Row],[Platz]]=5,CONCATENATE(Tabelle_Auswertung[[#This Row],[Bildname]],\" von \",Tabelle_Auswertung[[#This Row],[Autor(in)]]),\"\")","v":""},{"$f":"IF(Tabelle_Auswertung[[#This Row],[Platz]]=6,CONCATENATE(Tabelle_Auswertung[[#This Row],[Bildname]],\" von \",Tabelle_Auswertung[[#This Row],[Autor(in)]]),\"\")","v":""},{"$f":"IF(Tabelle_Auswertung[[#This Row],[Platz]]=7,CONCATENATE(Tabelle_Auswertung[[#This Row],[Bildname]],\" von \",Tabelle_Auswertung[[#This Row],[Autor(in)]]),\"\")","v":""},{"$f":"IF(Tabelle_Auswertung[[#This Row],[Platz]]=8,CONCATENATE(Tabelle_Auswertung[[#This Row],[Bildname]],\" von \",Tabelle_Auswertung[[#This Row],[Autor(in)]]),\"\")","v":""},{"$f":"IF(Tabelle_Auswertung[[#This Row],[Platz]]=9,CONCATENATE(Tabelle_Auswertung[[#This Row],[Bildname]],\" von \",Tabelle_Auswertung[[#This Row],[Autor(in)]]),\"\")","v":""},{"$f":"IF(Tabelle_Auswertung[[#This Row],[Platz]]=10,CONCATENATE(Tabelle_Auswertung[[#This Row],[Bildname]],\" von \",Tabelle_Auswertung[[#This Row],[Autor(in)]]),\"\")","v":""}]
["Sunset.jpg",6,6,4,{"$nulls":17},{"$f":"IF(Tabelle_Auswertung[[#This Row],[Bildname]]<>\"\",SUM(Tabelle_Auswertung[[#This Row],[Juror 1]:[Juror 20]]),\" - \")","v":16},{"$f":"IF(Tabelle_Auswertung[[#This Row],[Bildname]]<>\"\",IF(Tabelle_Auswertung[[#This Row],[Punkte]]>0,AVERAGE(Tabelle_Auswertung[[#This Row],[Juror 1]:[Juror 20]]),\" - \"),\" - \")","v":{"v":5.333333333333333,"d":"5.33 "}},{"$f":"IF(Tabelle_Auswertung[[#This Row],[Bildname]]<>\"\",IF(Tabelle_Auswertung[[#This Row],[Punkte]]>0,RANK(Tabelle_Auswertung[[#This Row],[Punkte]],[Punkte],0),\" - \"),\" - \")","v":25},"Gert Häberlein",{"$f":"IF(Tabelle_Auswertung[[#This Row],[Platz]]=1,CONCATENATE(Tabelle_Auswertung[[#This Row],[Bildname]],\" von \",Tabelle_Auswertung[[#This Row],[Autor(in)]]),\"\")","v":""},{"$f":"IF(Tabelle_Auswertung[[#This Row],[Platz]]=2,CONCATENATE(Tabelle_Auswertung[[#This Row],[Bildname]],\" von \",Tabelle_Auswertung[[#This Row],[Autor(in)]]),\"\")","v":""},{"$f":"IF(Tabelle_Auswertung[[#This Row],[Platz]]=3,CONCATENATE(Tabelle_Auswertung[[#This Row],[Bildname]],\" von \",Tabelle_Auswertung[[#This Row],[Autor(in)]]),\"\")","v":""},{"$f":"IF(Tabelle_Auswertung[[#This Row],[Platz]]=4,CONCATENATE(Tabelle_Auswertung[[#This Row],[Bildname]],\" von \",Tabelle_Auswertung[[#This Row],[Autor(in)]]),\"\")","v":""},{"$f":"IF(Tabelle_Auswertung[[#This Row],[Platz]]=5,CONCATENATE(Tabelle_Auswertung[[#This Row],[Bildname]],\" von \",Tabelle_Auswertung[[#This Row],[Autor(in)]]),\"\")","v":""},{"$f":"IF(Tabelle_Auswertung[[#This Row],[Platz]]=6,CONCATENATE(Tabelle_Auswertung[[#This Row],[Bildname]],\" von \",Tabelle_Auswertung[[#This Row],[Autor(in)]]),\"\")","v":""},{"$f":"IF(Tabelle_Auswertung[[#This Row],[Platz]]=7,CONCATENATE(Tabelle_Auswertung[[#This Row],[Bildname]],\" von \",Tabelle_Auswertung[[#This Row],[Autor(in)]]),\"\")","v":""},{"$f":"IF(Tabelle_Auswertung[[#This Row],[Platz]]=8,CONCATENATE(Tabelle_Auswertung[[#This Row],[Bildname]],\" von \",Tabelle_Auswertung[[#This Row],[Autor(in)]]),\"\")","v":""},{"$f":"IF(Tabelle_Auswertung[[#This Row],[Platz]]=9,CONCATENATE(Tabelle_Auswertung[[#This Row],[Bildname]],\" von \",Tabelle_Auswertung[[#This Row],[Autor(in)]]),\"\")","v":""},{"$f":"IF(Tabelle_Auswertung[[#This Row],[Platz]]=10,CONCATENATE(Tabelle_Auswertung[[#This Row],[Bildname]],\" von \",Tabelle_Auswertung[[#This Row],[Autor(in)]]),\"\")","v":""}]
["Grandhotel.jpg",6,5,4,{"$nulls":17},{"$f":"IF(Tabelle_Auswertung[[#This Row],[Bildname]]<>\"\",SUM(Tabelle_Auswertung[[#This Row],[Juror 1]:[Juror 20]]),\" - \")","v":15},{"$f":"IF(Tabelle_Auswertung[[#This Row],[Bildname]]<>\"\",IF(Tabelle_Auswertung[[#This Row],[Punkte]]>0,AVERAGE(Tabelle_Auswertung[[#This Row],[Juror 1]:[Juror 20]]),\" - \"),\" - \")","v":5},{"$f":"IF(Tabelle_Auswertung[[#This Row],[Bildname]]<>\"\",IF(Tabelle_Auswertung[[#This Row],[Punkte]]>0,RANK(Tabelle_Auswertung[[#This Row],[Punkte]],[Punkte],0),\" - \"),\" - \")","v":27},"Gert Häberlein",{"$f":"IF(Tabelle_Auswertung[[#This Row],[Platz]]=1,CONCATENATE(Tabelle_Auswertung[[#This Row],[Bildname]],\" von \",Tabelle_Auswertung[[#This Row],[Autor(in)]]),\"\")","v":""},{"$f":"IF(Tabelle_Auswertung[[#This Row],[Platz]]=2,CONCATENATE(Tabelle_Auswertung[[#This Row],[Bildname]],\" von \",Tabelle_Auswertung[[#This Row],[Autor(in)]]),\"\")","v":""},{"$f":"IF(Tabelle_Auswertung[[#This Row],[Platz]]=3,CONCATENATE(Tabelle_Auswertung[[#This Row],[Bildname]],\" von \",Tabelle_Auswertung[[#This Row],[Autor(in)]]),\"\")","v":""},{"$f":"IF(Tabelle_Auswertung[[#This Row],[Platz]]=4,CONCATENATE(Tabelle_Auswertung[[#This Row],[Bildname]],\" von \",Tabelle_Auswertung[[#This Row],[Autor(in)]]),\"\")","v":""},{"$f":"IF(Tabelle_Auswertung[[#This Row],[Platz]]=5,CONCATENATE(Tabelle_Auswertung[[#This Row],[Bildname]],\" von \",Tabelle_Auswertung[[#This Row],[Autor(in)]]),\"\")","v":""},{"$f":"IF(Tabelle_Auswertung[[#This Row],[Platz]]=6,CONCATENATE(Tabelle_Auswertung[[#This Row],[Bildname]],\" von \",Tabelle_Auswertung[[#This Row],[Autor(in)]]),\"\")","v":""},{"$f":"IF(Tabelle_Auswertung[[#This Row],[Platz]]=7,CONCATENATE(Tabelle_Auswertung[[#This Row],[Bildname]],\" von \",Tabelle_Auswertung[[#This Row],[Autor(in)]]),\"\")","v":""},{"$f":"IF(Tabelle_Auswertung[[#This Row],[Platz]]=8,CONCATENATE(Tabelle_Auswertung[[#This Row],[Bildname]],\" von \",Tabelle_Auswertung[[#This Row],[Autor(in)]]),\"\")","v":""},{"$f":"IF(Tabelle_Auswertung[[#This Row],[Platz]]=9,CONCATENATE(Tabelle_Auswertung[[#This Row],[Bildname]],\" von \",Tabelle_Auswertung[[#This Row],[Autor(in)]]),\"\")","v":""},{"$f":"IF(Tabelle_Auswertung[[#This Row],[Platz]]=10,CONCATENATE(Tabelle_Auswertung[[#This Row],[Bildname]],\" von \",Tabelle_Auswertung[[#This Row],[Autor(in)]]),\"\")","v":""}]
["Herbst mal anders.JPG",7,5,3,{"$nulls":17},{"$f":"IF(Tabelle_Auswertung[[#This Row],[Bildname]]<>\"\",SUM(Tabelle_Auswertung[[#This Row],[Juror 1]:[Juror 20]]),\" - \")","v":15},{"$f":"IF(Tabelle_Auswertung[[#This Row],[Bildname]]<>\"\",IF(Tabelle_Auswertung[[#This Row],[Punkte]]>0,AVERAGE(Tabelle_Auswertung[[#This Row],[Juror 1]:[Juror 20]]),\" - \"),\" - \")","v":{"v":5,"d":"5.00 "}},{"$f":"IF(Tabelle_Auswertung[[#This Row],[Bildname]]<>\"\",IF(Tabelle_Auswertung[[#This Row],[Punkte]]>0,RANK(Tabelle_Auswertung[[#This Row],[Punkte]],[Punkte],0),\" - \"),\" - \")","v":27},"Susanne Deinhardt",{"$f":"IF(Tabelle_Auswertung[[#This Row],[Platz]]=1,CONCATENATE(Tabelle_Auswertung[[#This Row],[Bildname]],\" von \",Tabelle_Auswertung[[#This Row],[Autor(in)]]),\"\")","v":""},{"$f":"IF(Tabelle_Auswertung[[#This Row],[Platz]]=2,CONCATENATE(Tabelle_Auswertung[[#This Row],[Bildname]],\" von \",Tabelle_Auswertung[[#This Row],[Autor(in)]]),\"\")","v":""},{"$f":"IF(Tabelle_Auswertung[[#This Row],[Platz]]=3,CONCATENATE(Tabelle_Auswertung[[#This Row],[Bildname]],\" von \",Tabelle_Auswertung[[#This Row],[Autor(in)]]),\"\")","v":""},{"$f":"IF(Tabelle_Auswertung[[#This Row],[Platz]]=4,CONCATENATE(Tabelle_Auswertung[[#This Row],[Bildname]],\" von \",Tabelle_Auswertung[[#This Row],[Autor(in)]]),\"\")","v":""},{"$f":"IF(Tabelle_Auswertung[[#This Row],[Platz]]=5,CONCATENATE(Tabelle_Auswertung[[#This Row],[Bildname]],\" von \",Tabelle_Auswertung[[#This Row],[Autor(in)]]),\"\")","v":""},{"$f":"IF(Tabelle_Auswertung[[#This Row],[Platz]]=6,CONCATENATE(Tabelle_Auswertung[[#This Row],[Bildname]],\" von \",Tabelle_Auswertung[[#This Row],[Autor(in)]]),\"\")","v":""},{"$f":"IF(Tabelle_Auswertung[[#This Row],[Platz]]=7,CONCATENATE(Tabelle_Auswertung[[#This Row],[Bildname]],\" von \",Tabelle_Auswertung[[#This Row],[Autor(in)]]),\"\")","v":""},{"$f":"IF(Tabelle_Auswertung[[#This Row],[Platz]]=8,CONCATENATE(Tabelle_Auswertung[[#This Row],[Bildname]],\" von \",Tabelle_Auswertung[[#This Row],[Autor(in)]]),\"\")","v":""},{"$f":"IF(Tabelle_Auswertung[[#This Row],[Platz]]=9,CONCATENATE(Tabelle_Auswertung[[#This Row],[Bildname]],\" von \",Tabelle_Auswertung[[#This Row],[Autor(in)]]),\"\")","v":""},{"$f":"IF(Tabelle_Auswertung[[#This Row],[Platz]]=10,CONCATENATE(Tabelle_Auswertung[[#This Row],[Bildname]],\" von \",Tabelle_Auswertung[[#This Row],[Autor(in)]]),\"\")","v":""}]
["Love.jpg",6,5,4,{"$nulls":17},{"$f":"IF(Tabelle_Auswertung[[#This Row],[Bildname]]<>\"\",SUM(Tabelle_Auswertung[[#This Row],[Juror 1]:[Juror 20]]),\" - \")","v":15},{"$f":"IF(Tabelle_Auswertung[[#This Row],[Bildname]]<>\"\",IF(Tabelle_Auswertung[[#This Row],[Punkte]]>0,AVERAGE(Tabelle_Auswertung[[#This Row],[Juror 1]:[Juror 20]]),\" - \"),\" - \")","v":5},{"$f":"IF(Tabelle_Auswertung[[#This Row],[Bildname]]<>\"\",IF(Tabelle_Auswertung[[#This Row],[Punkte]]>0,RANK(Tabelle_Auswertung[[#This Row],[Punkte]],[Punkte],0),\" - \"),\" - \")","v":27},"Jan Grünler",{"$f":"IF(Tabelle_Auswertung[[#This Row],[Platz]]=1,CONCATENATE(Tabelle_Auswertung[[#This Row],[Bildname]],\" von \",Tabelle_Auswertung[[#This Row],[Autor(in)]]),\"\")","v":""},{"$f":"IF(Tabelle_Auswertung[[#This Row],[Platz]]=2,CONCATENATE(Tabelle_Auswertung[[#This Row],[Bildname]],\" von \",Tabelle_Auswertung[[#This Row],[Autor(in)]]),\"\")","v":""},{"$f":"IF(Tabelle_Auswertung[[#This Row],[Platz]]=3,CONCATENATE(Tabelle_Auswertung[[#This Row],[Bildname]],\" von \",Tabelle_Auswertung[[#This Row],[Autor(in)]]),\"\")","v":""},{"$f":"IF(Tabelle_Auswertung[[#This Row],[Platz]]=4,CONCATENATE(Tabelle_Auswertung[[#This Row],[Bildname]],\" von \",Tabelle_Auswertung[[#This Row],[Autor(in)]]),\"\")","v":""},{"$f":"IF(Tabelle_Auswertung[[#This Row],[Platz]]=5,CONCATENATE(Tabelle_Auswertung[[#This Row],[Bildname]],\" von \",Tabelle_Auswertung[[#This Row],[Autor(in)]]),\"\")","v":""},{"$f":"IF(Tabelle_Auswertung[[#This Row],[Platz]]=6,CONCATENATE(Tabelle_Auswertung[[#This Row],[Bildname]],\" von \",Tabelle_Auswertung[[#This Row],[Autor(in)]]),\"\")","v":""},{"$f":"IF(Tabelle_Auswertung[[#This Row],[Platz]]=7,CONCATENATE(Tabelle_Auswertung[[#This Row],[Bildname]],\" von \",Tabelle_Auswertung[[#This Row],[Autor(in)]]),\"\")","v":""},{"$f":"IF(Tabelle_Auswertung[[#This Row],[Platz]]=8,CONCATENATE(Tabelle_Auswertung[[#This Row],[Bildname]],\" von \",Tabelle_Auswertung[[#This Row],[Autor(in)]]),\"\")","v":""},{"$f":"IF(Tabelle_Auswertung[[#This Row],[Platz]]=9,CONCATENATE(Tabelle_Auswertung[[#This Row],[Bildname]],\" von \",Tabelle_Auswertung[[#This Row],[Autor(in)]]),\"\")","v":""},{"$f":"IF(Tabelle_Auswertung[[#This Row],[Platz]]=10,CONCATENATE(Tabelle_Auswertung[[#This Row],[Bildname]],\" von \",Tabelle_Auswertung[[#This Row],[Autor(in)]]),\"\")","v":""}]
["Sea the boats.jpg",3,7,5,{"$nulls":17},{"$f":"IF(Tabelle_Auswertung[[#This Row],[Bildname]]<>\"\",SUM(Tabelle_Auswertung[[#This Row],[Juror 1]:[Juror 20]]),\" - \")","v":15},{"$f":"IF(Tabelle_Auswertung[[#This Row],[Bildname]]<>\"\",IF(Tabelle_Auswertung[[#This Row],[Punkte]]>0,AVERAGE(Tabelle_Auswertung[[#This Row],[Juror 1]:[Juror 20]]),\" - \"),\" - \")","v":{"v":5,"d":"5.00 "}},{"$f":"IF(Tabelle_Auswertung[[#This Row],[Bildname]]<>\"\",IF(Tabelle_Auswertung[[#This Row],[Punkte]]>0,RANK(Tabelle_Auswertung[[#This Row],[Punkte]],[Punkte],0),\" - \"),\" - \")","v":27},"Jan Grünler",{"$f":"IF(Tabelle_Auswertung[[#This Row],[Platz]]=1,CONCATENATE(Tabelle_Auswertung[[#This Row],[Bildname]],\" von \",Tabelle_Auswertung[[#This Row],[Autor(in)]]),\"\")","v":""},{"$f":"IF(Tabelle_Auswertung[[#This Row],[Platz]]=2,CONCATENATE(Tabelle_Auswertung[[#This Row],[Bildname]],\" von \",Tabelle_Auswertung[[#This Row],[Autor(in)]]),\"\")","v":""},{"$f":"IF(Tabelle_Auswertung[[#This Row],[Platz]]=3,CONCATENATE(Tabelle_Auswertung[[#This Row],[Bildname]],\" von \",Tabelle_Auswertung[[#This Row],[Autor(in)]]),\"\")","v":""},{"$f":"IF(Tabelle_Auswertung[[#This Row],[Platz]]=4,CONCATENATE(Tabelle_Auswertung[[#This Row],[Bildname]],\" von \",Tabelle_Auswertung[[#This Row],[Autor(in)]]),\"\")","v":""},{"$f":"IF(Tabelle_Auswertung[[#This Row],[Platz]]=5,CONCATENATE(Tabelle_Auswertung[[#This Row],[Bildname]],\" von \",Tabelle_Auswertung[[#This Row],[Autor(in)]]),\"\")","v":""},{"$f":"IF(Tabelle_Auswertung[[#This Row],[Platz]]=6,CONCATENATE(Tabelle_Auswertung[[#This Row],[Bildname]],\" von \",Tabelle_Auswertung[[#This Row],[Autor(in)]]),\"\")","v":""},{"$f":"IF(Tabelle_Auswertung[[#This Row],[Platz]]=7,CONCATENATE(Tabelle_Auswertung[[#This Row],[Bildname]],\" von \",Tabelle_Auswertung[[#This Row],[Autor(in)]]),\"\")","v":""},{"$f":"IF(Tabelle_Auswertung[[#This Row],[Platz]]=8,CONCATENATE(Tabelle_Auswertung[[#This Row],[Bildname]],\" von \",Tabelle_Auswertung[[#This Row],[Autor(in)]]),\"\")","v":""},{"$f":"IF(Tabelle_Auswertung[[#This Row],[Platz]]=9,CONCATENATE(Tabelle_Auswertung[[#This Row],[Bildname]],\" von \",Tabelle_Auswertung[[#This Row],[Autor(in)]]),\"\")","v":""},{"$f":"IF(Tabelle_Auswertung[[#This Row],[Platz]]=10,CONCATENATE(Tabelle_Auswertung[[#This Row],[Bildname]],\" von \",Tabelle_Auswertung[[#This Row],[Autor(in)]]),\"\")","v":""}]
["Deejay.jpg",6,4,4,{"$nulls":17},{"$f":"IF(Tabelle_Auswertung[[#This Row],[Bildname]]<>\"\",SUM(Tabelle_Auswertung[[#This Row],[Juror 1]:[Juror 20]]),\" - \")","v":14},{"$f":"IF(Tabelle_Auswertung[[#This Row],[Bildname]]<>\"\",IF(Tabelle_Auswertung[[#This Row],[Punkte]]>0,AVERAGE(Tabelle_Auswertung[[#This Row],[Juror 1]:[Juror 20]]),\" - \"),\" - \")","v":4.666666666666667},{"$f":"IF(Tabelle_Auswertung[[#This Row],[Bildname]]<>\"\",IF(Tabelle_Auswertung[[#This Row],[Punkte]]>0,RANK(Tabelle_Auswertung[[#This Row],[Punkte]],[Punkte],0),\" - \"),\" - \")","v":31},"Jan Grünler",{"$f":"IF(Tabelle_Auswertung[[#This Row],[Platz]]=1,CONCATENATE(Tabelle_Auswertung[[#This Row],[Bildname]],\" von \",Tabelle_Auswertung[[#This Row],[Autor(in)]]),\"\")","v":""},{"$f":"IF(Tabelle_Auswertung[[#This Row],[Platz]]=2,CONCATENATE(Tabelle_Auswertung[[#This Row],[Bildname]],\" von \",Tabelle_Auswertung[[#This Row],[Autor(in)]]),\"\")","v":""},{"$f":"IF(Tabelle_Auswertung[[#This Row],[Platz]]=3,CONCATENATE(Tabelle_Auswertung[[#This Row],[Bildname]],\" von \",Tabelle_Auswertung[[#This Row],[Autor(in)]]),\"\")","v":""},{"$f":"IF(Tabelle_Auswertung[[#This Row],[Platz]]=4,CONCATENATE(Tabelle_Auswertung[[#This Row],[Bildname]],\" von \",Tabelle_Auswertung[[#This Row],[Autor(in)]]),\"\")","v":""},{"$f":"IF(Tabelle_Auswertung[[#This Row],[Platz]]=5,CONCATENATE(Tabelle_Auswertung[[#This Row],[Bildname]],\" von \",Tabelle_Auswertung[[#This Row],[Autor(in)]]),\"\")","v":""},{"$f":"IF(Tabelle_Auswertung[[#This Row],[Platz]]=6,CONCATENATE(Tabelle_Auswertung[[#This Row],[Bildname]],\" von \",Tabelle_Auswertung[[#This Row],[Autor(in)]]),\"\")","v":""},{"$f":"IF(Tabelle_Auswertung[[#This Row],[Platz]]=7,CONCATENATE(Tabelle_Auswertung[[#This Row],[Bildname]],\" von \",Tabelle_Auswertung[[#This Row],[Autor(in)]]),\"\")","v":""},{"$f":"IF(Tabelle_Auswertung[[#This Row],[Platz]]=8,CONCATENATE(Tabelle_Auswertung[[#This Row],[Bildname]],\" von \",Tabelle_Auswertung[[#This Row],[Autor(in)]]),\"\")","v":""},{"$f":"IF(Tabelle_Auswertung[[#This Row],[Platz]]=9,CONCATENATE(Tabelle_Auswertung[[#This Row],[Bildname]],\" von \",Tabelle_Auswertung[[#This Row],[Autor(in)]]),\"\")","v":""},{"$f":"IF(Tabelle_Auswertung[[#This Row],[Platz]]=10,CONCATENATE(Tabelle_Auswertung[[#This Row],[Bildname]],\" von \",Tabelle_Auswertung[[#This Row],[Autor(in)]]),\"\")","v":""}]
["Face.jpg",5,5,4,{"$nulls":17},{"$f":"IF(Tabelle_Auswertung[[#This Row],[Bildname]]<>\"\",SUM(Tabelle_Auswertung[[#This Row],[Juror 1]:[Juror 20]]),\" - \")","v":14},{"$f":"IF(Tabelle_Auswertung[[#This Row],[Bildname]]<>\"\",IF(Tabelle_Auswertung[[#This Row],[Punkte]]>0,AVERAGE(Tabelle_Auswertung[[#This Row],[Juror 1]:[Juror 20]]),\" - \"),\" - \")","v":{"v":4.666666666666667,"d":"4.67 "}},{"$f":"IF(Tabelle_Auswertung[[#This Row],[Bildname]]<>\"\",IF(Tabelle_Auswertung[[#This Row],[Punkte]]>0,RANK(Tabelle_Auswertung[[#This Row],[Punkte]],[Punkte],0),\" - \"),\" - \")","v":31},"Andreas Toltz",{"$f":"IF(Tabelle_Auswertung[[#This Row],[Platz]]=1,CONCATENATE(Tabelle_Auswertung[[#This Row],[Bildname]],\" von \",Tabelle_Auswertung[[#This Row],[Autor(in)]]),\"\")","v":""},{"$f":"IF(Tabelle_Auswertung[[#This Row],[Platz]]=2,CONCATENATE(Tabelle_Auswertung[[#This Row],[Bildname]],\" von \",Tabelle_Auswertung[[#This Row],[Autor(in)]]),\"\")","v":""},{"$f":"IF(Tabelle_Auswertung[[#This Row],[Platz]]=3,CONCATENATE(Tabelle_Auswertung[[#This Row],[Bildname]],\" von \",Tabelle_Auswertung[[#This Row],[Autor(in)]]),\"\")","v":""},{"$f":"IF(Tabelle_Auswertung[[#This Row],[Platz]]=4,CONCATENATE(Tabelle_Auswertung[[#This Row],[Bildname]],\" von \",Tabelle_Auswertung[[#This Row],[Autor(in)]]),\"\")","v":""},{"$f":"IF(Tabelle_Auswertung[[#This Row],[Platz]]=5,CONCATENATE(Tabelle_Auswertung[[#This Row],[Bildname]],\" von \",Tabelle_Auswertung[[#This Row],[Autor(in)]]),\"\")","v":""},{"$f":"IF(Tabelle_Auswertung[[#This Row],[Platz]]=6,CONCATENATE(Tabelle_Auswertung[[#This Row],[Bildname]],\" von \",Tabelle_Auswertung[[#This Row],[Autor(in)]]),\"\")","v":""},{"$f":"IF(Tabelle_Auswertung[[#This Row],[Platz]]=7,CONCATENATE(Tabelle_Auswertung[[#This Row],[Bildname]],\" von \",Tabelle_Auswertung[[#This Row],[Autor(in)]]),\"\")","v":""},{"$f":"IF(Tabelle_Auswertung[[#This Row],[Platz]]=8,CONCATENATE(Tabelle_Auswertung[[#This Row],[Bildname]],\" von \",Tabelle_Auswertung[[#This Row],[Autor(in)]]),\"\")","v":""},{"$f":"IF(Tabelle_Auswertung[[#This Row],[Platz]]=9,CONCATENATE(Tabelle_Auswertung[[#This Row],[Bildname]],\" von \",Tabelle_Auswertung[[#This Row],[Autor(in)]]),\"\")","v":""},{"$f":"IF(Tabelle_Auswertung[[#This Row],[Platz]]=10,CONCATENATE(Tabelle_Auswertung[[#This Row],[Bildname]],\" von \",Tabelle_Auswertung[[#This Row],[Autor(in)]]),\"\")","v":""}]
["plopp.jpg",7,4,3,{"$nulls":17},{"$f":"IF(Tabelle_Auswertung[[#This Row],[Bildname]]<>\"\",SUM(Tabelle_Auswertung[[#This Row],[Juror 1]:[Juror 20]]),\" - \")","v":14},{"$f":"IF(Tabelle_Auswertung[[#This Row],[Bildname]]<>\"\",IF(Tabelle_Auswertung[[#This Row],[Punkte]]>0,AVERAGE(Tabelle_Auswertung[[#This Row],[Juror 1]:[Juror 20]]),\" - \"),\" - \")","v":{"v":4.666666666666667,"d":"4.67 "}},{"$f":"IF(Tabelle_Auswertung[[#This Row],[Bildname]]<>\"\",IF(Tabelle_Auswertung[[#This Row],[Punkte]]>0,RANK(Tabelle_Auswertung[[#This Row],[Punkte]],[Punkte],0),\" - \"),\" - \")","v":31},"Gerhard Rieß",{"$f":"IF(Tabelle_Auswertung[[#This Row],[Platz]]=1,CONCATENATE(Tabelle_Auswertung[[#This Row],[Bildname]],\" von \",Tabelle_Auswertung[[#This Row],[Autor(in)]]),\"\")","v":""},{"$f":"IF(Tabelle_Auswertung[[#This Row],[Platz]]=2,CONCATENATE(Tabelle_Auswertung[[#This Row],[Bildname]],\" von \",Tabelle_Auswertung[[#This Row],[Autor(in)]]),\"\")","v":""},{"$f":"IF(Tabelle_Auswertung[[#This Row],[Platz]]=3,CONCATENATE(Tabelle_Auswertung[[#This Row],[Bildname]],\" von \",Tabelle_Auswertung[[#This Row],[Autor(in)]]),\"\")","v":""},{"$f":"IF(Tabelle_Auswertung[[#This Row],[Platz]]=4,CONCATENATE(Tabelle_Auswertung[[#This Row],[Bildname]],\" von \",Tabelle_Auswertung[[#This Row],[Autor(in)]]),\"\")","v":""},{"$f":"IF(Tabelle_Auswertung[[#This Row],[Platz]]=5,CONCATENATE(Tabelle_Auswertung[[#This Row],[Bildname]],\" von \",Tabelle_Auswertung[[#This Row],[Autor(in)]]),\"\")","v":""},{"$f":"IF(Tabelle_Auswertung[[#This Row],[Platz]]=6,CONCATENATE(Tabelle_Auswertung[[#This Row],[Bildname]],\" von \",Tabelle_Auswertung[[#This Row],[Autor(in)]]),\"\")","v":""},{"$f":"IF(Tabelle_Auswertung[[#This Row],[Platz]]=7,CONCATENATE(Tabelle_Auswertung[[#This Row],[Bildname]],\" von \",Tabelle_Auswertung[[#This Row],[Autor(in)]]),\"\")","v":""},{"$f":"IF(Tabelle_Auswertung[[#This Row],[Platz]]=8,CONCATENATE(Tabelle_Auswertung[[#This Row],[Bildname]],\" von \",Tabelle_Auswertung[[#This Row],[Autor(in)]]),\"\")","v":""},{"$f":"IF(Tabelle_Auswertung[[#This Row],[Platz]]=9,CONCATENATE(Tabelle_Auswertung[[#This Row],[Bildname]],\" von \",Tabelle_Auswertung[[#This Row],[Autor(in)]]),\"\")","v":""},{"$f":"IF(Tabelle_Auswertung[[#This Row],[Platz]]=10,CONCATENATE(Tabelle_Auswertung[[#This Row],[Bildname]],\" von \",Tabelle_Auswertung[[#This Row],[Autor(in)]]),\"\")","v":""}]
["Guitar.jpg",4,4,4,{"$nulls":17},{"$f":"IF(Tabelle_Auswertung[[#This Row],[Bildname]]<>\"\",SUM(Tabelle_Auswertung[[#This Row],[Juror 1]:[Juror 20]]),\" - \")","v":12},{"$f":"IF(Tabelle_Auswertung[[#This Row],[Bildname]]<>\"\",IF(Tabelle_Auswertung[[#This Row],[Punkte]]>0,AVERAGE(Tabelle_Auswertung[[#This Row],[Juror 1]:[Juror 20]]),\" - \"),\" - \")","v":{"v":4,"d":"4.00 "}},{"$f":"IF(Tabelle_Auswertung[[#This Row],[Bildname]]<>\"\",IF(Tabelle_Auswertung[[#This Row],[Punkte]]>0,RANK(Tabelle_Auswertung[[#This Row],[Punkte]],[Punkte],0),\" - \"),\" - \")","v":34},"Jan Grünler",{"$f":"IF(Tabelle_Auswertung[[#This Row],[Platz]]=1,CONCATENATE(Tabelle_Auswertung[[#This Row],[Bildname]],\" von \",Tabelle_Auswertung[[#This Row],[Autor(in)]]),\"\")","v":""},{"$f":"IF(Tabelle_Auswertung[[#This Row],[Platz]]=2,CONCATENATE(Tabelle_Auswertung[[#This Row],[Bildname]],\" von \",Tabelle_Auswertung[[#This Row],[Autor(in)]]),\"\")","v":""},{"$f":"IF(Tabelle_Auswertung[[#This Row],[Platz]]=3,CONCATENATE(Tabelle_Auswertung[[#This Row],[Bildname]],\" von \",Tabelle_Auswertung[[#This Row],[Autor(in)]]),\"\")","v":""},{"$f":"IF(Tabelle_Auswertung[[#This Row],[Platz]]=4,CONCATENATE(Tabelle_Auswertung[[#This Row],[Bildname]],\" von \",Tabelle_Auswertung[[#This Row],[Autor(in)]]),\"\")","v":""},{"$f":"IF(Tabelle_Auswertung[[#This Row],[Platz]]=5,CONCATENATE(Tabelle_Auswertung[[#This Row],[Bildname]],\" von \",Tabelle_Auswertung[[#This Row],[Autor(in)]]),\"\")","v":""},{"$f":"IF(Tabelle_Auswertung[[#This Row],[Platz]]=6,CONCATENATE(Tabelle_Auswertung[[#This Row],[Bildname]],\" von \",Tabelle_Auswertung[[#This Row],[Autor(in)]]),\"\")","v":""},{"$f":"IF(Tabelle_Auswertung[[#This Row],[Platz]]=7,CONCATENATE(Tabelle_Auswertung[[#This Row],[Bildname]],\" von \",Tabelle_Auswertung[[#This Row],[Autor(in)]]),\"\")","v":""},{"$f":"IF(Tabelle_Auswertung[[#This Row],[Platz]]=8,CONCATENATE(Tabelle_Auswertung[[#This Row],[Bildname]],\" von \",Tabelle_Auswertung[[#This Row],[Autor(in)]]),\"\")","v":""},{"$f":"IF(Tabelle_Auswertung[[#This Row],[Platz]]=9,CONCATENATE(Tabelle_Auswertung[[#This Row],[Bildname]],\" von \",Tabelle_Auswertung[[#This Row],[Autor(in)]]),\"\")","v":""},{"$f":"IF(Tabelle_Auswertung[[#This Row],[Platz]]=10,CONCATENATE(Tabelle_Auswertung[[#This Row],[Bildname]],\" von \",Tabelle_Auswertung[[#This Row],[Autor(in)]]),\"\")","v":""}]
["nile_cruise.jpg",3,4,5,{"$nulls":17},{"$f":"IF(Tabelle_Auswertung[[#This Row],[Bildname]]<>\"\",SUM(Tabelle_Auswertung[[#This Row],[Juror 1]:[Juror 20]]),\" - \")","v":12},{"$f":"IF(Tabelle_Auswertung[[#This Row],[Bildname]]<>\"\",IF(Tabelle_Auswertung[[#This Row],[Punkte]]>0,AVERAGE(Tabelle_Auswertung[[#This Row],[Juror 1]:[Juror 20]]),\" - \"),\" - \")","v":{"v":4,"d":"4.00 "}},{"$f":"IF(Tabelle_Auswertung[[#This Row],[Bildname]]<>\"\",IF(Tabelle_Auswertung[[#This Row],[Punkte]]>0,RANK(Tabelle_Auswertung[[#This Row],[Punkte]],[Punkte],0),\" - \"),\" - \")","v":34},"Chris Finsterer",{"$f":"IF(Tabelle_Auswertung[[#This Row],[Platz]]=1,CONCATENATE(Tabelle_Auswertung[[#This Row],[Bildname]],\" von \",Tabelle_Auswertung[[#This Row],[Autor(in)]]),\"\")","v":""},{"$f":"IF(Tabelle_Auswertung[[#This Row],[Platz]]=2,CONCATENATE(Tabelle_Auswertung[[#This Row],[Bildname]],\" von \",Tabelle_Auswertung[[#This Row],[Autor(in)]]),\"\")","v":""},{"$f":"IF(Tabelle_Auswertung[[#This Row],[Platz]]=3,CONCATENATE(Tabelle_Auswertung[[#This Row],[Bildname]],\" von \",Tabelle_Auswertung[[#This Row],[Autor(in)]]),\"\")","v":""},{"$f":"IF(Tabelle_Auswertung[[#This Row],[Platz]]=4,CONCATENATE(Tabelle_Auswertung[[#This Row],[Bildname]],\" von \",Tabelle_Auswertung[[#This Row],[Autor(in)]]),\"\")","v":""},{"$f":"IF(Tabelle_Auswertung[[#This Row],[Platz]]=5,CONCATENATE(Tabelle_Auswertung[[#This Row],[Bildname]],\" von \",Tabelle_Auswertung[[#This Row],[Autor(in)]]),\"\")","v":""},{"$f":"IF(Tabelle_Auswertung[[#This Row],[Platz]]=6,CONCATENATE(Tabelle_Auswertung[[#This Row],[Bildname]],\" von \",Tabelle_Auswertung[[#This Row],[Autor(in)]]),\"\")","v":""},{"$f":"IF(Tabelle_Auswertung[[#This Row],[Platz]]=7,CONCATENATE(Tabelle_Auswertung[[#This Row],[Bildname]],\" von \",Tabelle_Auswertung[[#This Row],[Autor(in)]]),\"\")","v":""},{"$f":"IF(Tabelle_Auswertung[[#This Row],[Platz]]=8,CONCATENATE(Tabelle_Auswertung[[#This Row],[Bildname]],\" von \",Tabelle_Auswertung[[#This Row],[Autor(in)]]),\"\")","v":""},{"$f":"IF(Tabelle_Auswertung[[#This Row],[Platz]]=9,CONCATENATE(Tabelle_Auswertung[[#This Row],[Bildname]],\" von \",Tabelle_Auswertung[[#This Row],[Autor(in)]]),\"\")","v":""},{"$f":"IF(Tabelle_Auswertung[[#This Row],[Platz]]=10,CONCATENATE(Tabelle_Auswertung[[#This Row],[Bildname]],\" von \",Tabelle_Auswertung[[#This Row],[Autor(in)]]),\"\")","v":""}]
["Gruene Nacht.jpg",5,4,2,{"$nulls":17},{"$f":"IF(Tabelle_Auswertung[[#This Row],[Bildname]]<>\"\",SUM(Tabelle_Auswertung[[#This Row],[Juror 1]:[Juror 20]]),\" - \")","v":11},{"$f":"IF(Tabelle_Auswertung[[#This Row],[Bildname]]<>\"\",IF(Tabelle_Auswertung[[#This Row],[Punkte]]>0,AVERAGE(Tabelle_Auswertung[[#This Row],[Juror 1]:[Juror 20]]),\" - \"),\" - \")","v":{"v":3.6666666666666665,"d":"3.67 "}},{"$f":"IF(Tabelle_Auswertung[[#This Row],[Bildname]]<>\"\",IF(Tabelle_Auswertung[[#This Row],[Punkte]]>0,RANK(Tabelle_Auswertung[[#This Row],[Punkte]],[Punkte],0),\" - \"),\" - \")","v":36},"Gert Häberlein",{"$f":"IF(Tabelle_Auswertung[[#This Row],[Platz]]=1,CONCATENATE(Tabelle_Auswertung[[#This Row],[Bildname]],\" von \",Tabelle_Auswertung[[#This Row],[Autor(in)]]),\"\")","v":""},{"$f":"IF(Tabelle_Auswertung[[#This Row],[Platz]]=2,CONCATENATE(Tabelle_Auswertung[[#This Row],[Bildname]],\" von \",Tabelle_Auswertung[[#This Row],[Autor(in)]]),\"\")","v":""},{"$f":"IF(Tabelle_Auswertung[[#This Row],[Platz]]=3,CONCATENATE(Tabelle_Auswertung[[#This Row],[Bildname]],\" von \",Tabelle_Auswertung[[#This Row],[Autor(in)]]),\"\")","v":""},{"$f":"IF(Tabelle_Auswertung[[#This Row],[Platz]]=4,CONCATENATE(Tabelle_Auswertung[[#This Row],[Bildname]],\" von \",Tabelle_Auswertung[[#This Row],[Autor(in)]]),\"\")","v":""},{"$f":"IF(Tabelle_Auswertung[[#This Row],[Platz]]=5,CONCATENATE(Tabelle_Auswertung[[#This Row],[Bildname]],\" von \",Tabelle_Auswertung[[#This Row],[Autor(in)]]),\"\")","v":""},{"$f":"IF(Tabelle_Auswertung[[#This Row],[Platz]]=6,CONCATENATE(Tabelle_Auswertung[[#This Row],[Bildname]],\" von \",Tabelle_Auswertung[[#This Row],[Autor(in)]]),\"\")","v":""},{"$f":"IF(Tabelle_Auswertung[[#This Row],[Platz]]=7,CONCATENATE(Tabelle_Auswertung[[#This Row],[Bildname]],\" von \",Tabelle_Auswertung[[#This Row],[Autor(in)]]),\"\")","v":""},{"$f":"IF(Tabelle_Auswertung[[#This Row],[Platz]]=8,CONCATENATE(Tabelle_Auswertung[[#This Row],[Bildname]],\" von \",Tabelle_Auswertung[[#This Row],[Autor(in)]]),\"\")","v":""},{"$f":"IF(Tabelle_Auswertung[[#This Row],[Platz]]=9,CONCATENATE(Tabelle_Auswertung[[#This Row],[Bildname]],\" von \",Tabelle_Auswertung[[#This Row],[Autor(in)]]),\"\")","v":""},{"$f":"IF(Tabelle_Auswertung[[#This Row],[Platz]]=10,CONCATENATE(Tabelle_Auswertung[[#This Row],[Bildname]],\" von \",Tabelle_Auswertung[[#This Row],[Autor(in)]]),\"\")","v":""}]
[{"$nulls":21},{"$f":"IF(Tabelle_Auswertung[[#This Row],[Bildname]]<>\"\",SUM(Tabelle_Auswertung[[#This Row],[Juror 1]:[Juror 20]]),\" - \")","v":" - "},{"$f":"IF(Tabelle_Auswertung[[#This Row],[Bildname]]<>\"\",IF(Tabelle_Auswertung[[#This Row],[Punkte]]>0,AVERAGE(Tabelle_Auswertung[[#This Row],[Juror 1]:[Juror 20]]),\" - \"),\" - \")","v":" - "},{"$f":"IF(Tabelle_Auswertung[[#This Row],[Bildname]]<>\"\",IF(Tabelle_Auswertung[[#This Row],[Punkte]]>0,RANK(Tabelle_Auswertung[[#This Row],[Punkte]],[Punkte],0),\" - \"),\" - \")","v":" - "}," - - -",{"$f":"IF(Tabelle_Auswertung[[#This Row],[Platz]]=1,CONCATENATE(Tabelle_Auswertung[[#This Row],[Bildname]],\" von \",Tabelle_Auswertung[[#This Row],[Autor(in)]]),\"\")","v":""},{"$f":"IF(Tabelle_Auswertung[[#This Row],[Platz]]=2,CONCATENATE(Tabelle_Auswertung[[#This Row],[Bildname]],\" von \",Tabelle_Auswertung[[#This Row],[Autor(in)]]),\"\")","v":""},{"$f":"IF(Tabelle_Auswertung[[#This Row],[Platz]]=3,CONCATENATE(Tabelle_Auswertung[[#This Row],[Bildname]],\" von \",Tabelle_Auswertung[[#This Row],[Autor(in)]]),\"\")","v":""},{"$f":"IF(Tabelle_Auswertung[[#This Row],[Platz]]=4,CONCATENATE(Tabelle_Auswertung[[#This Row],[Bildname]],\" von \",Tabelle_Auswertung[[#This Row],[Autor(in)]]),\"\")","v":""},{"$f":"IF(Tabelle_Auswertung[[#This Row],[Platz]]=5,CONCATENATE(Tabelle_Auswertung[[#This Row],[Bildname]],\" von \",Tabelle_Auswertung[[#This Row],[Autor(in)]]),\"\")","v":""},{"$f":"IF(Tabelle_Auswertung[[#This Row],[Platz]]=6,CONCATENATE(Tabelle_Auswertung[[#This Row],[Bildname]],\" von \",Tabelle_Auswertung[[#This Row],[Autor(in)]]),\"\")","v":""},{"$f":"IF(Tabelle_Auswertung[[#This Row],[Platz]]=7,CONCATENATE(Tabelle_Auswertung[[#This Row],[Bildname]],\" von \",Tabelle_Auswertung[[#This Row],[Autor(in)]]),\"\")","v":""},{"$f":"IF(Tabelle_Auswertung[[#This Row],[Platz]]=8,CONCATENATE(Tabelle_Auswertung[[#This Row],[Bildname]],\" von \",Tabelle_Auswertung[[#This Row],[Autor(in)]]),\"\")","v":""},{"$f":"IF(Tabelle_Auswertung[[#This Row],[Platz]]=9,CONCATENATE(Tabelle_Auswertung[[#This Row],[Bildname]],\" von \",Tabelle_Auswertung[[#This Row],[Autor(in)]]),\"\")","v":""},{"$f":"IF(Tabelle_Auswertung[[#This Row],[Platz]]=10,CONCATENATE(Tabelle_Auswertung[[#This Row],[Bildname]],\" von \",Tabelle_Auswertung[[#This Row],[Autor(in)]]),\"\")","v":""}]
[{"$nulls":21},{"$f":"IF(Tabelle_Auswertung[[#This Row],[Bildname]]<>\"\",SUM(Tabelle_Auswertung[[#This Row],[Juror 1]:[Juror 20]]),\" - \")","v":" - "},{"$f":"IF(Tabelle_Auswertung[[#This Row],[Bildname]]<>\"\",IF(Tabelle_Auswertung[[#This Row],[Punkte]]>0,AVERAGE(Tabelle_Auswertung[[#This Row],[Juror 1]:[Juror 20]]),\" - \"),\" - \")","v":" - "},{"$f":"IF(Tabelle_Auswertung[[#This Row],[Bildname]]<>\"\",IF(Tabelle_Auswertung[[#This Row],[Punkte]]>0,RANK(Tabelle_Auswertung[[#This Row],[Punkte]],[Punkte],0),\" - \"),\" - \")","v":" - "}," - - -",{"$f":"IF(Tabelle_Auswertung[[#This Row],[Platz]]=1,CONCATENATE(Tabelle_Auswertung[[#This Row],[Bildname]],\" von \",Tabelle_Auswertung[[#This Row],[Autor(in)]]),\"\")","v":""},{"$f":"IF(Tabelle_Auswertung[[#This Row],[Platz]]=2,CONCATENATE(Tabelle_Auswertung[[#This Row],[Bildname]],\" von \",Tabelle_Auswertung[[#This Row],[Autor(in)]]),\"\")","v":""},{"$f":"IF(Tabelle_Auswertung[[#This Row],[Platz]]=3,CONCATENATE(Tabelle_Auswertung[[#This Row],[Bildname]],\" von \",Tabelle_Auswertung[[#This Row],[Autor(in)]]),\"\")","v":""},{"$f":"IF(Tabelle_Auswertung[[#This Row],[Platz]]=4,CONCATENATE(Tabelle_Auswertung[[#This Row],[Bildname]],\" von \",Tabelle_Auswertung[[#This Row],[Autor(in)]]),\"\")","v":""},{"$f":"IF(Tabelle_Auswertung[[#This Row],[Platz]]=5,CONCATENATE(Tabelle_Auswertung[[#This Row],[Bildname]],\" von \",Tabelle_Auswertung[[#This Row],[Autor(in)]]),\"\")","v":""},{"$f":"IF(Tabelle_Auswertung[[#This Row],[Platz]]=6,CONCATENATE(Tabelle_Auswertung[[#This Row],[Bildname]],\" von \",Tabelle_Auswertung[[#This Row],[Autor(in)]]),\"\")","v":""},{"$f":"IF(Tabelle_Auswertung[[#This Row],[Platz]]=7,CONCATENATE(Tabelle_Auswertung[[#This Row],[Bildname]],\" von \",Tabelle_Auswertung[[#This Row],[Autor(in)]]),\"\")","v":""},{"$f":"IF(Tabelle_Auswertung[[#This Row],[Platz]]=8,CONCATENATE(Tabelle_Auswertung[[#This Row],[Bildname]],\" von \",Tabelle_Auswertung[[#This Row],[Autor(in)]]),\"\")","v":""},{"$f":"IF(Tabelle_Auswertung[[#This Row],[Platz]]=9,CONCATENATE(Tabelle_Auswertung[[#This Row],[Bildname]],\" von \",Tabelle_Auswertung[[#This Row],[Autor(in)]]),\"\")","v":""},{"$f":"IF(Tabelle_Auswertung[[#This Row],[Platz]]=10,CONCATENATE(Tabelle_Auswertung[[#This Row],[Bildname]],\" von \",Tabelle_Auswertung[[#This Row],[Autor(in)]]),\"\")","v":""}]
[{"$nulls":21},{"$f":"IF(Tabelle_Auswertung[[#This Row],[Bildname]]<>\"\",SUM(Tabelle_Auswertung[[#This Row],[Juror 1]:[Juror 20]]),\" - \")","v":" - "},{"$f":"IF(Tabelle_Auswertung[[#This Row],[Bildname]]<>\"\",IF(Tabelle_Auswertung[[#This Row],[Punkte]]>0,AVERAGE(Tabelle_Auswertung[[#This Row],[Juror 1]:[Juror 20]]),\" - \"),\" - \")","v":" - "},{"$f":"IF(Tabelle_Auswertung[[#This Row],[Bildname]]<>\"\",IF(Tabelle_Auswertung[[#This Row],[Punkte]]>0,RANK(Tabelle_Auswertung[[#This Row],[Punkte]],[Punkte],0),\" - \"),\" - \")","v":" - "}," - - -",{"$f":"IF(Tabelle_Auswertung[[#This Row],[Platz]]=1,CONCATENATE(Tabelle_Auswertung[[#This Row],[Bildname]],\" von \",Tabelle_Auswertung[[#This Row],[Autor(in)]]),\"\")","v":""},{"$f":"IF(Tabelle_Auswertung[[#This Row],[Platz]]=2,CONCATENATE(Tabelle_Auswertung[[#This Row],[Bildname]],\" von \",Tabelle_Auswertung[[#This Row],[Autor(in)]]),\"\")","v":""},{"$f":"IF(Tabelle_Auswertung[[#This Row],[Platz]]=3,CONCATENATE(Tabelle_Auswertung[[#This Row],[Bildname]],\" von \",Tabelle_Auswertung[[#This Row],[Autor(in)]]),\"\")","v":""},{"$f":"IF(Tabelle_Auswertung[[#This Row],[Platz]]=4,CONCATENATE(Tabelle_Auswertung[[#This Row],[Bildname]],\" von \",Tabelle_Auswertung[[#This Row],[Autor(in)]]),\"\")","v":""},{"$f":"IF(Tabelle_Auswertung[[#This Row],[Platz]]=5,CONCATENATE(Tabelle_Auswertung[[#This Row],[Bildname]],\" von \",Tabelle_Auswertung[[#This Row],[Autor(in)]]),\"\")","v":""},{"$f":"IF(Tabelle_Auswertung[[#This Row],[Platz]]=6,CONCATENATE(Tabelle_Auswertung[[#This Row],[Bildname]],\" von \",Tabelle_Auswertung[[#This Row],[Autor(in)]]),\"\")","v":""},{"$f":"IF(Tabelle_Auswertung[[#This Row],[Platz]]=7,CONCATENATE(Tabelle_Auswertung[[#This Row],[Bildname]],\" von \",Tabelle_Auswertung[[#This Row],[Autor(in)]]),\"\")","v":""},{"$f":"IF(Tabelle_Auswertung[[#This Row],[Platz]]=8,CONCATENATE(Tabelle_Auswertung[[#This Row],[Bildname]],\" von \",Tabelle_Auswertung[[#This Row],[Autor(in)]]),\"\")","v":""},{"$f":"IF(Tabelle_Auswertung[[#This Row],[Platz]]=9,CONCATENATE(Tabelle_Auswertung[[#This Row],[Bildname]],\" von \",Tabelle_Auswertung[[#This Row],[Autor(in)]]),\"\")","v":""},{"$f":"IF(Tabelle_Auswertung[[#This Row],[Platz]]=10,CONCATENATE(Tabelle_Auswertung[[#This Row],[Bildname]],\" von \",Tabelle_Auswertung[[#This Row],[Autor(in)]]),\"\")","v":""}]
[{"$nulls":21},{"$f":"IF(Tabelle_Auswertung[[#This Row],[Bildname]]<>\"\",SUM(Tabelle_Auswertung[[#This Row],[Juror 1]:[Juror 20]]),\" - \")","v":" - "},{"$f":"IF(Tabelle_Auswertung[[#This Row],[Bildname]]<>\"\",IF(Tabelle_Auswertung[[#This Row],[Punkte]]>0,AVERAGE(Tabelle_Auswertung[[#This Row],[Juror 1]:[Juror 20]]),\" - \"),\" - \")","v":" - "},{"$f":"IF(Tabelle_Auswertung[[#This Row],[Bildname]]<>\"\",IF(Tabelle_Auswertung[[#This Row],[Punkte]]>0,RANK(Tabelle_Auswertung[[#This Row],[Punkte]],[Punkte],0),\" - \"),\" - \")","v":" - "}," - - -",{"$f":"IF(Tabelle_Auswertung[[#This Row],[Platz]]=1,CONCATENATE(Tabelle_Auswertung[[#This Row],[Bildname]],\" von \",Tabelle_Auswertung[[#This Row],[Autor(in)]]),\"\")","v":""},{"$f":"IF(Tabelle_Auswertung[[#This Row],[Platz]]=2,CONCATENATE(Tabelle_Auswertung[[#This Row],[Bildname]],\" von \",Tabelle_Auswertung[[#This Row],[Autor(in)]]),\"\")","v":""},{"$f":"IF(Tabelle_Auswertung[[#This Row],[Platz]]=3,CONCATENATE(Tabelle_Auswertung[[#This Row],[Bildname]],\" von \",Tabelle_Auswertung[[#This Row],[Autor(in)]]),\"\")","v":""},{"$f":"IF(Tabelle_Auswertung[[#This Row],[Platz]]=4,CONCATENATE(Tabelle_Auswertung[[#This Row],[Bildname]],\" von \",Tabelle_Auswertung[[#This Row],[Autor(in)]]),\"\")","v":""},{"$f":"IF(Tabelle_Auswertung[[#This Row],[Platz]]=5,CONCATENATE(Tabelle_Auswertung[[#This Row],[Bildname]],\" von \",Tabelle_Auswertung[[#This Row],[Autor(in)]]),\"\")","v":""},{"$f":"IF(Tabelle_Auswertung[[#This Row],[Platz]]=6,CONCATENATE(Tabelle_Auswertung[[#This Row],[Bildname]],\" von \",Tabelle_Auswertung[[#This Row],[Autor(in)]]),\"\")","v":""},{"$f":"IF(Tabelle_Auswertung[[#This Row],[Platz]]=7,CONCATENATE(Tabelle_Auswertung[[#This Row],[Bildname]],\" von \",Tabelle_Auswertung[[#This Row],[Autor(in)]]),\"\")","v":""},{"$f":"IF(Tabelle_Auswertung[[#This Row],[Platz]]=8,CONCATENATE(Tabelle_Auswertung[[#This Row],[Bildname]],\" von \",Tabelle_Auswertung[[#This Row],[Autor(in)]]),\"\")","v":""},{"$f":"IF(Tabelle_Auswertung[[#This Row],[Platz]]=9,CONCATENATE(Tabelle_Auswertung[[#This Row],[Bildname]],\" von \",Tabelle_Auswertung[[#This Row],[Autor(in)]]),\"\")","v":""},{"$f":"IF(Tabelle_Auswertung[[#This Row],[Platz]]=10,CONCATENATE(Tabelle_Auswertung[[#This Row],[Bildname]],\" von \",Tabelle_Auswertung[[#This Row],[Autor(in)]]),\"\")","v":""}]
[{"$nulls":21},{"$f":"IF(Tabelle_Auswertung[[#This Row],[Bildname]]<>\"\",SUM(Tabelle_Auswertung[[#This Row],[Juror 1]:[Juror 20]]),\" - \")","v":" - "},{"$f":"IF(Tabelle_Auswertung[[#This Row],[Bildname]]<>\"\",IF(Tabelle_Auswertung[[#This Row],[Punkte]]>0,AVERAGE(Tabelle_Auswertung[[#This Row],[Juror 1]:[Juror 20]]),\" - \"),\" - \")","v":" - "},{"$f":"IF(Tabelle_Auswertung[[#This Row],[Bildname]]<>\"\",IF(Tabelle_Auswertung[[#This Row],[Punkte]]>0,RANK(Tabelle_Auswertung[[#This Row],[Punkte]],[Punkte],0),\" - \"),\" - \")","v":" - "}," - - -",{"$f":"IF(Tabelle_Auswertung[[#This Row],[Platz]]=1,CONCATENATE(Tabelle_Auswertung[[#This Row],[Bildname]],\" von \",Tabelle_Auswertung[[#This Row],[Autor(in)]]),\"\")","v":""},{"$f":"IF(Tabelle_Auswertung[[#This Row],[Platz]]=2,CONCATENATE(Tabelle_Auswertung[[#This Row],[Bildname]],\" von \",Tabelle_Auswertung[[#This Row],[Autor(in)]]),\"\")","v":""},{"$f":"IF(Tabelle_Auswertung[[#This Row],[Platz]]=3,CONCATENATE(Tabelle_Auswertung[[#This Row],[Bildname]],\" von \",Tabelle_Auswertung[[#This Row],[Autor(in)]]),\"\")","v":""},{"$f":"IF(Tabelle_Auswertung[[#This Row],[Platz]]=4,CONCATENATE(Tabelle_Auswertung[[#This Row],[Bildname]],\" von \",Tabelle_Auswertung[[#This Row],[Autor(in)]]),\"\")","v":""},{"$f":"IF(Tabelle_Auswertung[[#This Row],[Platz]]=5,CONCATENATE(Tabelle_Auswertung[[#This Row],[Bildname]],\" von \",Tabelle_Auswertung[[#This Row],[Autor(in)]]),\"\")","v":""},{"$f":"IF(Tabelle_Auswertung[[#This Row],[Platz]]=6,CONCATENATE(Tabelle_Auswertung[[#This Row],[Bildname]],\" von \",Tabelle_Auswertung[[#This Row],[Autor(in)]]),\"\")","v":""},{"$f":"IF(Tabelle_Auswertung[[#This Row],[Platz]]=7,CONCATENATE(Tabelle_Auswertung[[#This Row],[Bildname]],\" von \",Tabelle_Auswertung[[#This Row],[Autor(in)]]),\"\")","v":""},{"$f":"IF(Tabelle_Auswertung[[#This Row],[Platz]]=8,CONCATENATE(Tabelle_Auswertung[[#This Row],[Bildname]],\" von \",Tabelle_Auswertung[[#This Row],[Autor(in)]]),\"\")","v":""},{"$f":"IF(Tabelle_Auswertung[[#This Row],[Platz]]=9,CONCATENATE(Tabelle_Auswertung[[#This Row],[Bildname]],\" von \",Tabelle_Auswertung[[#This Row],[Autor(in)]]),\"\")","v":""},{"$f":"IF(Tabelle_Auswertung[[#This Row],[Platz]]=10,CONCATENATE(Tabelle_Auswertung[[#This Row],[Bildname]],\" von \",Tabelle_Auswertung[[#This Row],[Autor(in)]]),\"\")","v":""}]
[{"$nulls":21},{"$f":"IF(Tabelle_Auswertung[[#This Row],[Bildname]]<>\"\",SUM(Tabelle_Auswertung[[#This Row],[Juror 1]:[Juror 20]]),\" - \")","v":" - "},{"$f":"IF(Tabelle_Auswertung[[#This Row],[Bildname]]<>\"\",IF(Tabelle_Auswertung[[#This Row],[Punkte]]>0,AVERAGE(Tabelle_Auswertung[[#This Row],[Juror 1]:[Juror 20]]),\" - \"),\" - \")","v":" - "},{"$f":"IF(Tabelle_Auswertung[[#This Row],[Bildname]]<>\"\",IF(Tabelle_Auswertung[[#This Row],[Punkte]]>0,RANK(Tabelle_Auswertung[[#This Row],[Punkte]],[Punkte],0),\" - \"),\" - \")","v":" - "}," - - -",{"$f":"IF(Tabelle_Auswertung[[#This Row],[Platz]]=1,CONCATENATE(Tabelle_Auswertung[[#This Row],[Bildname]],\" von \",Tabelle_Auswertung[[#This Row],[Autor(in)]]),\"\")","v":""},{"$f":"IF(Tabelle_Auswertung[[#This Row],[Platz]]=2,CONCATENATE(Tabelle_Auswertung[[#This Row],[Bildname]],\" von \",Tabelle_Auswertung[[#This Row],[Autor(in)]]),\"\")","v":""},{"$f":"IF(Tabelle_Auswertung[[#This Row],[Platz]]=3,CONCATENATE(Tabelle_Auswertung[[#This Row],[Bildname]],\" von \",Tabelle_Auswertung[[#This Row],[Autor(in)]]),\"\")","v":""},{"$f":"IF(Tabelle_Auswertung[[#This Row],[Platz]]=4,CONCATENATE(Tabelle_Auswertung[[#This Row],[Bildname]],\" von \",Tabelle_Auswertung[[#This Row],[Autor(in)]]),\"\")","v":""},{"$f":"IF(Tabelle_Auswertung[[#This Row],[Platz]]=5,CONCATENATE(Tabelle_Auswertung[[#This Row],[Bildname]],\" von \",Tabelle_Auswertung[[#This Row],[Autor(in)]]),\"\")","v":""},{"$f":"IF(Tabelle_Auswertung[[#This Row],[Platz]]=6,CONCATENATE(Tabelle_Auswertung[[#This Row],[Bildname]],\" von \",Tabelle_Auswertung[[#This Row],[Autor(in)]]),\"\")","v":""},{"$f":"IF(Tabelle_Auswertung[[#This Row],[Platz]]=7,CONCATENATE(Tabelle_Auswertung[[#This Row],[Bildname]],\" von \",Tabelle_Auswertung[[#This Row],[Autor(in)]]),\"\")","v":""},{"$f":"IF(Tabelle_Auswertung[[#This Row],[Platz]]=8,CONCATENATE(Tabelle_Auswertung[[#This Row],[Bildname]],\" von \",Tabelle_Auswertung[[#This Row],[Autor(in)]]),\"\")","v":""},{"$f":"IF(Tabelle_Auswertung[[#This Row],[Platz]]=9,CONCATENATE(Tabelle_Auswertung[[#This Row],[Bildname]],\" von \",Tabelle_Auswertung[[#This Row],[Autor(in)]]),\"\")","v":""},{"$f":"IF(Tabelle_Auswertung[[#This Row],[Platz]]=10,CONCATENATE(Tabelle_Auswertung[[#This Row],[Bildname]],\" von \",Tabelle_Auswertung[[#This Row],[Autor(in)]]),\"\")","v":""}]
[{"$nulls":21},{"$f":"IF(Tabelle_Auswertung[[#This Row],[Bildname]]<>\"\",SUM(Tabelle_Auswertung[[#This Row],[Juror 1]:[Juror 20]]),\" - \")","v":" - "},{"$f":"IF(Tabelle_Auswertung[[#This Row],[Bildname]]<>\"\",IF(Tabelle_Auswertung[[#This Row],[Punkte]]>0,AVERAGE(Tabelle_Auswertung[[#This Row],[Juror 1]:[Juror 20]]),\" - \"),\" - \")","v":" - "},{"$f":"IF(Tabelle_Auswertung[[#This Row],[Bildname]]<>\"\",IF(Tabelle_Auswertung[[#This Row],[Punkte]]>0,RANK(Tabelle_Auswertung[[#This Row],[Punkte]],[Punkte],0),\" - \"),\" - \")","v":" - "}," - - -",{"$f":"IF(Tabelle_Auswertung[[#This Row],[Platz]]=1,CONCATENATE(Tabelle_Auswertung[[#This Row],[Bildname]],\" von \",Tabelle_Auswertung[[#This Row],[Autor(in)]]),\"\")","v":""},{"$f":"IF(Tabelle_Auswertung[[#This Row],[Platz]]=2,CONCATENATE(Tabelle_Auswertung[[#This Row],[Bildname]],\" von \",Tabelle_Auswertung[[#This Row],[Autor(in)]]),\"\")","v":""},{"$f":"IF(Tabelle_Auswertung[[#This Row],[Platz]]=3,CONCATENATE(Tabelle_Auswertung[[#This Row],[Bildname]],\" von \",Tabelle_Auswertung[[#This Row],[Autor(in)]]),\"\")","v":""},{"$f":"IF(Tabelle_Auswertung[[#This Row],[Platz]]=4,CONCATENATE(Tabelle_Auswertung[[#This Row],[Bildname]],\" von \",Tabelle_Auswertung[[#This Row],[Autor(in)]]),\"\")","v":""},{"$f":"IF(Tabelle_Auswertung[[#This Row],[Platz]]=5,CONCATENATE(Tabelle_Auswertung[[#This Row],[Bildname]],\" von \",Tabelle_Auswertung[[#This Row],[Autor(in)]]),\"\")","v":""},{"$f":"IF(Tabelle_Auswertung[[#This Row],[Platz]]=6,CONCATENATE(Tabelle_Auswertung[[#This Row],[Bildname]],\" von \",Tabelle_Auswertung[[#This Row],[Autor(in)]]),\"\")","v":""},{"$f":"IF(Tabelle_Auswertung[[#This Row],[Platz]]=7,CONCATENATE(Tabelle_Auswertung[[#This Row],[Bildname]],\" von \",Tabelle_Auswertung[[#This Row],[Autor(in)]]),\"\")","v":""},{"$f":"IF(Tabelle_Auswertung[[#This Row],[Platz]]=8,CONCATENATE(Tabelle_Auswertung[[#This Row],[Bildname]],\" von \",Tabelle_Auswertung[[#This Row],[Autor(in)]]),\"\")","v":""},{"$f":"IF(Tabelle_Auswertung[[#This Row],[Platz]]=9,CONCATENATE(Tabelle_Auswertung[[#This Row],[Bildname]],\" von \",Tabelle_Auswertung[[#This Row],[Autor(in)]]),\"\")","v":""},{"$f":"IF(Tabelle_Auswertung[[#This Row],[Platz]]=10,CONCATENATE(Tabelle_Auswertung[[#This Row],[Bildname]],\" von \",Tabelle_Auswertung[[#This Row],[Autor(in)]]),\"\")","v":""}]
[{"$nulls":21},{"$f":"IF(Tabelle_Auswertung[[#This Row],[Bildname]]<>\"\",SUM(Tabelle_Auswertung[[#This Row],[Juror 1]:[Juror 20]]),\" - \")","v":" - "},{"$f":"IF(Tabelle_Auswertung[[#This Row],[Bildname]]<>\"\",IF(Tabelle_Auswertung[[#This Row],[Punkte]]>0,AVERAGE(Tabelle_Auswertung[[#This Row],[Juror 1]:[Juror 20]]),\" - \"),\" - \")","v":" - "},{"$f":"IF(Tabelle_Auswertung[[#This Row],[Bildname]]<>\"\",IF(Tabelle_Auswertung[[#This Row],[Punkte]]>0,RANK(Tabelle_Auswertung[[#This Row],[Punkte]],[Punkte],0),\" - \"),\" - \")","v":" - "}," - - -",{"$f":"IF(Tabelle_Auswertung[[#This Row],[Platz]]=1,CONCATENATE(Tabelle_Auswertung[[#This Row],[Bildname]],\" von \",Tabelle_Auswertung[[#This Row],[Autor(in)]]),\"\")","v":""},{"$f":"IF(Tabelle_Auswertung[[#This Row],[Platz]]=2,CONCATENATE(Tabelle_Auswertung[[#This Row],[Bildname]],\" von \",Tabelle_Auswertung[[#This Row],[Autor(in)]]),\"\")","v":""},{"$f":"IF(Tabelle_Auswertung[[#This Row],[Platz]]=3,CONCATENATE(Tabelle_Auswertung[[#This Row],[Bildname]],\" von \",Tabelle_Auswertung[[#This Row],[Autor(in)]]),\"\")","v":""},{"$f":"IF(Tabelle_Auswertung[[#This Row],[Platz]]=4,CONCATENATE(Tabelle_Auswertung[[#This Row],[Bildname]],\" von \",Tabelle_Auswertung[[#This Row],[Autor(in)]]),\"\")","v":""},{"$f":"IF(Tabelle_Auswertung[[#This Row],[Platz]]=5,CONCATENATE(Tabelle_Auswertung[[#This Row],[Bildname]],\" von \",Tabelle_Auswertung[[#This Row],[Autor(in)]]),\"\")","v":""},{"$f":"IF(Tabelle_Auswertung[[#This Row],[Platz]]=6,CONCATENATE(Tabelle_Auswertung[[#This Row],[Bildname]],\" von \",Tabelle_Auswertung[[#This Row],[Autor(in)]]),\"\")","v":""},{"$f":"IF(Tabelle_Auswertung[[#This Row],[Platz]]=7,CONCATENATE(Tabelle_Auswertung[[#This Row],[Bildname]],\" von \",Tabelle_Auswertung[[#This Row],[Autor(in)]]),\"\")","v":""},{"$f":"IF(Tabelle_Auswertung[[#This Row],[Platz]]=8,CONCATENATE(Tabelle_Auswertung[[#This Row],[Bildname]],\" von \",Tabelle_Auswertung[[#This Row],[Autor(in)]]),\"\")","v":""},{"$f":"IF(Tabelle_Auswertung[[#This Row],[Platz]]=9,CONCATENATE(Tabelle_Auswertung[[#This Row],[Bildname]],\" von \",Tabelle_Auswertung[[#This Row],[Autor(in)]]),\"\")","v":""},{"$f":"IF(Tabelle_Auswertung[[#This Row],[Platz]]=10,CONCATENATE(Tabelle_Auswertung[[#This Row],[Bildname]],\" von \",Tabelle_Auswertung[[#This Row],[Autor(in)]]),\"\")","v":""}]
[{"$nulls":21},{"$f":"IF(Tabelle_Auswertung[[#This Row],[Bildname]]<>\"\",SUM(Tabelle_Auswertung[[#This Row],[Juror 1]:[Juror 20]]),\" - \")","v":" - "},{"$f":"IF(Tabelle_Auswertung[[#This Row],[Bildname]]<>\"\",IF(Tabelle_Auswertung[[#This Row],[Punkte]]>0,AVERAGE(Tabelle_Auswertung[[#This Row],[Juror 1]:[Juror 20]]),\" - \"),\" - \")","v":" - "},{"$f":"IF(Tabelle_Auswertung[[#This Row],[Bildname]]<>\"\",IF(Tabelle_Auswertung[[#This Row],[Punkte]]>0,RANK(Tabelle_Auswertung[[#This Row],[Punkte]],[Punkte],0),\" - \"),\" - \")","v":" - "}," - - -",{"$f":"IF(Tabelle_Auswertung[[#This Row],[Platz]]=1,CONCATENATE(Tabelle_Auswertung[[#This Row],[Bildname]],\" von \",Tabelle_Auswertung[[#This Row],[Autor(in)]]),\"\")","v":""},{"$f":"IF(Tabelle_Auswertung[[#This Row],[Platz]]=2,CONCATENATE(Tabelle_Auswertung[[#This Row],[Bildname]],\" von \",Tabelle_Auswertung[[#This Row],[Autor(in)]]),\"\")","v":""},{"$f":"IF(Tabelle_Auswertung[[#This Row],[Platz]]=3,CONCATENATE(Tabelle_Auswertung[[#This Row],[Bildname]],\" von \",Tabelle_Auswertung[[#This Row],[Autor(in)]]),\"\")","v":""},{"$f":"IF(Tabelle_Auswertung[[#This Row],[Platz]]=4,CONCATENATE(Tabelle_Auswertung[[#This Row],[Bildname]],\" von \",Tabelle_Auswertung[[#This Row],[Autor(in)]]),\"\")","v":""},{"$f":"IF(Tabelle_Auswertung[[#This Row],[Platz]]=5,CONCATENATE(Tabelle_Auswertung[[#This Row],[Bildname]],\" von \",Tabelle_Auswertung[[#This Row],[Autor(in)]]),\"\")","v":""},{"$f":"IF(Tabelle_Auswertung[[#This Row],[Platz]]=6,CONCATENATE(Tabelle_Auswertung[[#This Row],[Bildname]],\" von \",Tabelle_Auswertung[[#This Row],[Autor(in)]]),\"\")","v":""},{"$f":"IF(Tabelle_Auswertung[[#This Row],[Platz]]=7,CONCATENATE(Tabelle_Auswertung[[#This Row],[Bildname]],\" von \",Tabelle_Auswertung[[#This Row],[Autor(in)]]),\"\")","v":""},{"$f":"IF(Tabelle_Auswertung[[#This Row],[Platz]]=8,CONCATENATE(Tabelle_Auswertung[[#This Row],[Bildname]],\" von \",Tabelle_Auswertung[[#This Row],[Autor(in)]]),\"\")","v":""},{"$f":"IF(Tabelle_Auswertung[[#This Row],[Platz]]=9,CONCATENATE(Tabelle_Auswertung[[#This Row],[Bildname]],\" von \",Tabelle_Auswertung[[#This Row],[Autor(in)]]),\"\")","v":""},{"$f":"IF(Tabelle_Auswertung[[#This Row],[Platz]]=10,CONCATENATE(Tabelle_Auswertung[[#This Row],[Bildname]],\" von \",Tabelle_Auswertung[[#This Row],[Autor(in)]]),\"\")","v":""}]
[{"$nulls":21},{"$f":"IF(Tabelle_Auswertung[[#This Row],[Bildname]]<>\"\",SUM(Tabelle_Auswertung[[#This Row],[Juror 1]:[Juror 20]]),\" - \")","v":" - "},{"$f":"IF(Tabelle_Auswertung[[#This Row],[Bildname]]<>\"\",IF(Tabelle_Auswertung[[#This Row],[Punkte]]>0,AVERAGE(Tabelle_Auswertung[[#This Row],[Juror 1]:[Juror 20]]),\" - \"),\" - \")","v":" - "},{"$f":"IF(Tabelle_Auswertung[[#This Row],[Bildname]]<>\"\",IF(Tabelle_Auswertung[[#This Row],[Punkte]]>0,RANK(Tabelle_Auswertung[[#This Row],[Punkte]],[Punkte],0),\" - \"),\" - \")","v":" - "}," - - -",{"$f":"IF(Tabelle_Auswertung[[#This Row],[Platz]]=1,CONCATENATE(Tabelle_Auswertung[[#This Row],[Bildname]],\" von \",Tabelle_Auswertung[[#This Row],[Autor(in)]]),\"\")","v":""},{"$f":"IF(Tabelle_Auswertung[[#This Row],[Platz]]=2,CONCATENATE(Tabelle_Auswertung[[#This Row],[Bildname]],\" von \",Tabelle_Auswertung[[#This Row],[Autor(in)]]),\"\")","v":""},{"$f":"IF(Tabelle_Auswertung[[#This Row],[Platz]]=3,CONCATENATE(Tabelle_Auswertung[[#This Row],[Bildname]],\" von \",Tabelle_Auswertung[[#This Row],[Autor(in)]]),\"\")","v":""},{"$f":"IF(Tabelle_Auswertung[[#This Row],[Platz]]=4,CONCATENATE(Tabelle_Auswertung[[#This Row],[Bildname]],\" von \",Tabelle_Auswertung[[#This Row],[Autor(in)]]),\"\")","v":""},{"$f":"IF(Tabelle_Auswertung[[#This Row],[Platz]]=5,CONCATENATE(Tabelle_Auswertung[[#This Row],[Bildname]],\" von \",Tabelle_Auswertung[[#This Row],[Autor(in)]]),\"\")","v":""},{"$f":"IF(Tabelle_Auswertung[[#This Row],[Platz]]=6,CONCATENATE(Tabelle_Auswertung[[#This Row],[Bildname]],\" von \",Tabelle_Auswertung[[#This Row],[Autor(in)]]),\"\")","v":""},{"$f":"IF(Tabelle_Auswertung[[#This Row],[Platz]]=7,CONCATENATE(Tabelle_Auswertung[[#This Row],[Bildname]],\" von \",Tabelle_Auswertung[[#This Row],[Autor(in)]]),\"\")","v":""},{"$f":"IF(Tabelle_Auswertung[[#This Row],[Platz]]=8,CONCATENATE(Tabelle_Auswertung[[#This Row],[Bildname]],\" von \",Tabelle_Auswertung[[#This Row],[Autor(in)]]),\"\")","v":""},{"$f":"IF(Tabelle_Auswertung[[#This Row],[Platz]]=9,CONCATENATE(Tabelle_Auswertung[[#This Row],[Bildname]],\" von \",Tabelle_Auswertung[[#This Row],[Autor(in)]]),\"\")","v":""},{"$f":"IF(Tabelle_Auswertung[[#This Row],[Platz]]=10,CONCATENATE(Tabelle_Auswertung[[#This Row],[Bildname]],\" von \",Tabelle_Auswertung[[#This Row],[Autor(in)]]),\"\")","v":""}]
[{"$nulls":21},{"$f":"IF(Tabelle_Auswertung[[#This Row],[Bildname]]<>\"\",SUM(Tabelle_Auswertung[[#This Row],[Juror 1]:[Juror 20]]),\" - \")","v":" - "},{"$f":"IF(Tabelle_Auswertung[[#This Row],[Bildname]]<>\"\",IF(Tabelle_Auswertung[[#This Row],[Punkte]]>0,AVERAGE(Tabelle_Auswertung[[#This Row],[Juror 1]:[Juror 20]]),\" - \"),\" - \")","v":" - "},{"$f":"IF(Tabelle_Auswertung[[#This Row],[Bildname]]<>\"\",IF(Tabelle_Auswertung[[#This Row],[Punkte]]>0,RANK(Tabelle_Auswertung[[#This Row],[Punkte]],[Punkte],0),\" - \"),\" - \")","v":" - "}," - - -",{"$f":"IF(Tabelle_Auswertung[[#This Row],[Platz]]=1,CONCATENATE(Tabelle_Auswertung[[#This Row],[Bildname]],\" von \",Tabelle_Auswertung[[#This Row],[Autor(in)]]),\"\")","v":""},{"$f":"IF(Tabelle_Auswertung[[#This Row],[Platz]]=2,CONCATENATE(Tabelle_Auswertung[[#This Row],[Bildname]],\" von \",Tabelle_Auswertung[[#This Row],[Autor(in)]]),\"\")","v":""},{"$f":"IF(Tabelle_Auswertung[[#This Row],[Platz]]=3,CONCATENATE(Tabelle_Auswertung[[#This Row],[Bildname]],\" von \",Tabelle_Auswertung[[#This Row],[Autor(in)]]),\"\")","v":""},{"$f":"IF(Tabelle_Auswertung[[#This Row],[Platz]]=4,CONCATENATE(Tabelle_Auswertung[[#This Row],[Bildname]],\" von \",Tabelle_Auswertung[[#This Row],[Autor(in)]]),\"\")","v":""},{"$f":"IF(Tabelle_Auswertung[[#This Row],[Platz]]=5,CONCATENATE(Tabelle_Auswertung[[#This Row],[Bildname]],\" von \",Tabelle_Auswertung[[#This Row],[Autor(in)]]),\"\")","v":""},{"$f":"IF(Tabelle_Auswertung[[#This Row],[Platz]]=6,CONCATENATE(Tabelle_Auswertung[[#This Row],[Bildname]],\" von \",Tabelle_Auswertung[[#This Row],[Autor(in)]]),\"\")","v":""},{"$f":"IF(Tabelle_Auswertung[[#This Row],[Platz]]=7,CONCATENATE(Tabelle_Auswertung[[#This Row],[Bildname]],\" von \",Tabelle_Auswertung[[#This Row],[Autor(in)]]),\"\")","v":""},{"$f":"IF(Tabelle_Auswertung[[#This Row],[Platz]]=8,CONCATENATE(Tabelle_Auswertung[[#This Row],[Bildname]],\" von \",Tabelle_Auswertung[[#This Row],[Autor(in)]]),\"\")","v":""},{"$f":"IF(Tabelle_Auswertung[[#This Row],[Platz]]=9,CONCATENATE(Tabelle_Auswertung[[#This Row],[Bildname]],\" von \",Tabelle_Auswertung[[#This Row],[Autor(in)]]),\"\")","v":""},{"$f":"IF(Tabelle_Auswertung[[#This Row],[Platz]]=10,CONCATENATE(Tabelle_Auswertung[[#This Row],[Bildname]],\" von \",Tabelle_Auswertung[[#This Row],[Autor(in)]]),\"\")","v":""}]
[{"$nulls":21},{"$f":"IF(Tabelle_Auswertung[[#This Row],[Bildname]]<>\"\",SUM(Tabelle_Auswertung[[#This Row],[Juror 1]:[Juror 20]]),\" - \")","v":" - "},{"$f":"IF(Tabelle_Auswertung[[#This Row],[Bildname]]<>\"\",IF(Tabelle_Auswertung[[#This Row],[Punkte]]>0,AVERAGE(Tabelle_Auswertung[[#This Row],[Juror 1]:[Juror 20]]),\" - \"),\" - \")","v":" - "},{"$f":"IF(Tabelle_Auswertung[[#This Row],[Bildname]]<>\"\",IF(Tabelle_Auswertung[[#This Row],[Punkte]]>0,RANK(Tabelle_Auswertung[[#This Row],[Punkte]],[Punkte],0),\" - \"),\" - \")","v":" - "}," - - -",{"$f":"IF(Tabelle_Auswertung[[#This Row],[Platz]]=1,CONCATENATE(Tabelle_Auswertung[[#This Row],[Bildname]],\" von \",Tabelle_Auswertung[[#This Row],[Autor(in)]]),\"\")","v":""},{"$f":"IF(Tabelle_Auswertung[[#This Row],[Platz]]=2,CONCATENATE(Tabelle_Auswertung[[#This Row],[Bildname]],\" von \",Tabelle_Auswertung[[#This Row],[Autor(in)]]),\"\")","v":""},{"$f":"IF(Tabelle_Auswertung[[#This Row],[Platz]]=3,CONCATENATE(Tabelle_Auswertung[[#This Row],[Bildname]],\" von \",Tabelle_Auswertung[[#This Row],[Autor(in)]]),\"\")","v":""},{"$f":"IF(Tabelle_Auswertung[[#This Row],[Platz]]=4,CONCATENATE(Tabelle_Auswertung[[#This Row],[Bildname]],\" von \",Tabelle_Auswertung[[#This Row],[Autor(in)]]),\"\")","v":""},{"$f":"IF(Tabelle_Auswertung[[#This Row],[Platz]]=5,CONCATENATE(Tabelle_Auswertung[[#This Row],[Bildname]],\" von \",Tabelle_Auswertung[[#This Row],[Autor(in)]]),\"\")","v":""},{"$f":"IF(Tabelle_Auswertung[[#This Row],[Platz]]=6,CONCATENATE(Tabelle_Auswertung[[#This Row],[Bildname]],\" von \",Tabelle_Auswertung[[#This Row],[Autor(in)]]),\"\")","v":""},{"$f":"IF(Tabelle_Auswertung[[#This Row],[Platz]]=7,CONCATENATE(Tabelle_Auswertung[[#This Row],[Bildname]],\" von \",Tabelle_Auswertung[[#This Row],[Autor(in)]]),\"\")","v":""},{"$f":"IF(Tabelle_Auswertung[[#This Row],[Platz]]=8,CONCATENATE(Tabelle_Auswertung[[#This Row],[Bildname]],\" von \",Tabelle_Auswertung[[#This Row],[Autor(in)]]),\"\")","v":""},{"$f":"IF(Tabelle_Auswertung[[#This Row],[Platz]]=9,CONCATENATE(Tabelle_Auswertung[[#This Row],[Bildname]],\" von \",Tabelle_Auswertung[[#This Row],[Autor(in)]]),\"\")","v":""},{"$f":"IF(Tabelle_Auswertung[[#This Row],[Platz]]=10,CONCATENATE(Tabelle_Auswertung[[#This Row],[Bildname]],\" von \",Tabelle_Auswertung[[#This Row],[Autor(in)]]),\"\")","v":""}]
[{"$nulls":21},{"$f":"IF(Tabelle_Auswertung[[#This Row],[Bildname]]<>\"\",SUM(Tabelle_Auswertung[[#This Row],[Juror 1]:[Juror 20]]),\" - \")","v":" - "},{"$f":"IF(Tabelle_Auswertung[[#This Row],[Bildname]]<>\"\",IF(Tabelle_Auswertung[[#This Row],[Punkte]]>0,AVERAGE(Tabelle_Auswertung[[#This Row],[Juror 1]:[Juror 20]]),\" - \"),\" - \")","v":" - "},{"$f":"IF(Tabelle_Auswertung[[#This Row],[Bildname]]<>\"\",IF(Tabelle_Auswertung[[#This Row],[Punkte]]>0,RANK(Tabelle_Auswertung[[#This Row],[Punkte]],[Punkte],0),\" - \"),\" - \")","v":" - "}," - - -",{"$f":"IF(Tabelle_Auswertung[[#This Row],[Platz]]=1,CONCATENATE(Tabelle_Auswertung[[#This Row],[Bildname]],\" von \",Tabelle_Auswertung[[#This Row],[Autor(in)]]),\"\")","v":""},{"$f":"IF(Tabelle_Auswertung[[#This Row],[Platz]]=2,CONCATENATE(Tabelle_Auswertung[[#This Row],[Bildname]],\" von \",Tabelle_Auswertung[[#This Row],[Autor(in)]]),\"\")","v":""},{"$f":"IF(Tabelle_Auswertung[[#This Row],[Platz]]=3,CONCATENATE(Tabelle_Auswertung[[#This Row],[Bildname]],\" von \",Tabelle_Auswertung[[#This Row],[Autor(in)]]),\"\")","v":""},{"$f":"IF(Tabelle_Auswertung[[#This Row],[Platz]]=4,CONCATENATE(Tabelle_Auswertung[[#This Row],[Bildname]],\" von \",Tabelle_Auswertung[[#This Row],[Autor(in)]]),\"\")","v":""},{"$f":"IF(Tabelle_Auswertung[[#This Row],[Platz]]=5,CONCATENATE(Tabelle_Auswertung[[#This Row],[Bildname]],\" von \",Tabelle_Auswertung[[#This Row],[Autor(in)]]),\"\")","v":""},{"$f":"IF(Tabelle_Auswertung[[#This Row],[Platz]]=6,CONCATENATE(Tabelle_Auswertung[[#This Row],[Bildname]],\" von \",Tabelle_Auswertung[[#This Row],[Autor(in)]]),\"\")","v":""},{"$f":"IF(Tabelle_Auswertung[[#This Row],[Platz]]=7,CONCATENATE(Tabelle_Auswertung[[#This Row],[Bildname]],\" von \",Tabelle_Auswertung[[#This Row],[Autor(in)]]),\"\")","v":""},{"$f":"IF(Tabelle_Auswertung[[#This Row],[Platz]]=8,CONCATENATE(Tabelle_Auswertung[[#This Row],[Bildname]],\" von \",Tabelle_Auswertung[[#This Row],[Autor(in)]]),\"\")","v":""},{"$f":"IF(Tabelle_Auswertung[[#This Row],[Platz]]=9,CONCATENATE(Tabelle_Auswertung[[#This Row],[Bildname]],\" von \",Tabelle_Auswertung[[#This Row],[Autor(in)]]),\"\")","v":""},{"$f":"IF(Tabelle_Auswertung[[#This Row],[Platz]]=10,CONCATENATE(Tabelle_Auswertung[[#This Row],[Bildname]],\" von \",Tabelle_Auswertung[[#This Row],[Autor(in)]]),\"\")","v":""}]
[{"$nulls":21},{"$f":"IF(Tabelle_Auswertung[[#This Row],[Bildname]]<>\"\",SUM(Tabelle_Auswertung[[#This Row],[Juror 1]:[Juror 20]]),\" - \")","v":" - "},{"$f":"IF(Tabelle_Auswertung[[#This Row],[Bildname]]<>\"\",IF(Tabelle_Auswertung[[#This Row],[Punkte]]>0,AVERAGE(Tabelle_Auswertung[[#This Row],[Juror 1]:[Juror 20]]),\" - \"),\" - \")","v":" - "},{"$f":"IF(Tabelle_Auswertung[[#This Row],[Bildname]]<>\"\",IF(Tabelle_Auswertung[[#This Row],[Punkte]]>0,RANK(Tabelle_Auswertung[[#This Row],[Punkte]],[Punkte],0),\" - \"),\" - \")","v":" - "}," - - -",{"$f":"IF(Tabelle_Auswertung[[#This Row],[Platz]]=1,CONCATENATE(Tabelle_Auswertung[[#This Row],[Bildname]],\" von \",Tabelle_Auswertung[[#This Row],[Autor(in)]]),\"\")","v":""},{"$f":"IF(Tabelle_Auswertung[[#This Row],[Platz]]=2,CONCATENATE(Tabelle_Auswertung[[#This Row],[Bildname]],\" von \",Tabelle_Auswertung[[#This Row],[Autor(in)]]),\"\")","v":""},{"$f":"IF(Tabelle_Auswertung[[#This Row],[Platz]]=3,CONCATENATE(Tabelle_Auswertung[[#This Row],[Bildname]],\" von \",Tabelle_Auswertung[[#This Row],[Autor(in)]]),\"\")","v":""},{"$f":"IF(Tabelle_Auswertung[[#This Row],[Platz]]=4,CONCATENATE(Tabelle_Auswertung[[#This Row],[Bildname]],\" von \",Tabelle_Auswertung[[#This Row],[Autor(in)]]),\"\")","v":""},{"$f":"IF(Tabelle_Auswertung[[#This Row],[Platz]]=5,CONCATENATE(Tabelle_Auswertung[[#This Row],[Bildname]],\" von \",Tabelle_Auswertung[[#This Row],[Autor(in)]]),\"\")","v":""},{"$f":"IF(Tabelle_Auswertung[[#This Row],[Platz]]=6,CONCATENATE(Tabelle_Auswertung[[#This Row],[Bildname]],\" von \",Tabelle_Auswertung[[#This Row],[Autor(in)]]),\"\")","v":""},{"$f":"IF(Tabelle_Auswertung[[#This Row],[Platz]]=7,CONCATENATE(Tabelle_Auswertung[[#This Row],[Bildname]],\" von \",Tabelle_Auswertung[[#This Row],[Autor(in)]]),\"\")","v":""},{"$f":"IF(Tabelle_Auswertung[[#This Row],[Platz]]=8,CONCATENATE(Tabelle_Auswertung[[#This Row],[Bildname]],\" von \",Tabelle_Auswertung[[#This Row],[Autor(in)]]),\"\")","v":""},{"$f":"IF(Tabelle_Auswertung[[#This Row],[Platz]]=9,CONCATENATE(Tabelle_Auswertung[[#This Row],[Bildname]],\" von \",Tabelle_Auswertung[[#This Row],[Autor(in)]]),\"\")","v":""},{"$f":"IF(Tabelle_Auswertung[[#This Row],[Platz]]=10,CONCATENATE(Tabelle_Auswertung[[#This Row],[Bildname]],\" von \",Tabelle_Auswertung[[#This Row],[Autor(in)]]),\"\")","v":""}]
[{"$nulls":21},{"$f":"IF(Tabelle_Auswertung[[#This Row],[Bildname]]<>\"\",SUM(Tabelle_Auswertung[[#This Row],[Juror 1]:[Juror 20]]),\" - \")","v":" - "},{"$f":"IF(Tabelle_Auswertung[[#This Row],[Bildname]]<>\"\",IF(Tabelle_Auswertung[[#This Row],[Punkte]]>0,AVERAGE(Tabelle_Auswertung[[#This Row],[Juror 1]:[Juror 20]]),\" - \"),\" - \")","v":" - "},{"$f":"IF(Tabelle_Auswertung[[#This Row],[Bildname]]<>\"\",IF(Tabelle_Auswertung[[#This Row],[Punkte]]>0,RANK(Tabelle_Auswertung[[#This Row],[Punkte]],[Punkte],0),\" - \"),\" - \")","v":" - "}," - - -",{"$f":"IF(Tabelle_Auswertung[[#This Row],[Platz]]=1,CONCATENATE(Tabelle_Auswertung[[#This Row],[Bildname]],\" von \",Tabelle_Auswertung[[#This Row],[Autor(in)]]),\"\")","v":""},{"$f":"IF(Tabelle_Auswertung[[#This Row],[Platz]]=2,CONCATENATE(Tabelle_Auswertung[[#This Row],[Bildname]],\" von \",Tabelle_Auswertung[[#This Row],[Autor(in)]]),\"\")","v":""},{"$f":"IF(Tabelle_Auswertung[[#This Row],[Platz]]=3,CONCATENATE(Tabelle_Auswertung[[#This Row],[Bildname]],\" von \",Tabelle_Auswertung[[#This Row],[Autor(in)]]),\"\")","v":""},{"$f":"IF(Tabelle_Auswertung[[#This Row],[Platz]]=4,CONCATENATE(Tabelle_Auswertung[[#This Row],[Bildname]],\" von \",Tabelle_Auswertung[[#This Row],[Autor(in)]]),\"\")","v":""},{"$f":"IF(Tabelle_Auswertung[[#This Row],[Platz]]=5,CONCATENATE(Tabelle_Auswertung[[#This Row],[Bildname]],\" von \",Tabelle_Auswertung[[#This Row],[Autor(in)]]),\"\")","v":""},{"$f":"IF(Tabelle_Auswertung[[#This Row],[Platz]]=6,CONCATENATE(Tabelle_Auswertung[[#This Row],[Bildname]],\" von \",Tabelle_Auswertung[[#This Row],[Autor(in)]]),\"\")","v":""},{"$f":"IF(Tabelle_Auswertung[[#This Row],[Platz]]=7,CONCATENATE(Tabelle_Auswertung[[#This Row],[Bildname]],\" von \",Tabelle_Auswertung[[#This Row],[Autor(in)]]),\"\")","v":""},{"$f":"IF(Tabelle_Auswertung[[#This Row],[Platz]]=8,CONCATENATE(Tabelle_Auswertung[[#This Row],[Bildname]],\" von \",Tabelle_Auswertung[[#This Row],[Autor(in)]]),\"\")","v":""},{"$f":"IF(Tabelle_Auswertung[[#This Row],[Platz]]=9,CONCATENATE(Tabelle_Auswertung[[#This Row],[Bildname]],\" von \",Tabelle_Auswertung[[#This Row],[Autor(in)]]),\"\")","v":""},{"$f":"IF(Tabelle_Auswertung[[#This Row],[Platz]]=10,CONCATENATE(Tabelle_Auswertung[[#This Row],[Bildname]],\" von \",Tabelle_Auswertung[[#This Row],[Autor(in)]]),\"\")","v":""}]
[{"$nulls":21},{"$f":"IF(Tabelle_Auswertung[[#This Row],[Bildname]]<>\"\",SUM(Tabelle_Auswertung[[#This Row],[Juror 1]:[Juror 20]]),\" - \")","v":" - "},{"$f":"IF(Tabelle_Auswertung[[#This Row],[Bildname]]<>\"\",IF(Tabelle_Auswertung[[#This Row],[Punkte]]>0,AVERAGE(Tabelle_Auswertung[[#This Row],[Juror 1]:[Juror 20]]),\" - \"),\" - \")","v":" - "},{"$f":"IF(Tabelle_Auswertung[[#This Row],[Bildname]]<>\"\",IF(Tabelle_Auswertung[[#This Row],[Punkte]]>0,RANK(Tabelle_Auswertung[[#This Row],[Punkte]],[Punkte],0),\" - \"),\" - \")","v":" - "}," - - -",{"$f":"IF(Tabelle_Auswertung[[#This Row],[Platz]]=1,CONCATENATE(Tabelle_Auswertung[[#This Row],[Bildname]],\" von \",Tabelle_Auswertung[[#This Row],[Autor(in)]]),\"\")","v":""},{"$f":"IF(Tabelle_Auswertung[[#This Row],[Platz]]=2,CONCATENATE(Tabelle_Auswertung[[#This Row],[Bildname]],\" von \",Tabelle_Auswertung[[#This Row],[Autor(in)]]),\"\")","v":""},{"$f":"IF(Tabelle_Auswertung[[#This Row],[Platz]]=3,CONCATENATE(Tabelle_Auswertung[[#This Row],[Bildname]],\" von \",Tabelle_Auswertung[[#This Row],[Autor(in)]]),\"\")","v":""},{"$f":"IF(Tabelle_Auswertung[[#This Row],[Platz]]=4,CONCATENATE(Tabelle_Auswertung[[#This Row],[Bildname]],\" von \",Tabelle_Auswertung[[#This Row],[Autor(in)]]),\"\")","v":""},{"$f":"IF(Tabelle_Auswertung[[#This Row],[Platz]]=5,CONCATENATE(Tabelle_Auswertung[[#This Row],[Bildname]],\" von \",Tabelle_Auswertung[[#This Row],[Autor(in)]]),\"\")","v":""},{"$f":"IF(Tabelle_Auswertung[[#This Row],[Platz]]=6,CONCATENATE(Tabelle_Auswertung[[#This Row],[Bildname]],\" von \",Tabelle_Auswertung[[#This Row],[Autor(in)]]),\"\")","v":""},{"$f":"IF(Tabelle_Auswertung[[#This Row],[Platz]]=7,CONCATENATE(Tabelle_Auswertung[[#This Row],[Bildname]],\" von \",Tabelle_Auswertung[[#This Row],[Autor(in)]]),\"\")","v":""},{"$f":"IF(Tabelle_Auswertung[[#This Row],[Platz]]=8,CONCATENATE(Tabelle_Auswertung[[#This Row],[Bildname]],\" von \",Tabelle_Auswertung[[#This Row],[Autor(in)]]),\"\")","v":""},{"$f":"IF(Tabelle_Auswertung[[#This Row],[Platz]]=9,CONCATENATE(Tabelle_Auswertung[[#This Row],[Bildname]],\" von \",Tabelle_Auswertung[[#This Row],[Autor(in)]]),\"\")","v":""},{"$f":"IF(Tabelle_Auswertung[[#This Row],[Platz]]=10,CONCATENATE(Tabelle_Auswertung[[#This Row],[Bildname]],\" von \",Tabelle_Auswertung[[#This Row],[Autor(in)]]),\"\")","v":""}]
[{"$nulls":21},{"$f":"IF(Tabelle_Auswertung[[#This Row],[Bildname]]<>\"\",SUM(Tabelle_Auswertung[[#This Row],[Juror 1]:[Juror 20]]),\" - \")","v":" - "},{"$f":"IF(Tabelle_Auswertung[[#This Row],[Bildname]]<>\"\",IF(Tabelle_Auswertung[[#This Row],[Punkte]]>0,AVERAGE(Tabelle_Auswertung[[#This Row],[Juror 1]:[Juror 20]]),\" - \"),\" - \")","v":" - "},{"$f":"IF(Tabelle_Auswertung[[#This Row],[Bildname]]<>\"\",IF(Tabelle_Auswertung[[#This Row],[Punkte]]>0,RANK(Tabelle_Auswertung[[#This Row],[Punkte]],[Punkte],0),\" - \"),\" - \")","v":" - "}," - - -",{"$f":"IF(Tabelle_Auswertung[[#This Row],[Platz]]=1,CONCATENATE(Tabelle_Auswertung[[#This Row],[Bildname]],\" von \",Tabelle_Auswertung[[#This Row],[Autor(in)]]),\"\")","v":""},{"$f":"IF(Tabelle_Auswertung[[#This Row],[Platz]]=2,CONCATENATE(Tabelle_Auswertung[[#This Row],[Bildname]],\" von \",Tabelle_Auswertung[[#This Row],[Autor(in)]]),\"\")","v":""},{"$f":"IF(Tabelle_Auswertung[[#This Row],[Platz]]=3,CONCATENATE(Tabelle_Auswertung[[#This Row],[Bildname]],\" von \",Tabelle_Auswertung[[#This Row],[Autor(in)]]),\"\")","v":""},{"$f":"IF(Tabelle_Auswertung[[#This Row],[Platz]]=4,CONCATENATE(Tabelle_Auswertung[[#This Row],[Bildname]],\" von \",Tabelle_Auswertung[[#This Row],[Autor(in)]]),\"\")","v":""},{"$f":"IF(Tabelle_Auswertung[[#This Row],[Platz]]=5,CONCATENATE(Tabelle_Auswertung[[#This Row],[Bildname]],\" von \",Tabelle_Auswertung[[#This Row],[Autor(in)]]),\"\")","v":""},{"$f":"IF(Tabelle_Auswertung[[#This Row],[Platz]]=6,CONCATENATE(Tabelle_Auswertung[[#This Row],[Bildname]],\" von \",Tabelle_Auswertung[[#This Row],[Autor(in)]]),\"\")","v":""},{"$f":"IF(Tabelle_Auswertung[[#This Row],[Platz]]=7,CONCATENATE(Tabelle_Auswertung[[#This Row],[Bildname]],\" von \",Tabelle_Auswertung[[#This Row],[Autor(in)]]),\"\")","v":""},{"$f":"IF(Tabelle_Auswertung[[#This Row],[Platz]]=8,CONCATENATE(Tabelle_Auswertung[[#This Row],[Bildname]],\" von \",Tabelle_Auswertung[[#This Row],[Autor(in)]]),\"\")","v":""},{"$f":"IF(Tabelle_Auswertung[[#This Row],[Platz]]=9,CONCATENATE(Tabelle_Auswertung[[#This Row],[Bildname]],\" von \",Tabelle_Auswertung[[#This Row],[Autor(in)]]),\"\")","v":""},{"$f":"IF(Tabelle_Auswertung[[#This Row],[Platz]]=10,CONCATENATE(Tabelle_Auswertung[[#This Row],[Bildname]],\" von \",Tabelle_Auswertung[[#This Row],[Autor(in)]]),\"\")","v":""}]
[{"$nulls":21},{"$f":"IF(Tabelle_Auswertung[[#This Row],[Bildname]]<>\"\",SUM(Tabelle_Auswertung[[#This Row],[Juror 1]:[Juror 20]]),\" - \")","v":" - "},{"$f":"IF(Tabelle_Auswertung[[#This Row],[Bildname]]<>\"\",IF(Tabelle_Auswertung[[#This Row],[Punkte]]>0,AVERAGE(Tabelle_Auswertung[[#This Row],[Juror 1]:[Juror 20]]),\" - \"),\" - \")","v":" - "},{"$f":"IF(Tabelle_Auswertung[[#This Row],[Bildname]]<>\"\",IF(Tabelle_Auswertung[[#This Row],[Punkte]]>0,RANK(Tabelle_Auswertung[[#This Row],[Punkte]],[Punkte],0),\" - \"),\" - \")","v":" - "}," - - -",{"$f":"IF(Tabelle_Auswertung[[#This Row],[Platz]]=1,CONCATENATE(Tabelle_Auswertung[[#This Row],[Bildname]],\" von \",Tabelle_Auswertung[[#This Row],[Autor(in)]]),\"\")","v":""},{"$f":"IF(Tabelle_Auswertung[[#This Row],[Platz]]=2,CONCATENATE(Tabelle_Auswertung[[#This Row],[Bildname]],\" von \",Tabelle_Auswertung[[#This Row],[Autor(in)]]),\"\")","v":""},{"$f":"IF(Tabelle_Auswertung[[#This Row],[Platz]]=3,CONCATENATE(Tabelle_Auswertung[[#This Row],[Bildname]],\" von \",Tabelle_Auswertung[[#This Row],[Autor(in)]]),\"\")","v":""},{"$f":"IF(Tabelle_Auswertung[[#This Row],[Platz]]=4,CONCATENATE(Tabelle_Auswertung[[#This Row],[Bildname]],\" von \",Tabelle_Auswertung[[#This Row],[Autor(in)]]),\"\")","v":""},{"$f":"IF(Tabelle_Auswertung[[#This Row],[Platz]]=5,CONCATENATE(Tabelle_Auswertung[[#This Row],[Bildname]],\" von \",Tabelle_Auswertung[[#This Row],[Autor(in)]]),\"\")","v":""},{"$f":"IF(Tabelle_Auswertung[[#This Row],[Platz]]=6,CONCATENATE(Tabelle_Auswertung[[#This Row],[Bildname]],\" von \",Tabelle_Auswertung[[#This Row],[Autor(in)]]),\"\")","v":""},{"$f":"IF(Tabelle_Auswertung[[#This Row],[Platz]]=7,CONCATENATE(Tabelle_Auswertung[[#This Row],[Bildname]],\" von \",Tabelle_Auswertung[[#This Row],[Autor(in)]]),\"\")","v":""},{"$f":"IF(Tabelle_Auswertung[[#This Row],[Platz]]=8,CONCATENATE(Tabelle_Auswertung[[#This Row],[Bildname]],\" von \",Tabelle_Auswertung[[#This Row],[Autor(in)]]),\"\")","v":""},{"$f":"IF(Tabelle_Auswertung[[#This Row],[Platz]]=9,CONCATENATE(Tabelle_Auswertung[[#This Row],[Bildname]],\" von \",Tabelle_Auswertung[[#This Row],[Autor(in)]]),\"\")","v":""},{"$f":"IF(Tabelle_Auswertung[[#This Row],[Platz]]=10,CONCATENATE(Tabelle_Auswertung[[#This Row],[Bildname]],\" von \",Tabelle_Auswertung[[#This Row],[Autor(in)]]),\"\")","v":""}]
[{"$nulls":21},{"$f":"IF(Tabelle_Auswertung[[#This Row],[Bildname]]<>\"\",SUM(Tabelle_Auswertung[[#This Row],[Juror 1]:[Juror 20]]),\" - \")","v":" - "},{"$f":"IF(Tabelle_Auswertung[[#This Row],[Bildname]]<>\"\",IF(Tabelle_Auswertung[[#This Row],[Punkte]]>0,AVERAGE(Tabelle_Auswertung[[#This Row],[Juror 1]:[Juror 20]]),\" - \"),\" - \")","v":" - "},{"$f":"IF(Tabelle_Auswertung[[#This Row],[Bildname]]<>\"\",IF(Tabelle_Auswertung[[#This Row],[Punkte]]>0,RANK(Tabelle_Auswertung[[#This Row],[Punkte]],[Punkte],0),\" - \"),\" - \")","v":" - "}," - - -",{"$f":"IF(Tabelle_Auswertung[[#This Row],[Platz]]=1,CONCATENATE(Tabelle_Auswertung[[#This Row],[Bildname]],\" von \",Tabelle_Auswertung[[#This Row],[Autor(in)]]),\"\")","v":""},{"$f":"IF(Tabelle_Auswertung[[#This Row],[Platz]]=2,CONCATENATE(Tabelle_Auswertung[[#This Row],[Bildname]],\" von \",Tabelle_Auswertung[[#This Row],[Autor(in)]]),\"\")","v":""},{"$f":"IF(Tabelle_Auswertung[[#This Row],[Platz]]=3,CONCATENATE(Tabelle_Auswertung[[#This Row],[Bildname]],\" von \",Tabelle_Auswertung[[#This Row],[Autor(in)]]),\"\")","v":""},{"$f":"IF(Tabelle_Auswertung[[#This Row],[Platz]]=4,CONCATENATE(Tabelle_Auswertung[[#This Row],[Bildname]],\" von \",Tabelle_Auswertung[[#This Row],[Autor(in)]]),\"\")","v":""},{"$f":"IF(Tabelle_Auswertung[[#This Row],[Platz]]=5,CONCATENATE(Tabelle_Auswertung[[#This Row],[Bildname]],\" von \",Tabelle_Auswertung[[#This Row],[Autor(in)]]),\"\")","v":""},{"$f":"IF(Tabelle_Auswertung[[#This Row],[Platz]]=6,CONCATENATE(Tabelle_Auswertung[[#This Row],[Bildname]],\" von \",Tabelle_Auswertung[[#This Row],[Autor(in)]]),\"\")","v":""},{"$f":"IF(Tabelle_Auswertung[[#This Row],[Platz]]=7,CONCATENATE(Tabelle_Auswertung[[#This Row],[Bildname]],\" von \",Tabelle_Auswertung[[#This Row],[Autor(in)]]),\"\")","v":""},{"$f":"IF(Tabelle_Auswertung[[#This Row],[Platz]]=8,CONCATENATE(Tabelle_Auswertung[[#This Row],[Bildname]],\" von \",Tabelle_Auswertung[[#This Row],[Autor(in)]]),\"\")","v":""},{"$f":"IF(Tabelle_Auswertung[[#This Row],[Platz]]=9,CONCATENATE(Tabelle_Auswertung[[#This Row],[Bildname]],\" von \",Tabelle_Auswertung[[#This Row],[Autor(in)]]),\"\")","v":""},{"$f":"IF(Tabelle_Auswertung[[#This Row],[Platz]]=10,CONCATENATE(Tabelle_Auswertung[[#This Row],[Bildname]],\" von \",Tabelle_Auswertung[[#This Row],[Autor(in)]]),\"\")","v":""}]
[{"$nulls":21},{"$f":"IF(Tabelle_Auswertung[[#This Row],[Bildname]]<>\"\",SUM(Tabelle_Auswertung[[#This Row],[Juror 1]:[Juror 20]]),\" - \")","v":" - "},{"$f":"IF(Tabelle_Auswertung[[#This Row],[Bildname]]<>\"\",IF(Tabelle_Auswertung[[#This Row],[Punkte]]>0,AVERAGE(Tabelle_Auswertung[[#This Row],[Juror 1]:[Juror 20]]),\" - \"),\" - \")","v":" - "},{"$f":"IF(Tabelle_Auswertung[[#This Row],[Bildname]]<>\"\",IF(Tabelle_Auswertung[[#This Row],[Punkte]]>0,RANK(Tabelle_Auswertung[[#This Row],[Punkte]],[Punkte],0),\" - \"),\" - \")","v":" - "}," - - -",{"$f":"IF(Tabelle_Auswertung[[#This Row],[Platz]]=1,CONCATENATE(Tabelle_Auswertung[[#This Row],[Bildname]],\" von \",Tabelle_Auswertung[[#This Row],[Autor(in)]]),\"\")","v":""},{"$f":"IF(Tabelle_Auswertung[[#This Row],[Platz]]=2,CONCATENATE(Tabelle_Auswertung[[#This Row],[Bildname]],\" von \",Tabelle_Auswertung[[#This Row],[Autor(in)]]),\"\")","v":""},{"$f":"IF(Tabelle_Auswertung[[#This Row],[Platz]]=3,CONCATENATE(Tabelle_Auswertung[[#This Row],[Bildname]],\" von \",Tabelle_Auswertung[[#This Row],[Autor(in)]]),\"\")","v":""},{"$f":"IF(Tabelle_Auswertung[[#This Row],[Platz]]=4,CONCATENATE(Tabelle_Auswertung[[#This Row],[Bildname]],\" von \",Tabelle_Auswertung[[#This Row],[Autor(in)]]),\"\")","v":""},{"$f":"IF(Tabelle_Auswertung[[#This Row],[Platz]]=5,CONCATENATE(Tabelle_Auswertung[[#This Row],[Bildname]],\" von \",Tabelle_Auswertung[[#This Row],[Autor(in)]]),\"\")","v":""},{"$f":"IF(Tabelle_Auswertung[[#This Row],[Platz]]=6,CONCATENATE(Tabelle_Auswertung[[#This Row],[Bildname]],\" von \",Tabelle_Auswertung[[#This Row],[Autor(in)]]),\"\")","v":""},{"$f":"IF(Tabelle_Auswertung[[#This Row],[Platz]]=7,CONCATENATE(Tabelle_Auswertung[[#This Row],[Bildname]],\" von \",Tabelle_Auswertung[[#This Row],[Autor(in)]]),\"\")","v":""},{"$f":"IF(Tabelle_Auswertung[[#This Row],[Platz]]=8,CONCATENATE(Tabelle_Auswertung[[#This Row],[Bildname]],\" von \",Tabelle_Auswertung[[#This Row],[Autor(in)]]),\"\")","v":""},{"$f":"IF(Tabelle_Auswertung[[#This Row],[Platz]]=9,CONCATENATE(Tabelle_Auswertung[[#This Row],[Bildname]],\" von \",Tabelle_Auswertung[[#This Row],[Autor(in)]]),\"\")","v":""},{"$f":"IF(Tabelle_Auswertung[[#This Row],[Platz]]=10,CONCATENATE(Tabelle_Auswertung[[#This Row],[Bildname]],\" von \",Tabelle_Auswertung[[#This Row],[Autor(in)]]),\"\")","v":""}]
[{"$nulls":21},{"$f":"IF(Tabelle_Auswertung[[#This Row],[Bildname]]<>\"\",SUM(Tabelle_Auswertung[[#This Row],[Juror 1]:[Juror 20]]),\" - \")","v":" - "},{"$f":"IF(Tabelle_Auswertung[[#This Row],[Bildname]]<>\"\",IF(Tabelle_Auswertung[[#This Row],[Punkte]]>0,AVERAGE(Tabelle_Auswertung[[#This Row],[Juror 1]:[Juror 20]]),\" - \"),\" - \")","v":" - "},{"$f":"IF(Tabelle_Auswertung[[#This Row],[Bildname]]<>\"\",IF(Tabelle_Auswertung[[#This Row],[Punkte]]>0,RANK(Tabelle_Auswertung[[#This Row],[Punkte]],[Punkte],0),\" - \"),\" - \")","v":" - "}," - - -",{"$f":"IF(Tabelle_Auswertung[[#This Row],[Platz]]=1,CONCATENATE(Tabelle_Auswertung[[#This Row],[Bildname]],\" von \",Tabelle_Auswertung[[#This Row],[Autor(in)]]),\"\")","v":""},{"$f":"IF(Tabelle_Auswertung[[#This Row],[Platz]]=2,CONCATENATE(Tabelle_Auswertung[[#This Row],[Bildname]],\" von \",Tabelle_Auswertung[[#This Row],[Autor(in)]]),\"\")","v":""},{"$f":"IF(Tabelle_Auswertung[[#This Row],[Platz]]=3,CONCATENATE(Tabelle_Auswertung[[#This Row],[Bildname]],\" von \",Tabelle_Auswertung[[#This Row],[Autor(in)]]),\"\")","v":""},{"$f":"IF(Tabelle_Auswertung[[#This Row],[Platz]]=4,CONCATENATE(Tabelle_Auswertung[[#This Row],[Bildname]],\" von \",Tabelle_Auswertung[[#This Row],[Autor(in)]]),\"\")","v":""},{"$f":"IF(Tabelle_Auswertung[[#This Row],[Platz]]=5,CONCATENATE(Tabelle_Auswertung[[#This Row],[Bildname]],\" von \",Tabelle_Auswertung[[#This Row],[Autor(in)]]),\"\")","v":""},{"$f":"IF(Tabelle_Auswertung[[#This Row],[Platz]]=6,CONCATENATE(Tabelle_Auswertung[[#This Row],[Bildname]],\" von \",Tabelle_Auswertung[[#This Row],[Autor(in)]]),\"\")","v":""},{"$f":"IF(Tabelle_Auswertung[[#This Row],[Platz]]=7,CONCATENATE(Tabelle_Auswertung[[#This Row],[Bildname]],\" von \",Tabelle_Auswertung[[#This Row],[Autor(in)]]),\"\")","v":""},{"$f":"IF(Tabelle_Auswertung[[#This Row],[Platz]]=8,CONCATENATE(Tabelle_Auswertung[[#This Row],[Bildname]],\" von \",Tabelle_Auswertung[[#This Row],[Autor(in)]]),\"\")","v":""},{"$f":"IF(Tabelle_Auswertung[[#This Row],[Platz]]=9,CONCATENATE(Tabelle_Auswertung[[#This Row],[Bildname]],\" von \",Tabelle_Auswertung[[#This Row],[Autor(in)]]),\"\")","v":""},{"$f":"IF(Tabelle_Auswertung[[#This Row],[Platz]]=10,CONCATENATE(Tabelle_Auswertung[[#This Row],[Bildname]],\" von \",Tabelle_Auswertung[[#This Row],[Autor(in)]]),\"\")","v":""}]
[{"$nulls":21},{"$f":"IF(Tabelle_Auswertung[[#This Row],[Bildname]]<>\"\",SUM(Tabelle_Auswertung[[#This Row],[Juror 1]:[Juror 20]]),\" - \")","v":" - "},{"$f":"IF(Tabelle_Auswertung[[#This Row],[Bildname]]<>\"\",IF(Tabelle_Auswertung[[#This Row],[Punkte]]>0,AVERAGE(Tabelle_Auswertung[[#This Row],[Juror 1]:[Juror 20]]),\" - \"),\" - \")","v":" - "},{"$f":"IF(Tabelle_Auswertung[[#This Row],[Bildname]]<>\"\",IF(Tabelle_Auswertung[[#This Row],[Punkte]]>0,RANK(Tabelle_Auswertung[[#This Row],[Punkte]],[Punkte],0),\" - \"),\" - \")","v":" - "}," - - -",{"$f":"IF(Tabelle_Auswertung[[#This Row],[Platz]]=1,CONCATENATE(Tabelle_Auswertung[[#This Row],[Bildname]],\" von \",Tabelle_Auswertung[[#This Row],[Autor(in)]]),\"\")","v":""},{"$f":"IF(Tabelle_Auswertung[[#This Row],[Platz]]=2,CONCATENATE(Tabelle_Auswertung[[#This Row],[Bildname]],\" von \",Tabelle_Auswertung[[#This Row],[Autor(in)]]),\"\")","v":""},{"$f":"IF(Tabelle_Auswertung[[#This Row],[Platz]]=3,CONCATENATE(Tabelle_Auswertung[[#This Row],[Bildname]],\" von \",Tabelle_Auswertung[[#This Row],[Autor(in)]]),\"\")","v":""},{"$f":"IF(Tabelle_Auswertung[[#This Row],[Platz]]=4,CONCATENATE(Tabelle_Auswertung[[#This Row],[Bildname]],\" von \",Tabelle_Auswertung[[#This Row],[Autor(in)]]),\"\")","v":""},{"$f":"IF(Tabelle_Auswertung[[#This Row],[Platz]]=5,CONCATENATE(Tabelle_Auswertung[[#This Row],[Bildname]],\" von \",Tabelle_Auswertung[[#This Row],[Autor(in)]]),\"\")","v":""},{"$f":"IF(Tabelle_Auswertung[[#This Row],[Platz]]=6,CONCATENATE(Tabelle_Auswertung[[#This Row],[Bildname]],\" von \",Tabelle_Auswertung[[#This Row],[Autor(in)]]),\"\")","v":""},{"$f":"IF(Tabelle_Auswertung[[#This Row],[Platz]]=7,CONCATENATE(Tabelle_Auswertung[[#This Row],[Bildname]],\" von \",Tabelle_Auswertung[[#This Row],[Autor(in)]]),\"\")","v":""},{"$f":"IF(Tabelle_Auswertung[[#This Row],[Platz]]=8,CONCATENATE(Tabelle_Auswertung[[#This Row],[Bildname]],\" von \",Tabelle_Auswertung[[#This Row],[Autor(in)]]),\"\")","v":""},{"$f":"IF(Tabelle_Auswertung[[#This Row],[Platz]]=9,CONCATENATE(Tabelle_Auswertung[[#This Row],[Bildname]],\" von \",Tabelle_Auswertung[[#This Row],[Autor(in)]]),\"\")","v":""},{"$f":"IF(Tabelle_Auswertung[[#This Row],[Platz]]=10,CONCATENATE(Tabelle_Auswertung[[#This Row],[Bildname]],\" von \",Tabelle_Auswertung[[#This Row],[Autor(in)]]),\"\")","v":""}]
[{"$nulls":21},{"$f":"IF(Tabelle_Auswertung[[#This Row],[Bildname]]<>\"\",SUM(Tabelle_Auswertung[[#This Row],[Juror 1]:[Juror 20]]),\" - \")","v":" - "},{"$f":"IF(Tabelle_Auswertung[[#This Row],[Bildname]]<>\"\",IF(Tabelle_Auswertung[[#This Row],[Punkte]]>0,AVERAGE(Tabelle_Auswertung[[#This Row],[Juror 1]:[Juror 20]]),\" - \"),\" - \")","v":" - "},{"$f":"IF(Tabelle_Auswertung[[#This Row],[Bildname]]<>\"\",IF(Tabelle_Auswertung[[#This Row],[Punkte]]>0,RANK(Tabelle_Auswertung[[#This Row],[Punkte]],[Punkte],0),\" - \"),\" - \")","v":" - "}," - - -",{"$f":"IF(Tabelle_Auswertung[[#This Row],[Platz]]=1,CONCATENATE(Tabelle_Auswertung[[#This Row],[Bildname]],\" von \",Tabelle_Auswertung[[#This Row],[Autor(in)]]),\"\")","v":""},{"$f":"IF(Tabelle_Auswertung[[#This Row],[Platz]]=2,CONCATENATE(Tabelle_Auswertung[[#This Row],[Bildname]],\" von \",Tabelle_Auswertung[[#This Row],[Autor(in)]]),\"\")","v":""},{"$f":"IF(Tabelle_Auswertung[[#This Row],[Platz]]=3,CONCATENATE(Tabelle_Auswertung[[#This Row],[Bildname]],\" von \",Tabelle_Auswertung[[#This Row],[Autor(in)]]),\"\")","v":""},{"$f":"IF(Tabelle_Auswertung[[#This Row],[Platz]]=4,CONCATENATE(Tabelle_Auswertung[[#This Row],[Bildname]],\" von \",Tabelle_Auswertung[[#This Row],[Autor(in)]]),\"\")","v":""},{"$f":"IF(Tabelle_Auswertung[[#This Row],[Platz]]=5,CONCATENATE(Tabelle_Auswertung[[#This Row],[Bildname]],\" von \",Tabelle_Auswertung[[#This Row],[Autor(in)]]),\"\")","v":""},{"$f":"IF(Tabelle_Auswertung[[#This Row],[Platz]]=6,CONCATENATE(Tabelle_Auswertung[[#This Row],[Bildname]],\" von \",Tabelle_Auswertung[[#This Row],[Autor(in)]]),\"\")","v":""},{"$f":"IF(Tabelle_Auswertung[[#This Row],[Platz]]=7,CONCATENATE(Tabelle_Auswertung[[#This Row],[Bildname]],\" von \",Tabelle_Auswertung[[#This Row],[Autor(in)]]),\"\")","v":""},{"$f":"IF(Tabelle_Auswertung[[#This Row],[Platz]]=8,CONCATENATE(Tabelle_Auswertung[[#This Row],[Bildname]],\" von \",Tabelle_Auswertung[[#This Row],[Autor(in)]]),\"\")","v":""},{"$f":"IF(Tabelle_Auswertung[[#This Row],[Platz]]=9,CONCATENATE(Tabelle_Auswertung[[#This Row],[Bildname]],\" von \",Tabelle_Auswertung[[#This Row],[Autor(in)]]),\"\")","v":""},{"$f":"IF(Tabelle_Auswertung[[#This Row],[Platz]]=10,CONCATENATE(Tabelle_Auswertung[[#This Row],[Bildname]],\" von \",Tabelle_Auswertung[[#This Row],[Autor(in)]]),\"\")","v":""}]
[{"$nulls":21},{"$f":"IF(Tabelle_Auswertung[[#This Row],[Bildname]]<>\"\",SUM(Tabelle_Auswertung[[#This Row],[Juror 1]:[Juror 20]]),\" - \")","v":" - "},{"$f":"IF(Tabelle_Auswertung[[#This Row],[Bildname]]<>\"\",IF(Tabelle_Auswertung[[#This Row],[Punkte]]>0,AVERAGE(Tabelle_Auswertung[[#This Row],[Juror 1]:[Juror 20]]),\" - \"),\" - \")","v":" - "},{"$f":"IF(Tabelle_Auswertung[[#This Row],[Bildname]]<>\"\",IF(Tabelle_Auswertung[[#This Row],[Punkte]]>0,RANK(Tabelle_Auswertung[[#This Row],[Punkte]],[Punkte],0),\" - \"),\" - \")","v":" - "}," - - -",{"$f":"IF(Tabelle_Auswertung[[#This Row],[Platz]]=1,CONCATENATE(Tabelle_Auswertung[[#This Row],[Bildname]],\" von \",Tabelle_Auswertung[[#This Row],[Autor(in)]]),\"\")","v":""},{"$f":"IF(Tabelle_Auswertung[[#This Row],[Platz]]=2,CONCATENATE(Tabelle_Auswertung[[#This Row],[Bildname]],\" von \",Tabelle_Auswertung[[#This Row],[Autor(in)]]),\"\")","v":""},{"$f":"IF(Tabelle_Auswertung[[#This Row],[Platz]]=3,CONCATENATE(Tabelle_Auswertung[[#This Row],[Bildname]],\" von \",Tabelle_Auswertung[[#This Row],[Autor(in)]]),\"\")","v":""},{"$f":"IF(Tabelle_Auswertung[[#This Row],[Platz]]=4,CONCATENATE(Tabelle_Auswertung[[#This Row],[Bildname]],\" von \",Tabelle_Auswertung[[#This Row],[Autor(in)]]),\"\")","v":""},{"$f":"IF(Tabelle_Auswertung[[#This Row],[Platz]]=5,CONCATENATE(Tabelle_Auswertung[[#This Row],[Bildname]],\" von \",Tabelle_Auswertung[[#This Row],[Autor(in)]]),\"\")","v":""},{"$f":"IF(Tabelle_Auswertung[[#This Row],[Platz]]=6,CONCATENATE(Tabelle_Auswertung[[#This Row],[Bildname]],\" von \",Tabelle_Auswertung[[#This Row],[Autor(in)]]),\"\")","v":""},{"$f":"IF(Tabelle_Auswertung[[#This Row],[Platz]]=7,CONCATENATE(Tabelle_Auswertung[[#This Row],[Bildname]],\" von \",Tabelle_Auswertung[[#This Row],[Autor(in)]]),\"\")","v":""},{"$f":"IF(Tabelle_Auswertung[[#This Row],[Platz]]=8,CONCATENATE(Tabelle_Auswertung[[#This Row],[Bildname]],\" von \",Tabelle_Auswertung[[#This Row],[Autor(in)]]),\"\")","v":""},{"$f":"IF(Tabelle_Auswertung[[#This Row],[Platz]]=9,CONCATENATE(Tabelle_Auswertung[[#This Row],[Bildname]],\" von \",Tabelle_Auswertung[[#This Row],[Autor(in)]]),\"\")","v":""},{"$f":"IF(Tabelle_Auswertung[[#This Row],[Platz]]=10,CONCATENATE(Tabelle_Auswertung[[#This Row],[Bildname]],\" von \",Tabelle_Auswertung[[#This Row],[Autor(in)]]),\"\")","v":""}]
[{"$nulls":21},{"$f":"IF(Tabelle_Auswertung[[#This Row],[Bildname]]<>\"\",SUM(Tabelle_Auswertung[[#This Row],[Juror 1]:[Juror 20]]),\" - \")","v":" - "},{"$f":"IF(Tabelle_Auswertung[[#This Row],[Bildname]]<>\"\",IF(Tabelle_Auswertung[[#This Row],[Punkte]]>0,AVERAGE(Tabelle_Auswertung[[#This Row],[Juror 1]:[Juror 20]]),\" - \"),\" - \")","v":" - "},{"$f":"IF(Tabelle_Auswertung[[#This Row],[Bildname]]<>\"\",IF(Tabelle_Auswertung[[#This Row],[Punkte]]>0,RANK(Tabelle_Auswertung[[#This Row],[Punkte]],[Punkte],0),\" - \"),\" - \")","v":" - "}," - - -",{"$f":"IF(Tabelle_Auswertung[[#This Row],[Platz]]=1,CONCATENATE(Tabelle_Auswertung[[#This Row],[Bildname]],\" von \",Tabelle_Auswertung[[#This Row],[Autor(in)]]),\"\")","v":""},{"$f":"IF(Tabelle_Auswertung[[#This Row],[Platz]]=2,CONCATENATE(Tabelle_Auswertung[[#This Row],[Bildname]],\" von \",Tabelle_Auswertung[[#This Row],[Autor(in)]]),\"\")","v":""},{"$f":"IF(Tabelle_Auswertung[[#This Row],[Platz]]=3,CONCATENATE(Tabelle_Auswertung[[#This Row],[Bildname]],\" von \",Tabelle_Auswertung[[#This Row],[Autor(in)]]),\"\")","v":""},{"$f":"IF(Tabelle_Auswertung[[#This Row],[Platz]]=4,CONCATENATE(Tabelle_Auswertung[[#This Row],[Bildname]],\" von \",Tabelle_Auswertung[[#This Row],[Autor(in)]]),\"\")","v":""},{"$f":"IF(Tabelle_Auswertung[[#This Row],[Platz]]=5,CONCATENATE(Tabelle_Auswertung[[#This Row],[Bildname]],\" von \",Tabelle_Auswertung[[#This Row],[Autor(in)]]),\"\")","v":""},{"$f":"IF(Tabelle_Auswertung[[#This Row],[Platz]]=6,CONCATENATE(Tabelle_Auswertung[[#This Row],[Bildname]],\" von \",Tabelle_Auswertung[[#This Row],[Autor(in)]]),\"\")","v":""},{"$f":"IF(Tabelle_Auswertung[[#This Row],[Platz]]=7,CONCATENATE(Tabelle_Auswertung[[#This Row],[Bildname]],\" von \",Tabelle_Auswertung[[#This Row],[Autor(in)]]),\"\")","v":""},{"$f":"IF(Tabelle_Auswertung[[#This Row],[Platz]]=8,CONCATENATE(Tabelle_Auswertung[[#This Row],[Bildname]],\" von \",Tabelle_Auswertung[[#This Row],[Autor(in)]]),\"\")","v":""},{"$f":"IF(Tabelle_Auswertung[[#This Row],[Platz]]=9,CONCATENATE(Tabelle_Auswertung[[#This Row],[Bildname]],\" von \",Tabelle_Auswertung[[#This Row],[Autor(in)]]),\"\")","v":""},{"$f":"IF(Tabelle_Auswertung[[#This Row],[Platz]]=10,CONCATENATE(Tabelle_Auswertung[[#This Row],[Bildname]],\" von \",Tabelle_Auswertung[[#This Row],[Autor(in)]]),\"\")","v":""}]
[{"$nulls":21},{"$f":"IF(Tabelle_Auswertung[[#This Row],[Bildname]]<>\"\",SUM(Tabelle_Auswertung[[#This Row],[Juror 1]:[Juror 20]]),\" - \")","v":" - "},{"$f":"IF(Tabelle_Auswertung[[#This Row],[Bildname]]<>\"\",IF(Tabelle_Auswertung[[#This Row],[Punkte]]>0,AVERAGE(Tabelle_Auswertung[[#This Row],[Juror 1]:[Juror 20]]),\" - \"),\" - \")","v":" - "},{"$f":"IF(Tabelle_Auswertung[[#This Row],[Bildname]]<>\"\",IF(Tabelle_Auswertung[[#This Row],[Punkte]]>0,RANK(Tabelle_Auswertung[[#This Row],[Punkte]],[Punkte],0),\" - \"),\" - \")","v":" - "}," - - -",{"$f":"IF(Tabelle_Auswertung[[#This Row],[Platz]]=1,CONCATENATE(Tabelle_Auswertung[[#This Row],[Bildname]],\" von \",Tabelle_Auswertung[[#This Row],[Autor(in)]]),\"\")","v":""},{"$f":"IF(Tabelle_Auswertung[[#This Row],[Platz]]=2,CONCATENATE(Tabelle_Auswertung[[#This Row],[Bildname]],\" von \",Tabelle_Auswertung[[#This Row],[Autor(in)]]),\"\")","v":""},{"$f":"IF(Tabelle_Auswertung[[#This Row],[Platz]]=3,CONCATENATE(Tabelle_Auswertung[[#This Row],[Bildname]],\" von \",Tabelle_Auswertung[[#This Row],[Autor(in)]]),\"\")","v":""},{"$f":"IF(Tabelle_Auswertung[[#This Row],[Platz]]=4,CONCATENATE(Tabelle_Auswertung[[#This Row],[Bildname]],\" von \",Tabelle_Auswertung[[#This Row],[Autor(in)]]),\"\")","v":""},{"$f":"IF(Tabelle_Auswertung[[#This Row],[Platz]]=5,CONCATENATE(Tabelle_Auswertung[[#This Row],[Bildname]],\" von \",Tabelle_Auswertung[[#This Row],[Autor(in)]]),\"\")","v":""},{"$f":"IF(Tabelle_Auswertung[[#This Row],[Platz]]=6,CONCATENATE(Tabelle_Auswertung[[#This Row],[Bildname]],\" von \",Tabelle_Auswertung[[#This Row],[Autor(in)]]),\"\")","v":""},{"$f":"IF(Tabelle_Auswertung[[#This Row],[Platz]]=7,CONCATENATE(Tabelle_Auswertung[[#This Row],[Bildname]],\" von \",Tabelle_Auswertung[[#This Row],[Autor(in)]]),\"\")","v":""},{"$f":"IF(Tabelle_Auswertung[[#This Row],[Platz]]=8,CONCATENATE(Tabelle_Auswertung[[#This Row],[Bildname]],\" von \",Tabelle_Auswertung[[#This Row],[Autor(in)]]),\"\")","v":""},{"$f":"IF(Tabelle_Auswertung[[#This Row],[Platz]]=9,CONCATENATE(Tabelle_Auswertung[[#This Row],[Bildname]],\" von \",Tabelle_Auswertung[[#This Row],[Autor(in)]]),\"\")","v":""},{"$f":"IF(Tabelle_Auswertung[[#This Row],[Platz]]=10,CONCATENATE(Tabelle_Auswertung[[#This Row],[Bildname]],\" von \",Tabelle_Auswertung[[#This Row],[Autor(in)]]),\"\")","v":""}]
[{"$nulls":21},{"$f":"IF(Tabelle_Auswertung[[#This Row],[Bildname]]<>\"\",SUM(Tabelle_Auswertung[[#This Row],[Juror 1]:[Juror 20]]),\" - \")","v":" - "},{"$f":"IF(Tabelle_Auswertung[[#This Row],[Bildname]]<>\"\",IF(Tabelle_Auswertung[[#This Row],[Punkte]]>0,AVERAGE(Tabelle_Auswertung[[#This Row],[Juror 1]:[Juror 20]]),\" - \"),\" - \")","v":" - "},{"$f":"IF(Tabelle_Auswertung[[#This Row],[Bildname]]<>\"\",IF(Tabelle_Auswertung[[#This Row],[Punkte]]>0,RANK(Tabelle_Auswertung[[#This Row],[Punkte]],[Punkte],0),\" - \"),\" - \")","v":" - "}," - - -",{"$f":"IF(Tabelle_Auswertung[[#This Row],[Platz]]=1,CONCATENATE(Tabelle_Auswertung[[#This Row],[Bildname]],\" von \",Tabelle_Auswertung[[#This Row],[Autor(in)]]),\"\")","v":""},{"$f":"IF(Tabelle_Auswertung[[#This Row],[Platz]]=2,CONCATENATE(Tabelle_Auswertung[[#This Row],[Bildname]],\" von \",Tabelle_Auswertung[[#This Row],[Autor(in)]]),\"\")","v":""},{"$f":"IF(Tabelle_Auswertung[[#This Row],[Platz]]=3,CONCATENATE(Tabelle_Auswertung[[#This Row],[Bildname]],\" von \",Tabelle_Auswertung[[#This Row],[Autor(in)]]),\"\")","v":""},{"$f":"IF(Tabelle_Auswertung[[#This Row],[Platz]]=4,CONCATENATE(Tabelle_Auswertung[[#This Row],[Bildname]],\" von \",Tabelle_Auswertung[[#This Row],[Autor(in)]]),\"\")","v":""},{"$f":"IF(Tabelle_Auswertung[[#This Row],[Platz]]=5,CONCATENATE(Tabelle_Auswertung[[#This Row],[Bildname]],\" von \",Tabelle_Auswertung[[#This Row],[Autor(in)]]),\"\")","v":""},{"$f":"IF(Tabelle_Auswertung[[#This Row],[Platz]]=6,CONCATENATE(Tabelle_Auswertung[[#This Row],[Bildname]],\" von \",Tabelle_Auswertung[[#This Row],[Autor(in)]]),\"\")","v":""},{"$f":"IF(Tabelle_Auswertung[[#This Row],[Platz]]=7,CONCATENATE(Tabelle_Auswertung[[#This Row],[Bildname]],\" von \",Tabelle_Auswertung[[#This Row],[Autor(in)]]),\"\")","v":""},{"$f":"IF(Tabelle_Auswertung[[#This Row],[Platz]]=8,CONCATENATE(Tabelle_Auswertung[[#This Row],[Bildname]],\" von \",Tabelle_Auswertung[[#This Row],[Autor(in)]]),\"\")","v":""},{"$f":"IF(Tabelle_Auswertung[[#This Row],[Platz]]=9,CONCATENATE(Tabelle_Auswertung[[#This Row],[Bildname]],\" von \",Tabelle_Auswertung[[#This Row],[Autor(in)]]),\"\")","v":""},{"$f":"IF(Tabelle_Auswertung[[#This Row],[Platz]]=10,CONCATENATE(Tabelle_Auswertung[[#This Row],[Bildname]],\" von \",Tabelle_Auswertung[[#This Row],[Autor(in)]]),\"\")","v":""}]
[{"$nulls":21},{"$f":"IF(Tabelle_Auswertung[[#This Row],[Bildname]]<>\"\",SUM(Tabelle_Auswertung[[#This Row],[Juror 1]:[Juror 20]]),\" - \")","v":" - "},{"$f":"IF(Tabelle_Auswertung[[#This Row],[Bildname]]<>\"\",IF(Tabelle_Auswertung[[#This Row],[Punkte]]>0,AVERAGE(Tabelle_Auswertung[[#This Row],[Juror 1]:[Juror 20]]),\" - \"),\" - \")","v":" - "},{"$f":"IF(Tabelle_Auswertung[[#This Row],[Bildname]]<>\"\",IF(Tabelle_Auswertung[[#This Row],[Punkte]]>0,RANK(Tabelle_Auswertung[[#This Row],[Punkte]],[Punkte],0),\" - \"),\" - \")","v":" - "}," - - -",{"$f":"IF(Tabelle_Auswertung[[#This Row],[Platz]]=1,CONCATENATE(Tabelle_Auswertung[[#This Row],[Bildname]],\" von \",Tabelle_Auswertung[[#This Row],[Autor(in)]]),\"\")","v":""},{"$f":"IF(Tabelle_Auswertung[[#This Row],[Platz]]=2,CONCATENATE(Tabelle_Auswertung[[#This Row],[Bildname]],\" von \",Tabelle_Auswertung[[#This Row],[Autor(in)]]),\"\")","v":""},{"$f":"IF(Tabelle_Auswertung[[#This Row],[Platz]]=3,CONCATENATE(Tabelle_Auswertung[[#This Row],[Bildname]],\" von \",Tabelle_Auswertung[[#This Row],[Autor(in)]]),\"\")","v":""},{"$f":"IF(Tabelle_Auswertung[[#This Row],[Platz]]=4,CONCATENATE(Tabelle_Auswertung[[#This Row],[Bildname]],\" von \",Tabelle_Auswertung[[#This Row],[Autor(in)]]),\"\")","v":""},{"$f":"IF(Tabelle_Auswertung[[#This Row],[Platz]]=5,CONCATENATE(Tabelle_Auswertung[[#This Row],[Bildname]],\" von \",Tabelle_Auswertung[[#This Row],[Autor(in)]]),\"\")","v":""},{"$f":"IF(Tabelle_Auswertung[[#This Row],[Platz]]=6,CONCATENATE(Tabelle_Auswertung[[#This Row],[Bildname]],\" von \",Tabelle_Auswertung[[#This Row],[Autor(in)]]),\"\")","v":""},{"$f":"IF(Tabelle_Auswertung[[#This Row],[Platz]]=7,CONCATENATE(Tabelle_Auswertung[[#This Row],[Bildname]],\" von \",Tabelle_Auswertung[[#This Row],[Autor(in)]]),\"\")","v":""},{"$f":"IF(Tabelle_Auswertung[[#This Row],[Platz]]=8,CONCATENATE(Tabelle_Auswertung[[#This Row],[Bildname]],\" von \",Tabelle_Auswertung[[#This Row],[Autor(in)]]),\"\")","v":""},{"$f":"IF(Tabelle_Auswertung[[#This Row],[Platz]]=9,CONCATENATE(Tabelle_Auswertung[[#This Row],[Bildname]],\" von \",Tabelle_Auswertung[[#This Row],[Autor(in)]]),\"\")","v":""},{"$f":"IF(Tabelle_Auswertung[[#This Row],[Platz]]=10,CONCATENATE(Tabelle_Auswertung[[#This Row],[Bildname]],\" von \",Tabelle_Auswertung[[#This Row],[Autor(in)]]),\"\")","v":""}]
[{"$nulls":21},{"$f":"IF(Tabelle_Auswertung[[#This Row],[Bildname]]<>\"\",SUM(Tabelle_Auswertung[[#This Row],[Juror 1]:[Juror 20]]),\" - \")","v":" - "},{"$f":"IF(Tabelle_Auswertung[[#This Row],[Bildname]]<>\"\",IF(Tabelle_Auswertung[[#This Row],[Punkte]]>0,AVERAGE(Tabelle_Auswertung[[#This Row],[Juror 1]:[Juror 20]]),\" - \"),\" - \")","v":" - "},{"$f":"IF(Tabelle_Auswertung[[#This Row],[Bildname]]<>\"\",IF(Tabelle_Auswertung[[#This Row],[Punkte]]>0,RANK(Tabelle_Auswertung[[#This Row],[Punkte]],[Punkte],0),\" - \"),\" - \")","v":" - "}," - - -",{"$f":"IF(Tabelle_Auswertung[[#This Row],[Platz]]=1,CONCATENATE(Tabelle_Auswertung[[#This Row],[Bildname]],\" von \",Tabelle_Auswertung[[#This Row],[Autor(in)]]),\"\")","v":""},{"$f":"IF(Tabelle_Auswertung[[#This Row],[Platz]]=2,CONCATENATE(Tabelle_Auswertung[[#This Row],[Bildname]],\" von \",Tabelle_Auswertung[[#This Row],[Autor(in)]]),\"\")","v":""},{"$f":"IF(Tabelle_Auswertung[[#This Row],[Platz]]=3,CONCATENATE(Tabelle_Auswertung[[#This Row],[Bildname]],\" von \",Tabelle_Auswertung[[#This Row],[Autor(in)]]),\"\")","v":""},{"$f":"IF(Tabelle_Auswertung[[#This Row],[Platz]]=4,CONCATENATE(Tabelle_Auswertung[[#This Row],[Bildname]],\" von \",Tabelle_Auswertung[[#This Row],[Autor(in)]]),\"\")","v":""},{"$f":"IF(Tabelle_Auswertung[[#This Row],[Platz]]=5,CONCATENATE(Tabelle_Auswertung[[#This Row],[Bildname]],\" von \",Tabelle_Auswertung[[#This Row],[Autor(in)]]),\"\")","v":""},{"$f":"IF(Tabelle_Auswertung[[#This Row],[Platz]]=6,CONCATENATE(Tabelle_Auswertung[[#This Row],[Bildname]],\" von \",Tabelle_Auswertung[[#This Row],[Autor(in)]]),\"\")","v":""},{"$f":"IF(Tabelle_Auswertung[[#This Row],[Platz]]=7,CONCATENATE(Tabelle_Auswertung[[#This Row],[Bildname]],\" von \",Tabelle_Auswertung[[#This Row],[Autor(in)]]),\"\")","v":""},{"$f":"IF(Tabelle_Auswertung[[#This Row],[Platz]]=8,CONCATENATE(Tabelle_Auswertung[[#This Row],[Bildname]],\" von \",Tabelle_Auswertung[[#This Row],[Autor(in)]]),\"\")","v":""},{"$f":"IF(Tabelle_Auswertung[[#This Row],[Platz]]=9,CONCATENATE(Tabelle_Auswertung[[#This Row],[Bildname]],\" von \",Tabelle_Auswertung[[#This Row],[Autor(in)]]),\"\")","v":""},{"$f":"IF(Tabelle_Auswertung[[#This Row],[Platz]]=10,CONCATENATE(Tabelle_Auswertung[[#This Row],[Bildname]],\" von \",Tabelle_Auswertung[[#This Row],[Autor(in)]]),\"\")","v":""}]
[{"$nulls":21},{"$f":"IF(Tabelle_Auswertung[[#This Row],[Bildname]]<>\"\",SUM(Tabelle_Auswertung[[#This Row],[Juror 1]:[Juror 20]]),\" - \")","v":" - "},{"$f":"IF(Tabelle_Auswertung[[#This Row],[Bildname]]<>\"\",IF(Tabelle_Auswertung[[#This Row],[Punkte]]>0,AVERAGE(Tabelle_Auswertung[[#This Row],[Juror 1]:[Juror 20]]),\" - \"),\" - \")","v":" - "},{"$f":"IF(Tabelle_Auswertung[[#This Row],[Bildname]]<>\"\",IF(Tabelle_Auswertung[[#This Row],[Punkte]]>0,RANK(Tabelle_Auswertung[[#This Row],[Punkte]],[Punkte],0),\" - \"),\" - \")","v":" - "}," - - -",{"$f":"IF(Tabelle_Auswertung[[#This Row],[Platz]]=1,CONCATENATE(Tabelle_Auswertung[[#This Row],[Bildname]],\" von \",Tabelle_Auswertung[[#This Row],[Autor(in)]]),\"\")","v":""},{"$f":"IF(Tabelle_Auswertung[[#This Row],[Platz]]=2,CONCATENATE(Tabelle_Auswertung[[#This Row],[Bildname]],\" von \",Tabelle_Auswertung[[#This Row],[Autor(in)]]),\"\")","v":""},{"$f":"IF(Tabelle_Auswertung[[#This Row],[Platz]]=3,CONCATENATE(Tabelle_Auswertung[[#This Row],[Bildname]],\" von \",Tabelle_Auswertung[[#This Row],[Autor(in)]]),\"\")","v":""},{"$f":"IF(Tabelle_Auswertung[[#This Row],[Platz]]=4,CONCATENATE(Tabelle_Auswertung[[#This Row],[Bildname]],\" von \",Tabelle_Auswertung[[#This Row],[Autor(in)]]),\"\")","v":""},{"$f":"IF(Tabelle_Auswertung[[#This Row],[Platz]]=5,CONCATENATE(Tabelle_Auswertung[[#This Row],[Bildname]],\" von \",Tabelle_Auswertung[[#This Row],[Autor(in)]]),\"\")","v":""},{"$f":"IF(Tabelle_Auswertung[[#This Row],[Platz]]=6,CONCATENATE(Tabelle_Auswertung[[#This Row],[Bildname]],\" von \",Tabelle_Auswertung[[#This Row],[Autor(in)]]),\"\")","v":""},{"$f":"IF(Tabelle_Auswertung[[#This Row],[Platz]]=7,CONCATENATE(Tabelle_Auswertung[[#This Row],[Bildname]],\" von \",Tabelle_Auswertung[[#This Row],[Autor(in)]]),\"\")","v":""},{"$f":"IF(Tabelle_Auswertung[[#This Row],[Platz]]=8,CONCATENATE(Tabelle_Auswertung[[#This Row],[Bildname]],\" von \",Tabelle_Auswertung[[#This Row],[Autor(in)]]),\"\")","v":""},{"$f":"IF(Tabelle_Auswertung[[#This Row],[Platz]]=9,CONCATENATE(Tabelle_Auswertung[[#This Row],[Bildname]],\" von \",Tabelle_Auswertung[[#This Row],[Autor(in)]]),\"\")","v":""},{"$f":"IF(Tabelle_Auswertung[[#This Row],[Platz]]=10,CONCATENATE(Tabelle_Auswertung[[#This Row],[Bildname]],\" von \",Tabelle_Auswertung[[#This Row],[Autor(in)]]),\"\")","v":""}]
[{"$nulls":21},{"$f":"SUBTOTAL(101,[Punkte])","v":{"v":17.805555555555557,"d":"17.81 "}},{"$f":"SUBTOTAL(101,[Schnitt])","v":{"v":5.935185185185184,"d":"5.94 "}},null," - - -"]
[{"$nulls":24}," - - -"]
[{"$nulls":24}," - - -"]
[{"$nulls":24}," - - -"]
[{"$nulls":24}," - - -"]
[{"$nulls":24}," - - -"]
[{"$nulls":24}," - - -"]
[{"$nulls":24}," - - -"]
[{"$nulls":24}," - - -"]
[{"$nulls":24}," - - -"]
[{"$nulls":24}," - - -"]
[{"$nulls":24}," - - -"]
[{"$nulls":24}," - - -"]
[{"$nulls":24}," - - -"]
[{"$nulls":24}," - - -"]
[{"$nulls":24}," - - -"]
[{"$nulls":24}," - - -"]
[{"$nulls":24}," - - -"]
[{"$nulls":24}," - - -"]
[{"$nulls":24}," - - -"]
[{"$nulls":24}," - - -"]
[{"$nulls":24}," - - -"]
[{"$nulls":24}," - - -"]
[{"$nulls":24}," - - -"]
[{"$nulls":24}," - - -"]
[{"$nulls":24}," - - -"]
[{"$nulls":24}," - - -"]
[{"$nulls":24}," - - -"]
[{"$nulls":24}," - - -"]
[{"$nulls":24}," - - -"]
[{"$nulls":24}," - - -"]

{"sheet":"Statistik nach Autor(in)","index":1,"n_rows":36,"n_cols":11,"rows_kept":36,"merged":[[0,0,3,3]]}
["Statistik",{"$nulls":8},1," - Platz 1"]
[{"$nulls":9},2," - Platz 2"]
[{"$nulls":9},3," - Platz 3"]
[{"$nulls":9}," 4-10"," - Top 10"]
["Autor(in)","Punkte","Platz","Teilnahme","1ster","2ter","3ter","TOP 10"]
[{"$f":"IF(AND(Fotografen!$A29<>\"\",Fotografen!$A29<>\" - - -\"),Fotografen!$A29,\"\")","v":"Susanne Deinhardt"},{"$f":"IF(Tabelle_Statistik[[#This Row],[Teilnahme]]=\"ja\",SUMIF(Tabelle_Auswertung[Autor(in)],Tabelle_Statistik[[#This Row],[Autor(in)]],Tabelle_Auswertung[Punkte]),IF(Tabelle_Statistik[[#This Row],[Autor(in)]]<>\"\",\" - \",\"\"))","v":122},{"$f":"IF(Tabelle_Statistik[[#This Row],[Teilnahme]]=\"ja\",RANK(Tabelle_Statistik[[#This Row],[Punkte]],[Punkte],0),IF(Tabelle_Statistik[[#This Row],[Autor(in)]]<>\"\",\" - \",\"\"))","v":1},{"$f":"IF(Tabelle_Statistik[[#This Row],[Autor(in)]]<>\"\",IF(COUNTIF(Tabelle_Auswertung[Autor(in)],Tabelle_Statistik[[#This Row],[Autor(in)]])>0,\"ja\",\"nein\"),\"\")","v":"ja"},{"$f":"IF(Tabelle_Statistik[[#This Row],[Platz]]=1,Tabelle_Statistik[[#This Row],[Autor(in)]],\"\")","v":"Susanne Deinhardt"},{"$f":"IF(Tabelle_Statistik[[#This Row],[Platz]]=2,Tabelle_Statistik[[#This Row],[Autor(in)]],\"\")","v":""},{"$f":"IF(Tabelle_Statistik[[#This Row],[Platz]]=3,Tabelle_Statistik[[#This Row],[Autor(in)]],\"\")","v":""},{"$f":"IF(Tabelle_Statistik[[#This Row],[Platz]]<11,Tabelle_Statistik[[#This Row],[Autor(in)]],\"\")","v":"Susanne Deinhardt"}]
[{"$f":"IF(AND(Fotografen!$A12<>\"\",Fotografen!$A12<>\" - - -\"),Fotografen!$A12,\"\")","v":"Gerhard Rieß"},{"$f":"IF(Tabelle_Statistik[[#This Row],[Teilnahme]]=\"ja\",SUMIF(Tabelle_Auswertung[Autor(in)],Tabelle_Statistik[[#This Row],[Autor(in)]],Tabelle_Auswertung[Punkte]),IF(Tabelle_Statistik[[#This Row],[Autor(in)]]<>\"\",\" - \",\"\"))","v":112},{"$f":"IF(Tabelle_Statistik[[#This Row],[Teilnahme]]=\"ja\",RANK(Tabelle_Statistik[[#This Row],[Punkte]],[Punkte],0),IF(Tabelle_Statistik[[#This Row],[Autor(in)]]<>\"\",\" - \",\"\"))","v":2},{"$f":"IF(Tabelle_Statistik[[#This Row],[Autor(in)]]<>\"\",IF(COUNTIF(Tabelle_Auswertung[Autor(in)],Tabelle_Statistik[[#This Row],[Autor(in)]])>0,\"ja\",\"nein\"),\"\")","v":"ja"},{"$f":"IF(Tabelle_Statistik[[#This Row],[Platz]]=1,Tabelle_Statistik[[#This Row],[Autor(in)]],\"\")","v":""},{"$f":"IF(Tabelle_Statistik[[#This Row],[Platz]]=2,Tabelle_Statistik[[#This Row],[Autor(in)]],\"\")","v":"Gerhard Rieß"},{"$f":"IF(Tabelle_Statistik[[#This Row],[Platz]]=3,Tabelle_Statistik[[#This Row],[Autor(in)]],\"\")","v":""},{"$f":"IF(Tabelle_Statistik[[#This Row],[Platz]]<11,Tabelle_Statistik[[#This Row],[Autor(in)]],\"\")","v":"Gerhard Rieß"}]
[{"$f":"IF(AND(Fotografen!$A5<>\"\",Fotografen!$A5<>\" - - -\"),Fotografen!$A5,\"\")","v":"Andreas Toltz"},{"$f":"IF(Tabelle_Statistik[[#This Row],[Teilnahme]]=\"ja\",SUMIF(Tabelle_Auswertung[Autor(in)],Tabelle_Statistik[[#This Row],[Autor(in)]],Tabelle_Auswertung[Punkte]),IF(Tabelle_Statistik[[#This Row],[Autor(in)]]<>\"\",\" - \",\"\"))","v":110},{"$f":"IF(Tabelle_Statistik[[#This Row],[Teilnahme]]=\"ja\",RANK(Tabelle_Statistik[[#This Row],[Punkte]],[Punkte],0),IF(Tabelle_Statistik[[#This Row],[Autor(in)]]<>\"\",\" - \",\"\"))","v":3},{"$f":"IF(Tabelle_Statistik[[#This Row],[Autor(in)]]<>\"\",IF(COUNTIF(Tabelle_Auswertung[Autor(in)],Tabelle_Statistik[[#This Row],[Autor(in)]])>0,\"ja\",\"nein\"),\"\")","v":"ja"},{"$f":"IF(Tabelle_Statistik[[#This Row],[Platz]]=1,Tabelle_Statistik[[#This Row],[Autor(in)]],\"\")","v":""},{"$f":"IF(Tabelle_Statistik[[#This Row],[Platz]]=2,Tabelle_Statistik[[#This Row],[Autor(in)]],\"\")","v":""},{"$f":"IF(Tabelle_Statistik[[#This Row],[Platz]]=3,Tabelle_Statistik[[#This Row],[Autor(in)]],\"\")","v":"Andreas Toltz"},{"$f":"IF(Tabelle_Statistik[[#This Row],[Platz]]<11,Tabelle_Statistik[[#This Row],[Autor(in)]],\"\")","v":"Andreas Toltz"}]
[{"$f":"IF(AND(Fotografen!$A8<>\"\",Fotografen!$A8<>\" - - -\"),Fotografen!$A8,\"\")","v":"Chris Finsterer"},{"$f":"IF(Tabelle_Statistik[[#This Row],[Teilnahme]]=\"ja\",SUMIF(Tabelle_Auswertung[Autor(in)],Tabelle_Statistik[[#This Row],[Autor(in)]],Tabelle_Auswertung[Punkte]),IF(Tabelle_Statistik[[#This Row],[Autor(in)]]<>\"\",\" - \",\"\"))","v":107},{"$f":"IF(Tabelle_Statistik[[#This Row],[Teilnahme]]=\"ja\",RANK(Tabelle_Statistik[[#This Row],[Punkte]],[Punkte],0),IF(Tabelle_Statistik[[#This Row],[Autor(in)]]<>\"\",\" - \",\"\"))","v":4},{"$f":"IF(Tabelle_Statistik[[#This Row],[Autor(in)]]<>\"\",IF(COUNTIF(Tabelle_Auswertung[Autor(in)],Tabelle_Statistik[[#This Row],[Autor(in)]])>0,\"ja\",\"nein\"),\"\")","v":"ja"},{"$f":"IF(Tabelle_Statistik[[#This Row],[Platz]]=1,Tabelle_Statistik[[#This Row],[Autor(in)]],\"\")","v":""},{"$f":"IF(Tabelle_Statistik[[#This Row],[Platz]]=2,Tabelle_Statistik[[#This Row],[Autor(in)]],\"\")","v":""},{"$f":"IF(Tabelle_Statistik[[#This Row],[Platz]]=3,Tabelle_Statistik[[#This Row],[Autor(in)]],\"\")","v":""},{"$f":"IF(Tabelle_Statistik[[#This Row],[Platz]]<11,Tabelle_Statistik[[#This Row],[Autor(in)]],\"\")","v":"Chris Finsterer"}]
[{"$f":"IF(AND(Fotografen!$A17<>\"\",Fotografen!$A17<>\" - - -\"),Fotografen!$A17,\"\")","v":"Jan Grünler"},{"$f":"IF(Tabelle_Statistik[[#This Row],[Teilnahme]]=\"ja\",SUMIF(Tabelle_Auswertung[Autor(in)],Tabelle_Statistik[[#This Row],[Autor(in)]],Tabelle_Auswertung[Punkte]),IF(Tabelle_Statistik[[#This Row],[Autor(in)]]<>\"\",\" - \",\"\"))","v":96},{"$f":"IF(Tabelle_Statistik[[#This Row],[Teilnahme]]=\"ja\",RANK(Tabelle_Statistik[[#This Row],[Punkte]],[Punkte],0),IF(Tabelle_Statistik[[#This Row],[Autor(in)]]<>\"\",\" - \",\"\"))","v":5},{"$f":"IF(Tabelle_Statistik[[#This Row],[Autor(in)]]<>\"\",IF(COUNTIF(Tabelle_Auswertung[Autor(in)],Tabelle_Statistik[[#This Row],[Autor(in)]])>0,\"ja\",\"nein\"),\"\")","v":"ja"},{"$f":"IF(Tabelle_Statistik[[#This Row],[Platz]]=1,Tabelle_Statistik[[#This Row],[Autor(in)]],\"\")","v":""},{"$f":"IF(Tabelle_Statistik[[#This Row],[Platz]]=2,Tabelle_Statistik[[#This Row],[Autor(in)]],\"\")","v":""},{"$f":"IF(Tabelle_Statistik[[#This Row],[Platz]]=3,Tabelle_Statistik[[#This Row],[Autor(in)]],\"\")","v":""},{"$f":"IF(Tabelle_Statistik[[#This Row],[Platz]]<11,Tabelle_Statistik[[#This Row],[Autor(in)]],\"\")","v":"Jan Grünler"}]
[{"$f":"IF(AND(Fotografen!$A13<>\"\",Fotografen!$A13<>\" - - -\"),Fotografen!$A13,\"\")","v":"Gert Häberlein"},{"$f":"IF(Tabelle_Statistik[[#This Row],[Teilnahme]]=\"ja\",SUMIF(Tabelle_Auswertung[Autor(in)],Tabelle_Statistik[[#This Row],[Autor(in)]],Tabelle_Auswertung[Punkte]),IF(Tabelle_Statistik[[#This Row],[Autor(in)]]<>\"\",\" - \",\"\"))","v":94},{"$f":"IF(Tabelle_Statistik[[#This Row],[Teilnahme]]=\"ja\",RANK(Tabelle_Statistik[[#This Row],[Punkte]],[Punkte],0),IF(Tabelle_Statistik[[#This Row],[Autor(in)]]<>\"\",\" - \",\"\"))","v":6},{"$f":"IF(Tabelle_Statistik[[#This Row],[Autor(in)]]<>\"\",IF(COUNTIF(Tabelle_Auswertung[Autor(in)],Tabelle_Statistik[[#This Row],[Autor(in)]])>0,\"ja\",\"nein\"),\"\")","v":"ja"},{"$f":"IF(Tabelle_Statistik[[#This Row],[Platz]]=1,Tabelle_Statistik[[#This Row],[Autor(in)]],\"\")","v":""},{"$f":"IF(Tabelle_Statistik[[#This Row],[Platz]]=2,Tabelle_Statistik[[#This Row],[Autor(in)]],\"\")","v":""},{"$f":"IF(Tabelle_Statistik[[#This Row],[Platz]]=3,Tabelle_Statistik[[#This Row],[Autor(in)]],\"\")","v":""},{"$f":"IF(Tabelle_Statistik[[#This Row],[Platz]]<11,Tabelle_Statistik[[#This Row],[Autor(in)]],\"\")","v":"Gert Häberlein"}]
[{"$f":"IF(AND(Fotografen!$A2<>\"\",Fotografen!$A2<>\" - - -\"),Fotografen!$A2,\"\")","v":""},{"$f":"IF(Tabelle_Statistik[[#This Row],[Teilnahme]]=\"ja\",SUMIF(Tabelle_Auswertung[Autor(in)],Tabelle_Statistik[[#This Row],[Autor(in)]],Tabelle_Auswertung[Punkte]),IF(Tabelle_Statistik[[#This Row],[Autor(in)]]<>\"\",\" - \",\"\"))","v":""},{"$f":"IF(Tabelle_Statistik[[#This Row],[Teilnahme]]=\"ja\",RANK(Tabelle_Statistik[[#This Row],[Punkte]],[Punkte],0),IF(Tabelle_Statistik[[#This Row],[Autor(in)]]<>\"\",\" - \",\"\"))","v":""},{"$f":"IF(Tabelle_Statistik[[#This Row],[Autor(in)]]<>\"\",IF(COUNTIF(Tabelle_Auswertung[Autor(in)],Tabelle_Statistik[[#This Row],[Autor(in)]])>0,\"ja\",\"nein\"),\"\")","v":""},{"$f":"IF(Tabelle_Statistik[[#This Row],[Platz]]=1,Tabelle_Statistik[[#This Row],[Autor(in)]],\"\")","v":""},{"$f":"IF(Tabelle_Statistik[[#This Row],[Platz]]=2,Tabelle_Statistik[[#This Row],[Autor(in)]],\"\")","v":""},{"$f":"IF(Tabelle_Statistik[[#This Row],[Platz]]=3,Tabelle_Statistik[[#This Row],[Autor(in)]],\"\")","v":""},{"$f":"IF(Tabelle_Statistik[[#This Row],[Platz]]<11,Tabelle_Statistik[[#This Row],[Autor(in)]],\"\")","v":""}]
[{"$f":"IF(AND(Fotografen!$A25<>\"\",Fotografen!$A25<>\" - - -\"),Fotografen!$A25,\"\")","v":"Nadja Cassim"},{"$f":"IF(Tabelle_Statistik[[#This Row],[Teilnahme]]=\"ja\",SUMIF(Tabelle_Auswertung[Autor(in)],Tabelle_Statistik[[#This Row],[Autor(in)]],Tabelle_Auswertung[Punkte]),IF(Tabelle_Statistik[[#This Row],[Autor(in)]]<>\"\",\" - \",\"\"))","v":" - "},{"$f":"IF(Tabelle_Statistik[[#This Row],[Teilnahme]]=\"ja\",RANK(Tabelle_Statistik[[#This Row],[Punkte]],[Punkte],0),IF(Tabelle_Statistik[[#This Row],[Autor(in)]]<>\"\",\" - \",\"\"))","v":" - "},{"$f":"IF(Tabelle_Statistik[[#This Row],[Autor(in)]]<>\"\",IF(COUNTIF(Tabelle_Auswertung[Autor(in)],Tabelle_Statistik[[#This Row],[Autor(in)]])>0,\"ja\",\"nein\"),\"\")","v":"nein"},{"$f":"IF(Tabelle_Statistik[[#This Row],[Platz]]=1,Tabelle_Statistik[[#This Row],[Autor(in)]],\"\")","v":""},{"$f":"IF(Tabelle_Statistik[[#This Row],[Platz]]=2,Tabelle_Statistik[[#This Row],[Autor(in)]],\"\")","v":""},{"$f":"IF(Tabelle_Statistik[[#This Row],[Platz]]=3,Tabelle_Statistik[[#This Row],[Autor(in)]],\"\")","v":""},{"$f":"IF(Tabelle_Statistik[[#This Row],[Platz]]<11,Tabelle_Statistik[[#This Row],[Autor(in)]],\"\")","v":""}]
[{"$f":"IF(AND(Fotografen!$A26<>\"\",Fotografen!$A26<>\" - - -\"),Fotografen!$A26,\"\")","v":"Oliver von Guérard"},{"$f":"IF(Tabelle_Statistik[[#This Row],[Teilnahme]]=\"ja\",SUMIF(Tabelle_Auswertung[Autor(in)],Tabelle_Statistik[[#This Row],[Autor(in)]],Tabelle_Auswertung[Punkte]),IF(Tabelle_Statistik[[#This Row],[Autor(in)]]<>\"\",\" - \",\"\"))","v":" - "},{"$f":"IF(Tabelle_Statistik[[#This Row],[Teilnahme]]=\"ja\",RANK(Tabelle_Statistik[[#This Row],[Punkte]],[Punkte],0),IF(Tabelle_Statistik[[#This Row],[Autor(in)]]<>\"\",\" - \",\"\"))","v":" - "},{"$f":"IF(Tabelle_Statistik[[#This Row],[Autor(in)]]<>\"\",IF(COUNTIF(Tabelle_Auswertung[Autor(in)],Tabelle_Statistik[[#This Row],[Autor(in)]])>0,\"ja\",\"nein\"),\"\")","v":"nein"},{"$f":"IF(Tabelle_Statistik[[#This Row],[Platz]]=1,Tabelle_Statistik[[#This Row],[Autor(in)]],\"\")","v":""},{"$f":"IF(Tabelle_Statistik[[#This Row],[Platz]]=2,Tabelle_Statistik[[#This Row],[Autor(in)]],\"\")","v":""},{"$f":"IF(Tabelle_Statistik[[#This Row],[Platz]]=3,Tabelle_Statistik[[#This Row],[Autor(in)]],\"\")","v":""},{"$f":"IF(Tabelle_Statistik[[#This Row],[Platz]]<11,Tabelle_Statistik[[#This Row],[Autor(in)]],\"\")","v":""}]
[{"$f":"IF(AND(Fotografen!$A3<>\"\",Fotografen!$A3<>\" - - -\"),Fotografen!$A3,\"\")","v":"Albrecht Flierl"},{"$f":"IF(Tabelle_Statistik[[#This Row],[Teilnahme]]=\"ja\",SUMIF(Tabelle_Auswertung[Autor(in)],Tabelle_Statistik[[#This Row],[Autor(in)]],Tabelle_Auswertung[Punkte]),IF(Tabelle_Statistik[[#This Row],[Autor(in)]]<>\"\",\" - \",\"\"))","v":" - "},{"$f":"IF(Tabelle_Statistik[[#This Row],[Teilnahme]]=\"ja\",RANK(Tabelle_Statistik[[#This Row],[Punkte]],[Punkte],0),IF(Tabelle_Statistik[[#This Row],[Autor(in)]]<>\"\",\" - \",\"\"))","v":" - "},{"$f":"IF(Tabelle_Statistik[[#This Row],[Autor(in)]]<>\"\",IF(COUNTIF(Tabelle_Auswertung[Autor(in)],Tabelle_Statistik[[#This Row],[Autor(in)]])>0,\"ja\",\"nein\"),\"\")","v":"nein"},{"$f":"IF(Tabelle_Statistik[[#This Row],[Platz]]=1,Tabelle_Statistik[[#This Row],[Autor(in)]],\"\")","v":""},{"$f":"IF(Tabelle_Statistik[[#This Row],[Platz]]=2,Tabelle_Statistik[[#This Row],[Autor(in)]],\"\")","v":""},{"$f":"IF(Tabelle_Statistik[[#This Row],[Platz]]=3,Tabelle_Statistik[[#This Row],[Autor(in)]],\"\")","v":""},{"$f":"IF(Tabelle_Statistik[[#This Row],[Platz]]<11,Tabelle_Statistik[[#This Row],[Autor(in)]],\"\")","v":""}]
[{"$f":"IF(AND(Fotografen!$A4<>\"\",Fotografen!$A4<>\" - - -\"),Fotografen!$A4,\"\")","v":"Alexander Häberlein"},{"$f":"IF(Tabelle_Statistik[[#This Row],[Teilnahme]]=\"ja\",SUMIF(Tabelle_Auswertung[Autor(in)],Tabelle_Statistik[[#This Row],[Autor(in)]],Tabelle_Auswertung[Punkte]),IF(Tabelle_Statistik[[#This Row],[Autor(in)]]<>\"\",\" - \",\"\"))","v":" - "},{"$f":"IF(Tabelle_Statistik[[#This Row],[Teilnahme]]=\"ja\",RANK(Tabelle_Statistik[[#This Row],[Punkte]],[Punkte],0),IF(Tabelle_Statistik[[#This Row],[Autor(in)]]<>\"\",\" - \",\"\"))","v":" - "},{"$f":"IF(Tabelle_Statistik[[#This Row],[Autor(in)]]<>\"\",IF(COUNTIF(Tabelle_Auswertung[Autor(in)],Tabelle_Statistik[[#This Row],[Autor(in)]])>0,\"ja\",\"nein\"),\"\")","v":"nein"},{"$f":"IF(Tabelle_Statistik[[#This Row],[Platz]]=1,Tabelle_Statistik[[#This Row],[Autor(in)]],\"\")","v":""},{"$f":"IF(Tabelle_Statistik[[#This Row],[Platz]]=2,Tabelle_Statistik[[#This Row],[Autor(in)]],\"\")","v":""},{"$f":"IF(Tabelle_Statistik[[#This Row],[Platz]]=3,Tabelle_Statistik[[#This Row],[Autor(in)]],\"\")","v":""},{"$f":"IF(Tabelle_Statistik[[#This Row],[Platz]]<11,Tabelle_Statistik[[#This Row],[Autor(in)]],\"\")","v":""}]
[{"$f":"IF(AND(Fotografen!$A6<>\"\",Fotografen!$A6<>\" - - -\"),Fotografen!$A6,\"\")","v":"Bernd Kober"},{"$f":"IF(Tabelle_Statistik[[#This Row],[Teilnahme]]=\"ja\",SUMIF(Tabelle_Auswertung[Autor(in)],Tabelle_Statistik[[#This Row],[Autor(in)]],Tabelle_Auswertung[Punkte]),IF(Tabelle_Statistik[[#This Row],[Autor(in)]]<>\"\",\" - \",\"\"))","v":" - "},{"$f":"IF(Tabelle_Statistik[[#This Row],[Teilnahme]]=\"ja\",RANK(Tabelle_Statistik[[#This Row],[Punkte]],[Punkte],0),IF(Tabelle_Statistik[[#This Row],[Autor(in)]]<>\"\",\" - \",\"\"))","v":" - "},{"$f":"IF(Tabelle_Statistik[[#This Row],[Autor(in)]]<>\"\",IF(COUNTIF(Tabelle_Auswertung[Autor(in)],Tabelle_Statistik[[#This Row],[Autor(in)]])>0,\"ja\",\"nein\"),\"\")","v":"nein"},{"$f":"IF(Tabelle_Statistik[[#This Row],[Platz]]=1,Tabelle_Statistik[[#This Row],[Autor(in)]],\"\")","v":""},{"$f":"IF(Tabelle_Statistik[[#This Row],[Platz]]=2,Tabelle_Statistik[[#This Row],[Autor(in)]],\"\")","v":""},{"$f":"IF(Tabelle_Statistik[[#This Row],[Platz]]=3,Tabelle_Statistik[[#This Row],[Autor(in)]],\"\")","v":""},{"$f":"IF(Tabelle_Statistik[[#This Row],[Platz]]<11,Tabelle_Statistik[[#This Row],[Autor(in)]],\"\")","v":""}]
[{"$f":"IF(AND(Fotografen!$A7<>\"\",Fotografen!$A7<>\" - - -\"),Fotografen!$A7,\"\")","v":"Bernd Marek"},{"$f":"IF(Tabelle_Statistik[[#This Row],[Teilnahme]]=\"ja\",SUMIF(Tabelle_Auswertung[Autor(in)],Tabelle_Statistik[[#This Row],[Autor(in)]],Tabelle_Auswertung[Punkte]),IF(Tabelle_Statistik[[#This Row],[Autor(in)]]<>\"\",\" - \",\"\"))","v":" - "},{"$f":"IF(Tabelle_Statistik[[#This Row],[Teilnahme]]=\"ja\",RANK(Tabelle_Statistik[[#This Row],[Punkte]],[Punkte],0),IF(Tabelle_Statistik[[#This Row],[Autor(in)]]<>\"\",\" - \",\"\"))","v":" - "},{"$f":"IF(Tabelle_Statistik[[#This Row],[Autor(in)]]<>\"\",IF(COUNTIF(Tabelle_Auswertung[Autor(in)],Tabelle_Statistik[[#This Row],[Autor(in)]])>0,\"ja\",\"nein\"),\"\")","v":"nein"},{"$f":"IF(Tabelle_Statistik[[#This Row],[Platz]]=1,Tabelle_Statistik[[#This Row],[Autor(in)]],\"\")","v":""},{"$f":"IF(Tabelle_Statistik[[#This Row],[Platz]]=2,Tabelle_Statistik[[#This Row],[Autor(in)]],\"\")","v":""},{"$f":"IF(Tabelle_Statistik[[#This Row],[Platz]]=3,Tabelle_Statistik[[#This Row],[Autor(in)]],\"\")","v":""},{"$f":"IF(Tabelle_Statistik[[#This Row],[Platz]]<11,Tabelle_Statistik[[#This Row],[Autor(in)]],\"\")","v":""}]
[{"$f":"IF(AND(Fotografen!$A9<>\"\",Fotografen!$A9<>\" - - -\"),Fotografen!$A9,\"\")","v":"Claudia Dommel"},{"$f":"IF(Tabelle_Statistik[[#This Row],[Teilnahme]]=\"ja\",SUMIF(Tabelle_Auswertung[Autor(in)],Tabelle_Statistik[[#This Row],[Autor(in)]],Tabelle_Auswertung[Punkte]),IF(Tabelle_Statistik[[#This Row],[Autor(in)]]<>\"\",\" - \",\"\"))","v":" - "},{"$f":"IF(Tabelle_Statistik[[#This Row],[Teilnahme]]=\"ja\",RANK(Tabelle_Statistik[[#This Row],[Punkte]],[Punkte],0),IF(Tabelle_Statistik[[#This Row],[Autor(in)]]<>\"\",\" - \",\"\"))","v":" - "},{"$f":"IF(Tabelle_Statistik[[#This Row],[Autor(in)]]<>\"\",IF(COUNTIF(Tabelle_Auswertung[Autor(in)],Tabelle_Statistik[[#This Row],[Autor(in)]])>0,\"ja\",\"nein\"),\"\")","v":"nein"},{"$f":"IF(Tabelle_Statistik[[#This Row],[Platz]]=1,Tabelle_Statistik[[#This Row],[Autor(in)]],\"\")","v":""},{"$f":"IF(Tabelle_Statistik[[#This Row],[Platz]]=2,Tabelle_Statistik[[#This Row],[Autor(in)]],\"\")","v":""},{"$f":"IF(Tabelle_Statistik[[#This Row],[Platz]]=3,Tabelle_Statistik[[#This Row],[Autor(in)]],\"\")","v":""},{"$f":"IF(Tabelle_Statistik[[#This Row],[Platz]]<11,Tabelle_Statistik[[#This Row],[Autor(in)]],\"\")","v":""}]
[{"$f":"IF(AND(Fotografen!$A10<>\"\",Fotografen!$A10<>\" - - -\"),Fotografen!$A10,\"\")","v":"Georg Held"},{"$f":"IF(Tabelle_Statistik[[#This Row],[Teilnahme]]=\"ja\",SUMIF(Tabelle_Auswertung[Autor(in)],Tabelle_Statistik[[#This Row],[Autor(in)]],Tabelle_Auswertung[Punkte]),IF(Tabelle_Statistik[[#This Row],[Autor(in)]]<>\"\",\" - \",\"\"))","v":" - "},{"$f":"IF(Tabelle_Statistik[[#This Row],[Teilnahme]]=\"ja\",RANK(Tabelle_Statistik[[#This Row],[Punkte]],[Punkte],0),IF(Tabelle_Statistik[[#This Row],[Autor(in)]]<>\"\",\" - \",\"\"))","v":" - "},{"$f":"IF(Tabelle_Statistik[[#This Row],[Autor(in)]]<>\"\",IF(COUNTIF(Tabelle_Auswertung[Autor(in)],Tabelle_Statistik[[#This Row],[Autor(in)]])>0,\"ja\",\"nein\"),\"\")","v":"nein"},{"$f":"IF(Tabelle_Statistik[[#This Row],[Platz]]=1,Tabelle_Statistik[[#This Row],[Autor(in)]],\"\")","v":""},{"$f":"IF(Tabelle_Statistik[[#This Row],[Platz]]=2,Tabelle_Statistik[[#This Row],[Autor(in)]],\"\")","v":""},{"$f":"IF(Tabelle_Statistik[[#This Row],[Platz]]=3,Tabelle_Statistik[[#This Row],[Autor(in)]],\"\")","v":""},{"$f":"IF(Tabelle_Statistik[[#This Row],[Platz]]<11,Tabelle_Statistik[[#This Row],[Autor(in)]],\"\")","v":""}]
[{"$f":"IF(AND(Fotografen!$A11<>\"\",Fotografen!$A11<>\" - - -\"),Fotografen!$A11,\"\")","v":"Georg Lindörfer"},{"$f":"IF(Tabelle_Statistik[[#This Row],[Teilnahme]]=\"ja\",SUMIF(Tabelle_Auswertung[Autor(in)],Tabelle_Statistik[[#This Row],[Autor(in)]],Tabelle_Auswertung[Punkte]),IF(Tabelle_Statistik[[#This Row],[Autor(in)]]<>\"\",\" - \",\"\"))","v":" - "},{"$f":"IF(Tabelle_Statistik[[#This Row],[Teilnahme]]=\"ja\",RANK(Tabelle_Statistik[[#This Row],[Punkte]],[Punkte],0),IF(Tabelle_Statistik[[#This Row],[Autor(in)]]<>\"\",\" - \",\"\"))","v":" - "},{"$f":"IF(Tabelle_Statistik[[#This Row],[Autor(in)]]<>\"\",IF(COUNTIF(Tabelle_Auswertung[Autor(in)],Tabelle_Statistik[[#This Row],[Autor(in)]])>0,\"ja\",\"nein\"),\"\")","v":"nein"},{"$f":"IF(Tabelle_Statistik[[#This Row],[Platz]]=1,Tabelle_Statistik[[#This Row],[Autor(in)]],\"\")","v":""},{"$f":"IF(Tabelle_Statistik[[#This Row],[Platz]]=2,Tabelle_Statistik[[#This Row],[Autor(in)]],\"\")","v":""},{"$f":"IF(Tabelle_Statistik[[#This Row],[Platz]]=3,Tabelle_Statistik[[#This Row],[Autor(in)]],\"\")","v":""},{"$f":"IF(Tabelle_Statistik[[#This Row],[Platz]]<11,Tabelle_Statistik[[#This Row],[Autor(in)]],\"\")","v":""}]
[{"$f":"IF(AND(Fotografen!$A14<>\"\",Fotografen!$A14<>\" - - -\"),Fotografen!$A14,\"\")","v":"Günter Buckl"},{"$f":"IF(Tabelle_Statistik[[#This Row],[Teilnahme]]=\"ja\",SUMIF(Tabelle_Auswertung[Autor(in)],Tabelle_Statistik[[#This Row],[Autor(in)]],Tabelle_Auswertung[Punkte]),IF(Tabelle_Statistik[[#This Row],[Autor(in)]]<>\"\",\" - \",\"\"))","v":" - "},{"$f":"IF(Tabelle_Statistik[[#This Row],[Teilnahme]]=\"ja\",RANK(Tabelle_Statistik[[#This Row],[Punkte]],[Punkte],0),IF(Tabelle_Statistik[[#This Row],[Autor(in)]]<>\"\",\" - \",\"\"))","v":" - "},{"$f":"IF(Tabelle_Statistik[[#This Row],[Autor(in)]]<>\"\",IF(COUNTIF(Tabelle_Auswertung[Autor(in)],Tabelle_Statistik[[#This Row],[Autor(in)]])>0,\"ja\",\"nein\"),\"\")","v":"nein"},{"$f":"IF(Tabelle_Statistik[[#This Row],[Platz]]=1,Tabelle_Statistik[[#This Row],[Autor(in)]],\"\")","v":""},{"$f":"IF(Tabelle_Statistik[[#This Row],[Platz]]=2,Tabelle_Statistik[[#This Row],[Autor(in)]],\"\")","v":""},{"$f":"IF(Tabelle_Statistik[[#This Row],[Platz]]=3,Tabelle_Statistik[[#This Row],[Autor(in)]],\"\")","v":""},{"$f":"IF(Tabelle_Statistik[[#This Row],[Platz]]<11,Tabelle_Statistik[[#This Row],[Autor(in)]],\"\")","v":""}]
[{"$f":"IF(AND(Fotografen!$A15<>\"\",Fotografen!$A15<>\" - - -\"),Fotografen!$A15,\"\")","v":"Günter Wieser"},{"$f":"IF(Tabelle_Statistik[[#This Row],[Teilnahme]]=\"ja\",SUMIF(Tabelle_Auswertung[Autor(in)],Tabelle_Statistik[[#This Row],[Autor(in)]],Tabelle_Auswertung[Punkte]),IF(Tabelle_Statistik[[#This Row],[Autor(in)]]<>\"\",\" - \",\"\"))","v":" - "},{"$f":"IF(Tabelle_Statistik[[#This Row],[Teilnahme]]=\"ja\",RANK(Tabelle_Statistik[[#This Row],[Punkte]],[Punkte],0),IF(Tabelle_Statistik[[#This Row],[Autor(in)]]<>\"\",\" - \",\"\"))","v":" - "},{"$f":"IF(Tabelle_Statistik[[#This Row],[Autor(in)]]<>\"\",IF(COUNTIF(Tabelle_Auswertung[Autor(in)],Tabelle_Statistik[[#This Row],[Autor(in)]])>0,\"ja\",\"nein\"),\"\")","v":"nein"},{"$f":"IF(Tabelle_Statistik[[#This Row],[Platz]]=1,Tabelle_Statistik[[#This Row],[Autor(in)]],\"\")","v":""},{"$f":"IF(Tabelle_Statistik[[#This Row],[Platz]]=2,Tabelle_Statistik[[#This Row],[Autor(in)]],\"\")","v":""},{"$f":"IF(Tabelle_Statistik[[#This Row],[Platz]]=3,Tabelle_Statistik[[#This Row],[Autor(in)]],\"\")","v":""},{"$f":"IF(Tabelle_Statistik[[#This Row],[Platz]]<11,Tabelle_Statistik[[#This Row],[Autor(in)]],\"\")","v":""}]
[{"$f":"IF(AND(Fotografen!$A16<>\"\",Fotografen!$A16<>\" - - -\"),Fotografen!$A16,\"\")","v":"Günther Arold"},{"$f":"IF(Tabelle_Statistik[[#This Row],[Teilnahme]]=\"ja\",SUMIF(Tabelle_Auswertung[Autor(in)],Tabelle_Statistik[[#This Row],[Autor(in)]],Tabelle_Auswertung[Punkte]),IF(Tabelle_Statistik[[#This Row],[Autor(in)]]<>\"\",\" - \",\"\"))","v":" - "},{"$f":"IF(Tabelle_Statistik[[#This Row],[Teilnahme]]=\"ja\",RANK(Tabelle_Statistik[[#This Row],[Punkte]],[Punkte],0),IF(Tabelle_Statistik[[#This Row],[Autor(in)]]<>\"\",\" - \",\"\"))","v":" - "},{"$f":"IF(Tabelle_Statistik[[#This Row],[Autor(in)]]<>\"\",IF(COUNTIF(Tabelle_Auswertung[Autor(in)],Tabelle_Statistik[[#This Row],[Autor(in)]])>0,\"ja\",\"nein\"),\"\")","v":"nein"},{"$f":"IF(Tabelle_Statistik[[#This Row],[Platz]]=1,Tabelle_Statistik[[#This Row],[Autor(in)]],\"\")","v":""},{"$f":"IF(Tabelle_Statistik[[#This Row],[Platz]]=2,Tabelle_Statistik[[#This Row],[Autor(in)]],\"\")","v":""},{"$f":"IF(Tabelle_Statistik[[#This Row],[Platz]]=3,Tabelle_Statistik[[#This Row],[Autor(in)]],\"\")","v":""},{"$f":"IF(Tabelle_Statistik[[#This Row],[Platz]]<11,Tabelle_Statistik[[#This Row],[Autor(in)]],\"\")","v":""}]
[{"$f":"IF(AND(Fotografen!$A18<>\"\",Fotografen!$A18<>\" - - -\"),Fotografen!$A18,\"\")","v":"Jürgen Abt"},{"$f":"IF(Tabelle_Statistik[[#This Row],[Teilnahme]]=\"ja\",SUMIF(Tabelle_Auswertung[Autor(in)],Tabelle_Statistik[[#This Row],[Autor(in)]],Tabelle_Auswertung[Punkte]),IF(Tabelle_Statistik[[#This Row],[Autor(in)]]<>\"\",\" - \",\"\"))","v":" - "},{"$f":"IF(Tabelle_Statistik[[#This Row],[Teilnahme]]=\"ja\",RANK(Tabelle_Statistik[[#This Row],[Punkte]],[Punkte],0),IF(Tabelle_Statistik[[#This Row],[Autor(in)]]<>\"\",\" - \",\"\"))","v":" - "},{"$f":"IF(Tabelle_Statistik[[#This Row],[Autor(in)]]<>\"\",IF(COUNTIF(Tabelle_Auswertung[Autor(in)],Tabelle_Statistik[[#This Row],[Autor(in)]])>0,\"ja\",\"nein\"),\"\")","v":"nein"},{"$f":"IF(Tabelle_Statistik[[#This Row],[Platz]]=1,Tabelle_Statistik[[#This Row],[Autor(in)]],\"\")","v":""},{"$f":"IF(Tabelle_Statistik[[#This Row],[Platz]]=2,Tabelle_Statistik[[#This Row],[Autor(in)]],\"\")","v":""},{"$f":"IF(Tabelle_Statistik[[#This Row],[Platz]]=3,Tabelle_Statistik[[#This Row],[Autor(in)]],\"\")","v":""},{"$f":"IF(Tabelle_Statistik[[#This Row],[Platz]]<11,Tabelle_Statistik[[#This Row],[Autor(in)]],\"\")","v":""}]
[{"$f":"IF(AND(Fotografen!$A19<>\"\",Fotografen!$A19<>\" - - -\"),Fotografen!$A19,\"\")","v":"Klaus Leitloff"},{"$f":"IF(Tabelle_Statistik[[#This Row],[Teilnahme]]=\"ja\",SUMIF(Tabelle_Auswertung[Autor(in)],Tabelle_Statistik[[#This Row],[Autor(in)]],Tabelle_Auswertung[Punkte]),IF(Tabelle_Statistik[[#This Row],[Autor(in)]]<>\"\",\" - \",\"\"))","v":" - "},{"$f":"IF(Tabelle_Statistik[[#This Row],[Teilnahme]]=\"ja\",RANK(Tabelle_Statistik[[#This Row],[Punkte]],[Punkte],0),IF(Tabelle_Statistik[[#This Row],[Autor(in)]]<>\"\",\" - \",\"\"))","v":" - "},{"$f":"IF(Tabelle_Statistik[[#This Row],[Autor(in)]]<>\"\",IF(COUNTIF(Tabelle_Auswertung[Autor(in)],Tabelle_Statistik[[#This Row],[Autor(in)]])>0,\"ja\",\"nein\"),\"\")","v":"nein"},{"$f":"IF(Tabelle_Statistik[[#This Row],[Platz]]=1,Tabelle_Statistik[[#This Row],[Autor(in)]],\"\")","v":""},{"$f":"IF(Tabelle_Statistik[[#This Row],[Platz]]=2,Tabelle_Statistik[[#This Row],[Autor(in)]],\"\")","v":""},{"$f":"IF(Tabelle_Statistik[[#This Row],[Platz]]=3,Tabelle_Statistik[[#This Row],[Autor(in)]],\"\")","v":""},{"$f":"IF(Tabelle_Statistik[[#This Row],[Platz]]<11,Tabelle_Statistik[[#This Row],[Autor(in)]],\"\")","v":""}]
[{"$f":"IF(AND(Fotografen!$A20<>\"\",Fotografen!$A20<>\" - - -\"),Fotografen!$A20,\"\")","v":"Klaus Lindörfer"},{"$f":"IF(Tabelle_Statistik[[#This Row],[Teilnahme]]=\"ja\",SUMIF(Tabelle_Auswertung[Autor(in)],Tabelle_Statistik[[#This Row],[Autor(in)]],Tabelle_Auswertung[Punkte]),IF(Tabelle_Statistik[[#This Row],[Autor(in)]]<>\"\",\" - \",\"\"))","v":" - "},{"$f":"IF(Tabelle_Statistik[[#This Row],[Teilnahme]]=\"ja\",RANK(Tabelle_Statistik[[#This Row],[Punkte]],[Punkte],0),IF(Tabelle_Statistik[[#This Row],[Autor(in)]]<>\"\",\" - \",\"\"))","v":" - "},{"$f":"IF(Tabelle_Statistik[[#This Row],[Autor(in)]]<>\"\",IF(COUNTIF(Tabelle_Auswertung[Autor(in)],Tabelle_Statistik[[#This Row],[Autor(in)]])>0,\"ja\",\"nein\"),\"\")","v":"nein"},{"$f":"IF(Tabelle_Statistik[[#This Row],[Platz]]=1,Tabelle_Statistik[[#This Row],[Autor(in)]],\"\")","v":""},{"$f":"IF(Tabelle_Statistik[[#This Row],[Platz]]=2,Tabelle_Statistik[[#This Row],[Autor(in)]],\"\")","v":""},{"$f":"IF(Tabelle_Statistik[[#This Row],[Platz]]=3,Tabelle_Statistik[[#This Row],[Autor(in)]],\"\")","v":""},{"$f":"IF(Tabelle_Statistik[[#This Row],[Platz]]<11,Tabelle_Statistik[[#This Row],[Autor(in)]],\"\")","v":""}]
[{"$f":"IF(AND(Fotografen!$A21<>\"\",Fotografen!$A21<>\" - - -\"),Fotografen!$A21,\"\")","v":"Lisa Schmidt"},{"$f":"IF(Tabelle_Statistik[[#This Row],[Teilnahme]]=\"ja\",SUMIF(Tabelle_Auswertung[Autor(in)],Tabelle_Statistik[[#This Row],[Autor(in)]],Tabelle_Auswertung[Punkte]),IF(Tabelle_Statistik[[#This Row],[Autor(in)]]<>\"\",\" - \",\"\"))","v":" - "},{"$f":"IF(Tabelle_Statistik[[#This Row],[Teilnahme]]=\"ja\",RANK(Tabelle_Statistik[[#This Row],[Punkte]],[Punkte],0),IF(Tabelle_Statistik[[#This Row],[Autor(in)]]<>\"\",\" - \",\"\"))","v":" - "},{"$f":"IF(Tabelle_Statistik[[#This Row],[Autor(in)]]<>\"\",IF(COUNTIF(Tabelle_Auswertung[Autor(in)],Tabelle_Statistik[[#This Row],[Autor(in)]])>0,\"ja\",\"nein\"),\"\")","v":"nein"},{"$f":"IF(Tabelle_Statistik[[#This Row],[Platz]]=1,Tabelle_Statistik[[#This Row],[Autor(in)]],\"\")","v":""},{"$f":"IF(Tabelle_Statistik[[#This Row],[Platz]]=2,Tabelle_Statistik[[#This Row],[Autor(in)]],\"\")","v":""},{"$f":"IF(Tabelle_Statistik[[#This Row],[Platz]]=3,Tabelle_Statistik[[#This Row],[Autor(in)]],\"\")","v":""},{"$f":"IF(Tabelle_Statistik[[#This Row],[Platz]]<11,Tabelle_Statistik[[#This Row],[Autor(in)]],\"\")","v":""}]
[{"$f":"IF(AND(Fotografen!$A22<>\"\",Fotografen!$A22<>\" - - -\"),Fotografen!$A22,\"\")","v":"Manfred Schwab"},{"$f":"IF(Tabelle_Statistik[[#This Row],[Teilnahme]]=\"ja\",SUMIF(Tabelle_Auswertung[Autor(in)],Tabelle_Statistik[[#This Row],[Autor(in)]],Tabelle_Auswertung[Punkte]),IF(Tabelle_Statistik[[#This Row],[Autor(in)]]<>\"\",\" - \",\"\"))","v":" - "},{"$f":"IF(Tabelle_Statistik[[#This Row],[Teilnahme]]=\"ja\",RANK(Tabelle_Statistik[[#This Row],[Punkte]],[Punkte],0),IF(Tabelle_Statistik[[#This Row],[Autor(in)]]<>\"\",\" - \",\"\"))","v":" - "},{"$f":"IF(Tabelle_Statistik[[#This Row],[Autor(in)]]<>\"\",IF(COUNTIF(Tabelle_Auswertung[Autor(in)],Tabelle_Statistik[[#This Row],[Autor(in)]])>0,\"ja\",\"nein\"),\"\")","v":"nein"},{"$f":"IF(Tabelle_Statistik[[#This Row],[Platz]]=1,Tabelle_Statistik[[#This Row],[Autor(in)]],\"\")","v":""},{"$f":"IF(Tabelle_Statistik[[#This Row],[Platz]]=2,Tabelle_Statistik[[#This Row],[Autor(in)]],\"\")","v":""},{"$f":"IF(Tabelle_Statistik[[#This Row],[Platz]]=3,Tabelle_Statistik[[#This Row],[Autor(in)]],\"\")","v":""},{"$f":"IF(Tabelle_Statistik[[#This Row],[Platz]]<11,Tabelle_Statistik[[#This Row],[Autor(in)]],\"\")","v":""}]
[{"$f":"IF(AND(Fotografen!$A23<>\"\",Fotografen!$A23<>\" - - -\"),Fotografen!$A23,\"\")","v":"Manfred Wenz"},{"$f":"IF(Tabelle_Statistik[[#This Row],[Teilnahme]]=\"ja\",SUMIF(Tabelle_Auswertung[Autor(in)],Tabelle_Statistik[[#This Row],[Autor(in)]],Tabelle_Auswertung[Punkte]),IF(Tabelle_Statistik[[#This Row],[Autor(in)]]<>\"\",\" - \",\"\"))","v":" - "},{"$f":"IF(Tabelle_Statistik[[#This Row],[Teilnahme]]=\"ja\",RANK(Tabelle_Statistik[[#This Row],[Punkte]],[Punkte],0),IF(Tabelle_Statistik[[#This Row],[Autor(in)]]<>\"\",\" - \",\"\"))","v":" - "},{"$f":"IF(Tabelle_Statistik[[#This Row],[Autor(in)]]<>\"\",IF(COUNTIF(Tabelle_Auswertung[Autor(in)],Tabelle_Statistik[[#This Row],[Autor(in)]])>0,\"ja\",\"nein\"),\"\")","v":"nein"},{"$f":"IF(Tabelle_Statistik[[#This Row],[Platz]]=1,Tabelle_Statistik[[#This Row],[Autor(in)]],\"\")","v":""},{"$f":"IF(Tabelle_Statistik[[#This Row],[Platz]]=2,Tabelle_Statistik[[#This Row],[Autor(in)]],\"\")","v":""},{"$f":"IF(Tabelle_Statistik[[#This Row],[Platz]]=3,Tabelle_Statistik[[#This Row],[Autor(in)]],\"\")","v":""},{"$f":"IF(Tabelle_Statistik[[#This Row],[Platz]]<11,Tabelle_Statistik[[#This Row],[Autor(in)]],\"\")","v":""}]
[{"$f":"IF(AND(Fotografen!$A24<>\"\",Fotografen!$A24<>\" - - -\"),Fotografen!$A24,\"\")","v":"Margit Schmidt"},{"$f":"IF(Tabelle_Statistik[[#This Row],[Teilnahme]]=\"ja\",SUMIF(Tabelle_Auswertung[Autor(in)],Tabelle_Statistik[[#This Row],[Autor(in)]],Tabelle_Auswertung[Punkte]),IF(Tabelle_Statistik[[#This Row],[Autor(in)]]<>\"\",\" - \",\"\"))","v":" - "},{"$f":"IF(Tabelle_Statistik[[#This Row],[Teilnahme]]=\"ja\",RANK(Tabelle_Statistik[[#This Row],[Punkte]],[Punkte],0),IF(Tabelle_Statistik[[#This Row],[Autor(in)]]<>\"\",\" - \",\"\"))","v":" - "},{"$f":"IF(Tabelle_Statistik[[#This Row],[Autor(in)]]<>\"\",IF(COUNTIF(Tabelle_Auswertung[Autor(in)],Tabelle_Statistik[[#This Row],[Autor(in)]])>0,\"ja\",\"nein\"),\"\")","v":"nein"},{"$f":"IF(Tabelle_Statistik[[#This Row],[Platz]]=1,Tabelle_Statistik[[#This Row],[Autor(in)]],\"\")","v":""},{"$f":"IF(Tabelle_Statistik[[#This Row],[Platz]]=2,Tabelle_Statistik[[#This Row],[Autor(in)]],\"\")","v":""},{"$f":"IF(Tabelle_Statistik[[#This Row],[Platz]]=3,Tabelle_Statistik[[#This Row],[Autor(in)]],\"\")","v":""},{"$f":"IF(Tabelle_Statistik[[#This Row],[Platz]]<11,Tabelle_Statistik[[#This Row],[Autor(in)]],\"\")","v":""}]
[{"$f":"IF(AND(Fotografen!$A27<>\"\",Fotografen!$A27<>\" - - -\"),Fotografen!$A27,\"\")","v":"Patricia Spyra"},{"$f":"IF(Tabelle_Statistik[[#This Row],[Teilnahme]]=\"ja\",SUMIF(Tabelle_Auswertung[Autor(in)],Tabelle_Statistik[[#This Row],[Autor(in)]],Tabelle_Auswertung[Punkte]),IF(Tabelle_Statistik[[#This Row],[Autor(in)]]<>\"\",\" - \",\"\"))","v":" - "},{"$f":"IF(Tabelle_Statistik[[#This Row],[Teilnahme]]=\"ja\",RANK(Tabelle_Statistik[[#This Row],[Punkte]],[Punkte],0),IF(Tabelle_Statistik[[#This Row],[Autor(in)]]<>\"\",\" - \",\"\"))","v":" - "},{"$f":"IF(Tabelle_Statistik[[#This Row],[Autor(in)]]<>\"\",IF(COUNTIF(Tabelle_Auswertung[Autor(in)],Tabelle_Statistik[[#This Row],[Autor(in)]])>0,\"ja\",\"nein\"),\"\")","v":"nein"},{"$f":"IF(Tabelle_Statistik[[#This Row],[Platz]]=1,Tabelle_Statistik[[#This Row],[Autor(in)]],\"\")","v":""},{"$f":"IF(Tabelle_Statistik[[#This Row],[Platz]]=2,Tabelle_Statistik[[#This Row],[Autor(in)]],\"\")","v":""},{"$f":"IF(Tabelle_Statistik[[#This Row],[Platz]]=3,Tabelle_Statistik[[#This Row],[Autor(in)]],\"\")","v":""},{"$f":"IF(Tabelle_Statistik[[#This Row],[Platz]]<11,Tabelle_Statistik[[#This Row],[Autor(in)]],\"\")","v":""}]
[{"$f":"IF(AND(Fotografen!$A28<>\"\",Fotografen!$A28<>\" - - -\"),Fotografen!$A28,\"\")","v":"Peter Höhn"},{"$f":"IF(Tabelle_Statistik[[#This Row],[Teilnahme]]=\"ja\",SUMIF(Tabelle_Auswertung[Autor(in)],Tabelle_Statistik[[#This Row],[Autor(in)]],Tabelle_Auswertung[Punkte]),IF(Tabelle_Statistik[[#This Row],[Autor(in)]]<>\"\",\" - \",\"\"))","v":" - "},{"$f":"IF(Tabelle_Statistik[[#This Row],[Teilnahme]]=\"ja\",RANK(Tabelle_Statistik[[#This Row],[Punkte]],[Punkte],0),IF(Tabelle_Statistik[[#This Row],[Autor(in)]]<>\"\",\" - \",\"\"))","v":" - "},{"$f":"IF(Tabelle_Statistik[[#This Row],[Autor(in)]]<>\"\",IF(COUNTIF(Tabelle_Auswertung[Autor(in)],Tabelle_Statistik[[#This Row],[Autor(in)]])>0,\"ja\",\"nein\"),\"\")","v":"nein"},{"$f":"IF(Tabelle_Statistik[[#This Row],[Platz]]=1,Tabelle_Statistik[[#This Row],[Autor(in)]],\"\")","v":""},{"$f":"IF(Tabelle_Statistik[[#This Row],[Platz]]=2,Tabelle_Statistik[[#This Row],[Autor(in)]],\"\")","v":""},{"$f":"IF(Tabelle_Statistik[[#This Row],[Platz]]=3,Tabelle_Statistik[[#This Row],[Autor(in)]],\"\")","v":""},{"$f":"IF(Tabelle_Statistik[[#This Row],[Platz]]<11,Tabelle_Statistik[[#This Row],[Autor(in)]],\"\")","v":""}]
[{"$f":"IF(AND(Fotografen!$A30<>\"\",Fotografen!$A30<>\" - - -\"),Fotografen!$A30,\"\")","v":"Thomas Fuchs"},{"$f":"IF(Tabelle_Statistik[[#This Row],[Teilnahme]]=\"ja\",SUMIF(Tabelle_Auswertung[Autor(in)],Tabelle_Statistik[[#This Row],[Autor(in)]],Tabelle_Auswertung[Punkte]),IF(Tabelle_Statistik[[#This Row],[Autor(in)]]<>\"\",\" - \",\"\"))","v":" - "},{"$f":"IF(Tabelle_Statistik[[#This Row],[Teilnahme]]=\"ja\",RANK(Tabelle_Statistik[[#This Row],[Punkte]],[Punkte],0),IF(Tabelle_Statistik[[#This Row],[Autor(in)]]<>\"\",\" - \",\"\"))","v":" - "},{"$f":"IF(Tabelle_Statistik[[#This Row],[Autor(in)]]<>\"\",IF(COUNTIF(Tabelle_Auswertung[Autor(in)],Tabelle_Statistik[[#This Row],[Autor(in)]])>0,\"ja\",\"nein\"),\"\")","v":"nein"},{"$f":"IF(Tabelle_Statistik[[#This Row],[Platz]]=1,Tabelle_Statistik[[#This Row],[Autor(in)]],\"\")","v":""},{"$f":"IF(Tabelle_Statistik[[#This Row],[Platz]]=2,Tabelle_Statistik[[#This Row],[Autor(in)]],\"\")","v":""},{"$f":"IF(Tabelle_Statistik[[#This Row],[Platz]]=3,Tabelle_Statistik[[#This Row],[Autor(in)]],\"\")","v":""},{"$f":"IF(Tabelle_Statistik[[#This Row],[Platz]]<11,Tabelle_Statistik[[#This Row],[Autor(in)]],\"\")","v":""}]
[{"$f":"IF(AND(Fotografen!$A31<>\"\",Fotografen!$A31<>\" - - -\"),Fotografen!$A31,\"\")","v":"Walter Böse"},{"$f":"IF(Tabelle_Statistik[[#This Row],[Teilnahme]]=\"ja\",SUMIF(Tabelle_Auswertung[Autor(in)],Tabelle_Statistik[[#This Row],[Autor(in)]],Tabelle_Auswertung[Punkte]),IF(Tabelle_Statistik[[#This Row],[Autor(in)]]<>\"\",\" - \",\"\"))","v":" - "},{"$f":"IF(Tabelle_Statistik[[#This Row],[Teilnahme]]=\"ja\",RANK(Tabelle_Statistik[[#This Row],[Punkte]],[Punkte],0),IF(Tabelle_Statistik[[#This Row],[Autor(in)]]<>\"\",\" - \",\"\"))","v":" - "},{"$f":"IF(Tabelle_Statistik[[#This Row],[Autor(in)]]<>\"\",IF(COUNTIF(Tabelle_Auswertung[Autor(in)],Tabelle_Statistik[[#This Row],[Autor(in)]])>0,\"ja\",\"nein\"),\"\")","v":"nein"},{"$f":"IF(Tabelle_Statistik[[#This Row],[Platz]]=1,Tabelle_Statistik[[#This Row],[Autor(in)]],\"\")","v":""},{"$f":"IF(Tabelle_Statistik[[#This Row],[Platz]]=2,Tabelle_Statistik[[#This Row],[Autor(in)]],\"\")","v":""},{"$f":"IF(Tabelle_Statistik[[#This Row],[Platz]]=3,Tabelle_Statistik[[#This Row],[Autor(in)]],\"\")","v":""},{"$f":"IF(Tabelle_Statistik[[#This Row],[Platz]]<11,Tabelle_Statistik[[#This Row],[Autor(in)]],\"\")","v":""}]
[{"$f":"IF(AND(Fotografen!$A32<>\"\",Fotografen!$A32<>\" - - -\"),Fotografen!$A32,\"\")","v":"Wolfgang Brenner"},{"$f":"IF(Tabelle_Statistik[[#This Row],[Teilnahme]]=\"ja\",SUMIF(Tabelle_Auswertung[Autor(in)],Tabelle_Statistik[[#This Row],[Autor(in)]],Tabelle_Auswertung[Punkte]),IF(Tabelle_Statistik[[#This Row],[Autor(in)]]<>\"\",\" - \",\"\"))","v":" - "},{"$f":"IF(Tabelle_Statistik[[#This Row],[Teilnahme]]=\"ja\",RANK(Tabelle_Statistik[[#This Row],[Punkte]],[Punkte],0),IF(Tabelle_Statistik[[#This Row],[Autor(in)]]<>\"\",\" - \",\"\"))","v":" - "},{"$f":"IF(Tabelle_Statistik[[#This Row],[Autor(in)]]<>\"\",IF(COUNTIF(Tabelle_Auswertung[Autor(in)],Tabelle_Statistik[[#This Row],[Autor(in)]])>0,\"ja\",\"nein\"),\"\")","v":"nein"},{"$f":"IF(Tabelle_Statistik[[#This Row],[Platz]]=1,Tabelle_Statistik[[#This Row],[Autor(in)]],\"\")","v":""},{"$f":"IF(Tabelle_Statistik[[#This Row],[Platz]]=2,Tabelle_Statistik[[#This Row],[Autor(in)]],\"\")","v":""},{"$f":"IF(Tabelle_Statistik[[#This Row],[Platz]]=3,Tabelle_Statistik[[#This Row],[Autor(in)]],\"\")","v":""},{"$f":"IF(Tabelle_Statistik[[#This Row],[Platz]]<11,Tabelle_Statistik[[#This Row],[Autor(in)]],\"\")","v":""}]

{"sheet":"Top 10 Bilder","index":2,"n_rows":15,"n_cols":2,"rows_kept":15,"merged":[[0,0,3,1]]}
["TOP 10 Bilder"]
[]
[]
[]
["Platz","Bild(er)"]
[1,{"$f":"VERKETTEN_P1(Tabelle_Auswertung[Platz 1],CHAR(10))","v":"Puck, die Fliege.JPG von Susanne Deinhardt"}]
[2,{"$f":"VERKETTEN_P1(Tabelle_Auswertung[Platz 2],CHAR(10))","v":"Pinseltanz.jpg von Gerhard Rieß\nTautropfen.JPG von Susanne Deinhardt"}]
[3,{"$f":"VERKETTEN_P1(Tabelle_Auswertung[Platz 3],CHAR(10))","v":""}]
[4,{"$f":"VERKETTEN_P1(Tabelle_Auswertung[Platz 4],CHAR(10))","v":"Ready to take off.jpg von Jan Grünler\nStairs.jpg von Andreas Toltz"}]
[5,{"$f":"VERKETTEN_P1(Tabelle_Auswertung[Platz 5],CHAR(10))","v":""}]
[6,{"$f":"VERKETTEN_P1(Tabelle_Auswertung[Platz 6],CHAR(10))","v":"Maja.jpg von Gerhard Rieß\nMoos.jpg von Chris Finsterer"}]
[7,{"$f":"VERKETTEN_P1(Tabelle_Auswertung[Platz 6],CHAR(10))","v":"Maja.jpg von Gerhard Rieß\nMoos.jpg von Chris Finsterer"}]
[8,{"$f":"VERKETTEN_P1(Tabelle_Auswertung[Platz 8],CHAR(10))","v":"cedok.jpg von Chris Finsterer\ndicke Raupe.JPG von Susanne Deinhardt\nheavy metal.jpg von Gerhard Rieß\nLove1.JPG von Andreas Toltz"}]
[9,{"$f":"VERKETTEN_P1(Tabelle_Auswertung[Platz 9],CHAR(10))","v":""}]
[10,{"$f":"VERKETTEN_P1(Tabelle_Auswertung[Platz 10],CHAR(10))","v":""}]

{"sheet":"Fotografen","index":3,"n_rows":39,"n_cols":1,"rows_kept":39}
["Autoren"]
[" - - -"]
["Albrecht Flierl"]
["Alexander Häberlein"]
["Andreas Toltz"]
["Bernd Kober"]
["Bernd Marek"]
["Chris Finsterer"]
["Claudia Dommel"]
["Georg Held"]
["Georg Lindörfer"]
["Gerhard Rieß"]
["Gert Häberlein"]
["Günter Buckl"]
["Günter Wieser"]
["Günther Arold"]
["Jan Grünler"]
["Jürgen Abt"]
["Klaus Leitloff"]
["Klaus Lindörfer"]
["Lisa Schmidt"]
["Manfred Schwab"]
["Manfred Wenz"]
["Margit Schmidt"]
["Nadja Cassim"]
["Oliver von Guérard"]
["Patricia Spyra"]
["Peter Höhn"]
["Susanne Deinhardt"]
["Thomas Fuchs"]
["Walter Böse"]
["Wolfgang Brenner"]
["Gast 1"]
["Gast 2"]
["Gast 3"]
["Gast 4"]
["Gast 5"]
["Gast 6"]
["Gast 7"]

{"sheet":"online","index":4,"n_rows":1,"n_cols":11,"rows_kept":1}
["Sortierung","Titel","Punkte","Schnitt","Platz","Fotograf/in","Tags",null,"Fotograf/in","Gesamtpunkte","Platz"]